Workbook

Sheet Main
B10: 2021-06-21
B12: Sheet No. | C12: Template Name | D12: Summary
B13: 1 | C13: Future Intra | D13: For Intraday trading in F&O segment
B14: 2 | C14: Cash Intra | D14: For Intraday trading in cash market segment
B15: 3 | C15: Mid-cap Intra | D15: For Intraday trading in Mid-cap stocks
B16: 4 | C16: Bulk Deals | D16: Reveals Bulk Deals carried on NSE & BSE
B17: 5 | C17: Call Tracker
K27: `

Sheet Future Intra
M5: Back to Main Page
A6: FOR INTRA DAY TRADING | L6: =Main!B10 -> 2021-06-21
A9: Sr.no | B9: Sector | C9: Scrip | D9: Expiry Date | E9: CLOSE RATE | F9: Pivot Point | G9: Supports | J9: Resistances
B10: Sector | E10: Point | F10: Point | G10: S1 | H10: S2 | I10: S3 | J10: R1 | K10: R2 | L10: R3 | M10: HIGH | N10: LOW | O10: OI | P10: % Change in OI
A11: 1 | B11: Index | C11: BANKNIFTY | D11: 2021-06-24 | E11: 34596.75 | F11: 34457.20 | G11: 34076.55 | H11: 33556.35 | I11: 33175.70 | J11: 34977.40 | K11: 35358.05 | L11: 35878.25 | M11: 34837.85 | N11: 33937 | O11: 1978450 | P11: 5.38%
A12: 2 | B12: Index | C12: NIFTY | D12: 2021-06-24 | E12: 15696.70 | F12: 15645.27 | G12: 15516.53 | H12: 15336.37 | I12: 15207.63 | J12: 15825.43 | K12: 15954.17 | L12: 16134.33 | M12: 15774 | N12: 15465.1 | O12: 10745100 | P12: -7.43%
A13: 3 | B13: Index | C13: FINNIFTY | D13: 2021-06-24 | E13: 16437.75 | F13: 16363.27 | G13: 16230.53 | H13: 16023.32 | I13: 15890.58 | J13: 16570.48 | K13: 16703.22 | L13: 16910.43 | M13: 16496 | N13: 16156.05 | O13: 12840 | P13: -1.53%
A14: 4 | B14: Chemical | C14: AARTIIND | D14: 2021-06-24 | E14: 1767.25 | F14: 1779.75 | G14: 1744.50 | H14: 1721.75 | I14: 1686.50 | J14: 1802.50 | K14: 1837.75 | L14: 1860.50 | M14: 1815 | N14: 1757 | O14: 1180225 | P14: -0.04%
A15: 5 | B15: Cement | C15: ACC | D15: 2021-06-24 | E15: 2031.10 | F15: 2032.87 | G15: 1999.73 | H15: 1968.37 | I15: 1935.23 | J15: 2064.23 | K15: 2097.37 | L15: 2128.73 | M15: 2066 | N15: 2001.5 | O15: 2285500 | P15: 1.33%
A16: 6 | B16: Others | C16: ADANIENT | D16: 2021-06-24 | E16: 1489.45 | F16: 1441.27 | G16: 1381.28 | H16: 1273.12 | I16: 1213.13 | J16: 1549.43 | K16: 1609.42 | L16: 1717.58 | M16: 1501.25 | N16: 1333.1 | O16: 20110000 | P16: -2.73%
A17: 7 | B17: Others | C17: ADANIPORTS | D17: 2021-06-24 | E17: 689.80 | F17: 675.15 | G17: 650.30 | H17: 610.80 | I17: 585.95 | J17: 714.65 | K17: 739.50 | L17: 779.00 | M17: 700 | N17: 635.65 | O17: 83487500 | P17: -2.49%
A18: 8 | B18: Pharma | C18: ALKEM | D18: 2021-06-24 | E18: 3147.00 | F18: 3137.08 | G18: 3070.22 | H18: 2993.43 | I18: 2926.57 | J18: 3213.87 | K18: 3280.73 | L18: 3357.52 | M18: 3203.95 | N18: 3060.3 | O18: 547200 | P18: 0.74%
A19: 9 | B19: Automobile | C19: AMARAJABAT | D19: 2021-06-24 | E19: 749.35 | F19: 751.55 | G19: 734.60 | H19: 719.85 | I19: 702.90 | J19: 766.30 | K19: 783.25 | L19: 798.00 | M19: 768.5 | N19: 736.8 | O19: 10055000 | P19: 0.73%
A20: 10 | B20: Cement | C20: AMBUJACEM | D20: 2021-06-24 | E20: 341.45 | F20: 341.22 | G20: 335.93 | H20: 330.42 | I20: 325.13 | J20: 346.73 | K20: 352.02 | L20: 357.53 | M20: 346.5 | N20: 335.7 | O20: 18528000 | P20: -1.51%
A21: 11 | B21: Pharma | C21: APLLTD | D21: 2021-06-24 | E21: 977.70 | F21: 978.13 | G21: 957.27 | H21: 936.83 | I21: 915.97 | J21: 998.57 | K21: 1019.43 | L21: 1039.87 | M21: 999 | N21: 957.7 | O21: 1558150 | P21: 2.76%
A22: 12 | B22: Others | C22: APOLLOHOSP | D22: 2021-06-24 | E22: 3227.90 | F22: 3217.83 | G22: 3174.97 | H22: 3122.03 | I22: 3079.17 | J22: 3270.77 | K22: 3313.63 | L22: 3366.57 | M22: 3260.7 | N22: 3164.9 | O22: 1734250 | P22: 1.42%
A23: 13 | B23: Automobile | C23: APOLLOTYRE | D23: 2021-06-24 | E23: 227.10 | F23: 226.58 | G23: 220.22 | H23: 213.33 | I23: 206.97 | J23: 233.47 | K23: 239.83 | L23: 246.72 | M23: 232.95 | N23: 219.7 | O23: 14310000 | P23: 3.10%
A24: 14 | B24: Automobile | C24: ASHOKLEY | D24: 2021-06-24 | E24: 116.65 | F24: 117.48 | G24: 112.72 | H24: 108.78 | I24: 104.02 | J24: 121.42 | K24: 126.18 | L24: 130.12 | M24: 122.25 | N24: 113.55 | O24: 43065000 | P24: 1.16%
A25: 15 | B25: FMCG | C25: ASIANPAINT | D25: 2021-06-24 | E25: 3051.30 | F25: 3048.68 | G25: 3025.77 | H25: 3000.23 | I25: 2977.32 | J25: 3074.22 | K25: 3097.13 | L25: 3122.67 | M25: 3071.6 | N25: 3023.15 | O25: 4205700 | P25: -0.86%
A26: 16 | B26: Banking | C26: AUBANK | D26: 2021-06-24 | E26: 1024.95 | F26: 1024.77 | G26: 1002.33 | H26: 979.72 | I26: 957.28 | J26: 1047.38 | K26: 1069.82 | L26: 1092.43 | M26: 1047.2 | N26: 1002.15 | O26: 2347000 | P26: 3.90%
A27: 17 | B27: Pharma | C27: AUROPHARMA | D27: 2021-06-24 | E27: 950.55 | F27: 945.97 | G27: 921.93 | H27: 893.32 | I27: 869.28 | J27: 974.58 | K27: 998.62 | L27: 1027.23 | M27: 970 | N27: 917.35 | O27: 12588550 | P27: -4.98%
A28: 18 | B28: Banking | C28: AXISBANK | D28: 2021-06-24 | E28: 736.25 | F28: 733.85 | G28: 724.40 | H28: 712.55 | I28: 703.10 | J28: 745.70 | K28: 755.15 | L28: 767.00 | M28: 743.3 | N28: 722 | O28: 34734000 | P28: 0.26%
A29: 19 | B29: Automobile | C29: BAJAJ-AUTO | D29: 2021-06-24 | E29: 4168.95 | F29: 4130.75 | G29: 4074.40 | H29: 3979.85 | I29: 3923.50 | J29: 4225.30 | K29: 4281.65 | L29: 4376.20 | M29: 4187.1 | N29: 4036.2 | O29: 1418250 | P29: -6.71%
A30: 20 | B30: Finance | C30: BAJAJFINSV | D30: 2021-06-24 | E30: 12019.75 | F30: 11963.10 | G30: 11783.90 | H30: 11548.05 | I30: 11368.85 | J30: 12198.95 | K30: 12378.15 | L30: 12614.00 | M30: 12142.3 | N30: 11727.25 | O30: 723175 | P30: 4.54%
A31: 21 | B31: Finance | C31: BAJFINANCE | D31: 2021-06-24 | E31: 6101.20 | F31: 6080.90 | G31: 5996.90 | H31: 5892.60 | I31: 5808.60 | J31: 6185.20 | K31: 6269.20 | L31: 6373.50 | M31: 6164.9 | N31: 5976.6 | O31: 3739125 | P31: 0.26%
A32: 22 | B32: Automobile | C32: BALKRISIND | D32: 2021-06-24 | E32: 2290.00 | F32: 2276.85 | G32: 2254.15 | H32: 2218.30 | I32: 2195.60 | J32: 2312.70 | K32: 2335.40 | L32: 2371.25 | M32: 2299.55 | N32: 2241 | O32: 1147600 | P32: -4.91%
A33: 23 | B33: Banking | C33: BANDHANBNK | D33: 2021-06-24 | E33: 316.70 | F33: 315.92 | G33: 310.78 | H33: 304.87 | I33: 299.73 | J33: 321.83 | K33: 326.97 | L33: 332.88 | M33: 321.05 | N33: 310 | O33: 17443800 | P33: -0.33%
A34: 24 | B34: Banking | C34: BANKBARODA | D34: 2021-06-24 | E34: 80.15 | F34: 79.93 | G34: 77.17 | H34: 74.18 | I34: 71.42 | J34: 82.92 | K34: 85.68 | L34: 88.67 | M34: 82.7 | N34: 76.95 | O34: 165707100 | P34: -3.13%
A35: 25 | B35: FMCG | C35: BATAINDIA | D35: 2021-06-24 | E35: 1649.70 | F35: 1655.53 | G35: 1629.17 | H35: 1608.63 | I35: 1582.27 | J35: 1676.07 | K35: 1702.43 | L35: 1722.97 | M35: 1681.9 | N35: 1635 | O35: 1128600 | P35: -10.63%
A36: 26 | B36: Capital_Goods | C36: BEL | D36: 2021-06-24 | E36: 146.40 | F36: 144.68 | G36: 142.17 | H36: 137.93 | I36: 135.42 | J36: 148.92 | K36: 151.43 | L36: 155.67 | M36: 147.2 | N36: 140.45 | O36: 31456400 | P36: -3.49%
A37: 27 | B37: FMCG | C37: BERGEPAINT | D37: 2021-06-24 | E37: 825.75 | F37: 825.08 | G37: 814.67 | H37: 803.58 | I37: 793.17 | J37: 836.17 | K37: 846.58 | L37: 857.67 | M37: 835.5 | N37: 814 | O37: 3492500 | P37: -1.31%
A38: 28 | B38: Automobile | C38: BHARATFORG | D38: 2021-06-24 | E38: 726.30 | F38: 722.37 | G38: 712.13 | H38: 697.97 | I38: 687.73 | J38: 736.53 | K38: 746.77 | L38: 760.93 | M38: 732.6 | N38: 708.2 | O38: 7681500 | P38: -9.49%
A39: 29 | B39: Telecom | C39: BHARTIARTL | D39: 2021-06-24 | E39: 538.70 | F39: 533.02 | G39: 524.28 | H39: 509.87 | I39: 501.13 | J39: 547.43 | K39: 556.17 | L39: 570.58 | M39: 541.75 | N39: 518.6 | O39: 111800400 | P39: 0.58%
A40: 30 | B40: Capital_Goods | C40: BHEL | D40: 2021-06-24 | E40: 64.20 | F40: 63.48 | G40: 59.97 | H40: 55.73 | I40: 52.22 | J40: 67.72 | K40: 71.23 | L40: 75.47 | M40: 67 | N40: 59.25 | O40: 95991000 | P40: -8.65%
A41: 31 | B41: Pharma | C41: BIOCON | D41: 2021-06-24 | E41: 398.85 | F41: 396.68 | G41: 391.37 | H41: 383.88 | I41: 378.57 | J41: 404.17 | K41: 409.48 | L41: 416.97 | M41: 402 | N41: 389.2 | O41: 14713100 | P41: -5.12%
A42: 32 | B42: Automobile | C42: BOSCHLTD | D42: 2021-06-24 | E42: 15234.70 | F42: 15265.85 | G42: 15018.95 | H42: 14803.20 | I42: 14556.30 | J42: 15481.60 | K42: 15728.50 | L42: 15944.25 | M42: 15512.75 | N42: 15050.1 | O42: 107550 | P42: 4.01%
A43: 33 | B43: Oil_Gas | C43: BPCL | D43: 2021-06-24 | E43: 472.80 | F43: 473.47 | G43: 466.28 | H43: 459.77 | I43: 452.58 | J43: 479.98 | K43: 487.17 | L43: 493.68 | M43: 480.65 | N43: 466.95 | O43: 35211600 | P43: 0.11%
A44: 34 | B44: FMCG | C44: BRITANNIA | D44: 2021-06-24 | E44: 3623.10 | F44: 3634.50 | G44: 3593.05 | H44: 3563.00 | I44: 3521.55 | J44: 3664.55 | K44: 3706.00 | L44: 3736.05 | M44: 3675.95 | N44: 3604.45 | O44: 1837000 | P44: 1.39%
A45: 35 | B45: Pharma | C45: CADILAHC | D45: 2021-06-24 | E45: 620.80 | F45: 617.47 | G45: 607.73 | H45: 594.67 | I45: 584.93 | J45: 630.53 | K45: 640.27 | L45: 653.33 | M45: 627.2 | N45: 604.4 | O45: 26129400 | P45: 1.72%
A46: 36 | B46: Banking | C46: CANBK | D46: 2021-06-24 | E46: 148.30 | F46: 147.00 | G46: 142.80 | H46: 137.30 | I46: 133.10 | J46: 152.50 | K46: 156.70 | L46: 162.20 | M46: 151.2 | N46: 141.5 | O46: 51332400 | P46: -1.89%
A47: 37 | B47: Finance | C47: CHOLAFIN | D47: 2021-06-24 | E47: 539.35 | F47: 536.98 | G47: 520.97 | H47: 502.58 | I47: 486.57 | J47: 555.37 | K47: 571.38 | L47: 589.77 | M47: 553 | N47: 518.6 | O47: 8450000 | P47: 1.21%
A48: 38 | B48: Pharma | C48: CIPLA | D48: 2021-06-24 | E48: 959.70 | F48: 956.72 | G48: 948.33 | H48: 936.97 | I48: 928.58 | J48: 968.08 | K48: 976.47 | L48: 987.83 | M48: 965.1 | N48: 945.35 | O48: 9652500 | P48: -0.11%
A49: 39 | B49: Others | C49: COALINDIA | D49: 2021-06-24 | E49: 146.65 | F49: 148.40 | G49: 143.25 | H49: 139.85 | I49: 134.70 | J49: 151.80 | K49: 156.95 | L49: 160.35 | M49: 153.55 | N49: 145 | O49: 67880400 | P49: 8.79%
A50: 40 | B50: Technology | C50: COFORGE | D50: 2021-06-24 | E50: 3977.05 | F50: 3970.65 | G50: 3886.45 | H50: 3795.85 | I50: 3711.65 | J50: 4061.25 | K50: 4145.45 | L50: 4236.05 | M50: 4054.85 | N50: 3880.05 | O50: 735500 | P50: -0.24%
A51: 41 | B51: FMCG | C51: COLPAL | D51: 2021-06-24 | E51: 1691.00 | F51: 1699.58 | G51: 1673.17 | H51: 1655.33 | I51: 1628.92 | J51: 1717.42 | K51: 1743.83 | L51: 1761.67 | M51: 1726 | N51: 1681.75 | O51: 2485350 | P51: -1.06%
A52: 42 | B52: Others | C52: CONCOR | D52: 2021-06-24 | E52: 687.90 | F52: 682.05 | G52: 673.85 | H52: 659.80 | I52: 651.60 | J52: 696.10 | K52: 704.30 | L52: 718.35 | M52: 690.25 | N52: 668 | O52: 7336722 | P52: -5.71%
A53: 43 | B53: Banking | C53: CUB | D53: 2021-06-24 | E53: 164.45 | F53: 163.95 | G53: 161.30 | H53: 158.15 | I53: 155.50 | J53: 167.10 | K53: 169.75 | L53: 172.90 | M53: 166.6 | N53: 160.8 | O53: 10471800 | P53: -1.08%
A54: 44 | B54: Capital_Goods | C54: CUMMINSIND | D54: 2021-06-24 | E54: 832.25 | F54: 830.72 | G54: 817.43 | H54: 802.62 | I54: 789.33 | J54: 845.53 | K54: 858.82 | L54: 873.63 | M54: 844 | N54: 815.9 | O54: 2847000 | P54: -4.87%
A55: 45 | B55: FMCG | C55: DABUR | D55: 2021-06-24 | E55: 578.35 | F55: 577.70 | G55: 574.15 | H55: 569.95 | I55: 566.40 | J55: 581.90 | K55: 585.45 | L55: 589.65 | M55: 581.25 | N55: 573.5 | O55: 8366250 | P55: -0.89%
A56: 46 | B56: Chemical | C56: DEEPAKNTR | D56: 2021-06-24 | E56: 1753.25 | F56: 1752.17 | G56: 1712.33 | H56: 1671.42 | I56: 1631.58 | J56: 1793.08 | K56: 1832.92 | L56: 1873.83 | M56: 1792 | N56: 1711.25 | O56: 2990000 | P56: -2.34%
A57: 47 | B57: Pharma | C57: DIVISLAB | D57: 2021-06-24 | E57: 4210.85 | F57: 4245.20 | G57: 4125.90 | H57: 4040.95 | I57: 3921.65 | J57: 4330.15 | K57: 4449.45 | L57: 4534.40 | M57: 4364.5 | N57: 4160.25 | O57: 2544600 | P57: 16.10%
A58: 48 | B58: Realty | C58: DLF | D58: 2021-06-24 | E58: 295.00 | F58: 292.33 | G58: 285.42 | H58: 275.83 | I58: 268.92 | J58: 301.92 | K58: 308.83 | L58: 318.42 | M58: 299.25 | N58: 282.75 | O58: 36065700 | P58: -1.31%
A59: 49 | B59: Pharma | C59: DRREDDY | D59: 2021-06-24 | E59: 5285.95 | F59: 5291.25 | G59: 5232.70 | H59: 5179.45 | I59: 5120.90 | J59: 5344.50 | K59: 5403.05 | L59: 5456.30 | M59: 5349.8 | N59: 5238 | O59: 2510125 | P59: -3.33%
A60: 50 | B60: Automobile | C60: EICHERMOT | D60: 2021-06-24 | E60: 2711.35 | F60: 2693.97 | G60: 2668.98 | H60: 2626.62 | I60: 2601.63 | J60: 2736.33 | K60: 2761.32 | L60: 2803.68 | M60: 2718.95 | N60: 2651.6 | O60: 1936550 | P60: -3.03%
A61: 51 | B61: Automobile | C61: ESCORTS | D61: 2021-06-24 | E61: 1169.95 | F61: 1155.32 | G61: 1135.63 | H61: 1101.32 | I61: 1081.63 | J61: 1189.63 | K61: 1209.32 | L61: 1243.63 | M61: 1175 | N61: 1121 | O61: 5575350 | P61: -4.88%
A62: 52 | B62: Automobile | C62: EXIDEIND | D62: 2021-06-24 | E62: 185.50 | F62: 185.25 | G62: 182.00 | H62: 178.50 | I62: 175.25 | J62: 188.75 | K62: 192.00 | L62: 195.50 | M62: 188.5 | N62: 181.75 | O62: 13932000 | P62: -4.75%
A63: 53 | B63: Banking | C63: FEDERALBNK | D63: 2021-06-24 | E63: 83.75 | F63: 83.70 | G63: 81.30 | H63: 78.85 | I63: 76.45 | J63: 86.15 | K63: 88.55 | L63: 91.00 | M63: 86.1 | N63: 81.25 | O63: 86300000 | P63: -2.49%
A64: 54 | B64: Oil_Gas | C64: GAIL | D64: 2021-06-24 | E64: 154.90 | F64: 156.33 | G64: 151.12 | H64: 147.33 | I64: 142.12 | J64: 160.12 | K64: 165.33 | L64: 169.12 | M64: 161.55 | N64: 152.55 | O64: 33836700 | P64: 1.63%
A65: 55 | B65: Pharma | C65: GLENMARK | D65: 2021-06-24 | E65: 640.25 | F65: 637.23 | G65: 627.32 | H65: 614.38 | I65: 604.47 | J65: 650.17 | K65: 660.08 | L65: 673.02 | M65: 647.15 | N65: 624.3 | O65: 8128200 | P65: -3.27%
A66: 56 | B66: Infrastructure | C66: GMRINFRA | D66: 2021-06-24 | E66: 28.30 | F66: 28.33 | G66: 27.47 | H66: 26.63 | I66: 25.77 | J66: 29.17 | K66: 30.03 | L66: 30.87 | M66: 29.2 | N66: 27.5 | O66: 104647500 | P66: 1.33%
A67: 57 | B67: FMCG | C67: GODREJCP | D67: 2021-06-24 | E67: 895.00 | F67: 896.33 | G67: 880.67 | H67: 866.33 | I67: 850.67 | J67: 910.67 | K67: 926.33 | L67: 940.67 | M67: 912 | N67: 882 | O67: 3415000 | P67: 8.38%
A68: 58 | B68: Realty | C68: GODREJPROP | D68: 2021-06-24 | E68: 1385.95 | F68: 1373.20 | G68: 1341.50 | H68: 1297.05 | I68: 1265.35 | J68: 1417.65 | K68: 1449.35 | L68: 1493.80 | M68: 1404.9 | N68: 1328.75 | O68: 1844050 | P68: 1.21%
A69: 59 | B69: Pharma | C69: GRANULES | D69: 2021-06-24 | E69: 311.65 | F69: 313.62 | G69: 306.53 | H69: 301.42 | I69: 294.33 | J69: 318.73 | K69: 325.82 | L69: 330.93 | M69: 320.7 | N69: 308.5 | O69: 12344200 | P69: -0.81%
A70: 60 | B70: Cement | C70: GRASIM | D70: 2021-06-24 | E70: 1483.00 | F70: 1464.60 | G70: 1439.40 | H70: 1395.80 | I70: 1370.60 | J70: 1508.20 | K70: 1533.40 | L70: 1577.00 | M70: 1489.8 | N70: 1421 | O70: 12767525 | P70: 2.33%
A71: 61 | B71: Oil_Gas | C71: GUJGASLTD | D71: 2021-06-24 | E71: 660.20 | F71: 657.23 | G71: 640.52 | H71: 620.83 | I71: 604.12 | J71: 676.92 | K71: 693.63 | L71: 713.32 | M71: 673.95 | N71: 637.55 | O71: 3045000 | P71: -3.91%
A72: 62 | B72: Capital_Goods | C72: HAVELLS | D72: 2021-06-24 | E72: 996.80 | F72: 994.70 | G72: 979.75 | H72: 962.70 | I72: 947.75 | J72: 1011.75 | K72: 1026.70 | L72: 1043.75 | M72: 1009.65 | N72: 977.65 | O72: 5965500 | P72: -1.76%
A73: 63 | B73: Technology | C73: HCLTECH | D73: 2021-06-24 | E73: 977.20 | F73: 982.30 | G73: 966.90 | H73: 956.60 | I73: 941.20 | J73: 992.60 | K73: 1008.00 | L73: 1018.30 | M73: 997.7 | N73: 972 | O73: 20668200 | P73: 1.78%
A74: 64 | B74: Finance | C74: HDFC | D74: 2021-06-24 | E74: 2490.30 | F74: 2485.02 | G74: 2461.93 | H74: 2433.57 | I74: 2410.48 | J74: 2513.38 | K74: 2536.47 | L74: 2564.83 | M74: 2508.1 | N74: 2456.65 | O74: 16834800 | P74: -1.17%
A75: 65 | B75: Finance | C75: HDFCAMC | D75: 2021-06-24 | E75: 2951.15 | F75: 2969.72 | G75: 2906.43 | H75: 2861.72 | I75: 2798.43 | J75: 3014.43 | K75: 3077.72 | L75: 3122.43 | M75: 3033 | N75: 2925 | O75: 554400 | P75: 6.41%
A76: 66 | B76: Banking | C76: HDFCBANK | D76: 2021-06-24 | E76: 1480.70 | F76: 1474.07 | G76: 1462.13 | H76: 1443.57 | I76: 1431.63 | J76: 1492.63 | K76: 1504.57 | L76: 1523.13 | M76: 1486 | N76: 1455.5 | O76: 24206600 | P76: -5.80%
A77: 67 | B77: Finance | C77: HDFCLIFE | D77: 2021-06-24 | E77: 708.70 | F77: 704.52 | G77: 697.63 | H77: 686.57 | I77: 679.68 | J77: 715.58 | K77: 722.47 | L77: 733.53 | M77: 711.4 | N77: 693.45 | O77: 10671100 | P77: -9.88%
A78: 68 | B78: Automobile | C78: HEROMOTOCO | D78: 2021-06-24 | E78: 2897.05 | F78: 2904.98 | G78: 2842.57 | H78: 2788.08 | I78: 2725.67 | J78: 2959.47 | K78: 3021.88 | L78: 3076.37 | M78: 2967.4 | N78: 2850.5 | O78: 4276800 | P78: 1.23%
A79: 69 | B79: Metals | C79: HINDALCO | D79: 2021-06-24 | E79: 371.80 | F79: 368.42 | G79: 363.68 | H79: 355.57 | I79: 350.83 | J79: 376.53 | K79: 381.27 | L79: 389.38 | M79: 373.15 | N79: 360.3 | O79: 25821500 | P79: -6.05%
A80: 70 | B80: Oil_Gas | C80: HINDPETRO | D80: 2021-06-24 | E80: 295.70 | F80: 299.33 | G80: 288.67 | H80: 281.63 | I80: 270.97 | J80: 306.37 | K80: 317.03 | L80: 324.07 | M80: 310 | N80: 292.3 | O80: 24804900 | P80: -4.64%
A81: 71 | B81: FMCG | C81: HINDUNILVR | D81: 2021-06-24 | E81: 2481.50 | F81: 2460.53 | G81: 2427.62 | H81: 2373.73 | I81: 2340.82 | J81: 2514.42 | K81: 2547.33 | L81: 2601.22 | M81: 2493.45 | N81: 2406.65 | O81: 7585500 | P81: -8.65%
A82: 72 | B82: Finance | C82: IBULHSGFIN | D82: 2021-06-24 | E82: 279.40 | F82: 279.05 | G82: 269.15 | H82: 258.90 | I82: 249.00 | J82: 289.30 | K82: 299.20 | L82: 309.45 | M82: 288.95 | N82: 268.8 | O82: 29713500 | P82: 3.18%
A83: 73 | B83: Banking | C83: ICICIBANK | D83: 2021-06-24 | E83: 631.45 | F83: 630.48 | G83: 622.97 | H83: 614.48 | I83: 606.97 | J83: 638.97 | K83: 646.48 | L83: 654.97 | M83: 638 | N83: 622 | O83: 69206500 | P83: -3.52%
A84: 74 | B84: Finance | C84: ICICIGI | D84: 2021-06-24 | E84: 1532.75 | F84: 1518.85 | G84: 1499.00 | H84: 1465.25 | I84: 1445.40 | J84: 1552.60 | K84: 1572.45 | L84: 1606.20 | M84: 1538.7 | N84: 1485.1 | O84: 1187450 | P84: -6.49%
A85: 75 | B85: Finance | C85: ICICIPRULI | D85: 2021-06-24 | E85: 581.85 | F85: 584.65 | G85: 573.55 | H85: 565.25 | I85: 554.15 | J85: 592.95 | K85: 604.05 | L85: 612.35 | M85: 595.75 | N85: 576.35 | O85: 4134000 | P85: -3.40%
A86: 76 | B86: Telecom | C86: IDEA | D86: 2021-06-24 | E86: 10.40 | F86: 10.00 | G86: 9.45 | H86: 8.50 | I86: 7.95 | J86: 10.95 | K86: 11.50 | L86: 12.45 | M86: 10.55 | N86: 9.05 | O86: 829570000 | P86: 11.50%
A87: 77 | B87: Banking | C87: IDFCFIRSTB | D87: 2021-06-24 | E87: 57.65 | F87: 57.08 | G87: 55.57 | H87: 53.48 | I87: 51.97 | J87: 59.17 | K87: 60.68 | L87: 62.77 | M87: 58.6 | N87: 55 | O87: 143013000 | P87: 0.29%
A88: 78 | B88: Oil_Gas | C88: IGL | D88: 2021-06-24 | E88: 531.85 | F88: 532.30 | G88: 522.60 | H88: 513.35 | I88: 503.65 | J88: 541.55 | K88: 551.25 | L88: 560.50 | M88: 542 | N88: 523.05 | O88: 9396750 | P88: 2.54%
A89: 79 | B89: Others | C89: INDIGO | D89: 2021-06-24 | E89: 1708.10 | F89: 1697.73 | G89: 1676.67 | H89: 1645.23 | I89: 1624.17 | J89: 1729.17 | K89: 1750.23 | L89: 1781.67 | M89: 1718.8 | N89: 1666.3 | O89: 3103000 | P89: -4.42%
A90: 80 | B90: Banking | C90: INDUSINDBK | D90: 2021-06-24 | E90: 995.80 | F90: 985.27 | G90: 969.98 | H90: 944.17 | I90: 928.88 | J90: 1011.08 | K90: 1026.37 | L90: 1052.18 | M90: 1000.55 | N90: 959.45 | O90: 18498600 | P90: -1.53%
A91: 81 | B91: Telecom | C91: INDUSTOWER | D91: 2021-06-24 | E91: 246.65 | F91: 244.22 | G91: 239.88 | H91: 233.12 | I91: 228.78 | J91: 250.98 | K91: 255.32 | L91: 262.08 | M91: 248.55 | N91: 237.45 | O91: 9928800 | P91: 1.05%
A92: 82 | B92: Technology | C92: INFY | D92: 2021-06-24 | E92: 1504.30 | F92: 1503.50 | G92: 1492.20 | H92: 1480.10 | I92: 1468.80 | J92: 1515.60 | K92: 1526.90 | L92: 1539.00 | M92: 1514.8 | N92: 1491.4 | O92: 32172600 | P92: -2.61%
A93: 83 | B93: Oil_Gas | C93: IOC | D93: 2021-06-24 | E93: 112.30 | F93: 112.90 | G93: 110.40 | H93: 108.50 | I93: 106.00 | J93: 114.80 | K93: 117.30 | L93: 119.20 | M93: 115.4 | N93: 111 | O93: 53014000 | P93: -1.53%
A94: 84 | B94: Others | C94: IRCTC | D94: 2021-06-24 | E94: 2011.45 | F94: 2019.05 | G94: 1969.10 | H94: 1926.75 | I94: 1876.80 | J94: 2061.40 | K94: 2111.35 | L94: 2153.70 | M94: 2069 | N94: 1976.7 | O94: 1980875 | P94: 0.74%
A95: 85 | B95: FMCG | C95: ITC | D95: 2021-06-24 | E95: 205.00 | F95: 204.72 | G95: 202.73 | H95: 200.47 | I95: 198.48 | J95: 206.98 | K95: 208.97 | L95: 211.23 | M95: 206.7 | N95: 202.45 | O95: 176691200 | P95: 0.63%
A96: 86 | B96: Metals | C96: JINDALSTEL | D96: 2021-06-24 | E96: 388.10 | F96: 382.67 | G96: 370.03 | H96: 351.97 | I96: 339.33 | J96: 400.73 | K96: 413.37 | L96: 431.43 | M96: 395.3 | N96: 364.6 | O96: 31867500 | P96: -3.49%
A97: 87 | B97: Metals | C97: JSWSTEEL | D97: 2021-06-24 | E97: 672.55 | F97: 675.75 | G97: 654.40 | H97: 636.25 | I97: 614.90 | J97: 693.90 | K97: 715.25 | L97: 733.40 | M97: 697.1 | N97: 657.6 | O97: 36498600 | P97: -0.72%
A98: 88 | B98: Others | C98: JUBLFOOD | D98: 2021-06-24 | E98: 3290.70 | F98: 3268.58 | G98: 3222.32 | H98: 3153.93 | I98: 3107.67 | J98: 3336.97 | K98: 3383.23 | L98: 3451.62 | M98: 3314.85 | N98: 3200.2 | O98: 1394500 | P98: -0.62%
A99: 89 | B99: Banking | C99: KOTAKBANK | D99: 2021-06-24 | E99: 1762.45 | F99: 1758.02 | G99: 1739.48 | H99: 1716.52 | I99: 1697.98 | J99: 1780.98 | K99: 1799.52 | L99: 1822.48 | M99: 1776.55 | N99: 1735.05 | O99: 12980400 | P99: -5.27%
A100: 90 | B100: Finance | C100: L&TFH | D100: 2021-06-24 | E100: 91.70 | F100: 91.82 | G100: 88.83 | H100: 85.97 | I100: 82.98 | J100: 94.68 | K100: 97.67 | L100: 100.53 | M100: 94.8 | N100: 88.95 | O100: 72213008 | P100: -1.57%
A101: 91 | B101: Others | C101: LALPATHLAB | D101: 2021-06-24 | E101: 3183.20 | F101: 3195.55 | G101: 3101.15 | H101: 3019.10 | I101: 2924.70 | J101: 3277.60 | K101: 3372.00 | L101: 3454.05 | M101: 3289.95 | N101: 3113.5 | O101: 410000 | P101: 3.60%
A102: 92 | B102: Finance | C102: LICHSGFIN | D102: 2021-06-24 | E102: 470.45 | F102: 471.68 | G102: 457.12 | H102: 443.78 | I102: 429.22 | J102: 485.02 | K102: 499.58 | L102: 512.92 | M102: 486.25 | N102: 458.35 | O102: 14362000 | P102: -0.46%
A103: 93 | B103: Capital_Goods | C103: LT | D103: 2021-06-24 | E103: 1477.75 | F103: 1477.02 | G103: 1461.28 | H103: 1444.82 | I103: 1429.08 | J103: 1493.48 | K103: 1509.22 | L103: 1525.68 | M103: 1492.75 | N103: 1460.55 | O103: 13766650 | P103: -2.85%
A104: 94 | B104: Technology | C104: LTI | D104: 2021-06-24 | E104: 4075.80 | F104: 4105.73 | G104: 3977.02 | H104: 3878.23 | I104: 3749.52 | J104: 4204.52 | K104: 4333.23 | L104: 4432.02 | M104: 4234.45 | N104: 4006.95 | O104: 613650 | P104: 2.25%
A105: 95 | B105: Technology | C105: LTTS | D105: 2021-06-24 | E105: 2799.65 | F105: 2801.47 | G105: 2732.98 | H105: 2666.32 | I105: 2597.83 | J105: 2868.13 | K105: 2936.62 | L105: 3003.28 | M105: 2869.95 | N105: 2734.8 | O105: 488000 | P105: -3.10%
A106: 96 | B106: Pharma | C106: LUPIN | D106: 2021-06-24 | E106: 1156.30 | F106: 1155.88 | G106: 1138.77 | H106: 1121.23 | I106: 1104.12 | J106: 1173.42 | K106: 1190.53 | L106: 1208.07 | M106: 1173 | N106: 1138.35 | O106: 7779200 | P106: -3.50%
A107: 97 | B107: Automobile | C107: M&M | D107: 2021-06-24 | E107: 783.25 | F107: 788.50 | G107: 768.50 | H107: 753.75 | I107: 733.75 | J107: 803.25 | K107: 823.25 | L107: 838.00 | M107: 808.5 | N107: 773.75 | O107: 9284100 | P107: 3.94%
A108: 98 | B108: Finance | C108: M&MFIN | D108: 2021-06-24 | E108: 158.65 | F108: 159.02 | G108: 153.78 | H108: 148.92 | I108: 143.68 | J108: 163.88 | K108: 169.12 | L108: 173.98 | M108: 164.25 | N108: 154.15 | O108: 47388000 | P108: 4.41%
A109: 99 | B109: Finance | C109: MANAPPURAM | D109: 2021-06-24 | E109: 160.05 | F109: 159.78 | G109: 156.77 | H109: 153.48 | I109: 150.47 | J109: 163.07 | K109: 166.08 | L109: 169.37 | M109: 162.8 | N109: 156.5 | O109: 27720000 | P109: -2.14%
A110: 100 | B110: FMCG | C110: MARICO | D110: 2021-06-24 | E110: 521.75 | F110: 518.85 | G110: 513.45 | H110: 505.15 | I110: 499.75 | J110: 527.15 | K110: 532.55 | L110: 540.85 | M110: 524.25 | N110: 510.55 | O110: 6196000 | P110: 6.31%
A111: 101 | B111: Automobile | C111: MARUTI | D111: 2021-06-24 | E111: 6972.80 | F111: 6932.28 | G111: 6873.62 | H111: 6774.43 | I111: 6715.77 | J111: 7031.47 | K111: 7090.13 | L111: 7189.32 | M111: 6990.95 | N111: 6833.1 | O111: 2034100 | P111: 1.02%
A112: 102 | B112: FMCG | C112: MCDOWELL-N | D112: 2021-06-24 | E112: 673.20 | F112: 665.12 | G112: 651.33 | H112: 629.47 | I112: 615.68 | J112: 686.98 | K112: 700.77 | L112: 722.63 | M112: 678.9 | N112: 643.25 | O112: 10448750 | P112: -0.07%
A113: 103 | B113: Finance | C113: MFSL | D113: 2021-06-24 | E113: 981.00 | F113: 989.92 | G113: 960.48 | H113: 939.97 | I113: 910.53 | J113: 1010.43 | K113: 1039.87 | L113: 1060.38 | M113: 1019.35 | N113: 969.4 | O113: 2587000 | P113: -2.02%
A114: 104 | B114: Oil_Gas | C114: MGL | D114: 2021-06-24 | E114: 1190.05 | F114: 1198.62 | G114: 1152.18 | H114: 1114.32 | I114: 1067.88 | J114: 1236.48 | K114: 1282.92 | L114: 1320.78 | M114: 1245.05 | N114: 1160.75 | O114: 1948200 | P114: 1.60%
A115: 105 | B115: Technology | C115: MINDTREE | D115: 2021-06-24 | E115: 2474.70 | F115: 2477.98 | G115: 2427.97 | H115: 2381.23 | I115: 2331.22 | J115: 2524.72 | K115: 2574.73 | L115: 2621.47 | M115: 2528 | N115: 2431.25 | O115: 1751200 | P115: -1.62%
A116: 106 | B116: Automobile | C116: MOTHERSUMI | D116: 2021-06-24 | E116: 236.80 | F116: 235.47 | G116: 228.98 | H116: 221.17 | I116: 214.68 | J116: 243.28 | K116: 249.77 | L116: 257.58 | M116: 241.95 | N116: 227.65 | O116: 31206000 | P116: -4.25%
A117: 107 | B117: Technology | C117: MPHASIS | D117: 2021-06-24 | E117: 2041.40 | F117: 2048.33 | G117: 1994.12 | H117: 1946.83 | I117: 1892.62 | J117: 2095.62 | K117: 2149.83 | L117: 2197.12 | M117: 2102.55 | N117: 2001.05 | O117: 689325 | P117: 32.98%
A118: 108 | B118: Automobile | C118: MRF | D118: 2021-06-24 | E118: 82539.30 | F118: 81943.38 | G118: 80985.22 | H118: 79431.13 | I118: 78472.97 | J118: 83497.47 | K118: 84455.63 | L118: 86009.72 | M118: 82901.55 | N118: 80389.3 | O118: 45300 | P118: -1.31%
A119: 109 | B119: Finance | C119: MUTHOOTFIN | D119: 2021-06-24 | E119: 1473.40 | F119: 1469.90 | G119: 1450.40 | H119: 1427.40 | I119: 1407.90 | J119: 1492.90 | K119: 1512.40 | L119: 1535.40 | M119: 1489.4 | N119: 1446.9 | O119: 3361500 | P119: 3.15%
A120: 110 | B120: Others | C120: NAM-INDIA | D120: 2021-06-24 | E120: 356.20 | F120: 356.15 | G120: 349.30 | H120: 342.40 | I120: 335.55 | J120: 363.05 | K120: 369.90 | L120: 376.80 | M120: 363 | N120: 349.25 | O120: 2576000 | P120: -6.07%
A121: 111 | B121: Metals | C121: NATIONALUM | D121: 2021-06-24 | E121: 67.55 | F121: 67.33 | G121: 65.17 | H121: 62.78 | I121: 60.62 | J121: 69.72 | K121: 71.88 | L121: 74.27 | M121: 69.5 | N121: 64.95 | O121: 83844000 | P121: 1.34%
A122: 112 | B122: Others | C122: NAUKRI | D122: 2021-06-24 | E122: 4989.40 | F122: 4951.02 | G122: 4869.03 | H122: 4748.67 | I122: 4666.68 | J122: 5071.38 | K122: 5153.37 | L122: 5273.73 | M122: 5033 | N122: 4830.65 | O122: 1278750 | P122: -3.55%
A123: 113 | B123: Chemical | C123: NAVINFLUOR | D123: 2021-06-24 | E123: 3344.00 | F123: 3341.40 | G123: 3271.75 | H123: 3199.50 | I123: 3129.85 | J123: 3413.65 | K123: 3483.30 | L123: 3555.55 | M123: 3411.05 | N123: 3269.15 | O123: 319275 | P123: -3.21%
A124: 114 | B124: FMCG | C124: NESTLEIND | D124: 2021-06-24 | E124: 17717.20 | F124: 17820.30 | G124: 17538.10 | H124: 17359.00 | I124: 17076.80 | J124: 17999.40 | K124: 18281.60 | L124: 18460.70 | M124: 18102.5 | N124: 17641.2 | O124: 253100 | P124: 9.76%
A125: 115 | B125: Metals | C125: NMDC | D125: 2021-06-24 | E125: 178.20 | F125: 177.22 | G125: 172.73 | H125: 167.27 | I125: 162.78 | J125: 182.68 | K125: 187.17 | L125: 192.63 | M125: 181.7 | N125: 171.75 | O125: 78349800 | P125: -5.53%
A126: 116 | B126: Power | C126: NTPC | D126: 2021-06-24 | E126: 113.70 | F126: 114.98 | G126: 111.72 | H126: 109.73 | I126: 106.47 | J126: 116.97 | K126: 120.23 | L126: 122.22 | M126: 118.25 | N126: 113 | O126: 73644000 | P126: -3.24%
A127: 117 | B127: Oil_Gas | C127: ONGC | D127: 2021-06-24 | E127: 120.70 | F127: 121.47 | G127: 118.38 | H127: 116.07 | I127: 112.98 | J127: 123.78 | K127: 126.87 | L127: 129.18 | M127: 124.55 | N127: 119.15 | O127: 76953800 | P127: 6.49%
A128: 118 | B128: Textile | C128: PAGEIND | D128: 2021-06-24 | E128: 29729.35 | F128: 29710.03 | G128: 29362.87 | H128: 28996.38 | I128: 28649.22 | J128: 30076.52 | K128: 30423.68 | L128: 30790.17 | M128: 30057.2 | N128: 29343.55 | O128: 78780 | P128: -5.47%
A129: 119 | B129: Pharma | C129: PEL | D129: 2021-06-24 | E129: 2238.10 | F129: 2205.32 | G129: 2157.68 | H129: 2077.27 | I129: 2029.63 | J129: 2285.73 | K129: 2333.37 | L129: 2413.78 | M129: 2252.95 | N129: 2124.9 | O129: 3367925 | P129: -0.24%
A130: 120 | B130: Oil_Gas | C130: PETRONET | D130: 2021-06-24 | E130: 226.45 | F130: 227.15 | G130: 223.65 | H130: 220.85 | I130: 217.35 | J130: 229.95 | K130: 233.45 | L130: 236.25 | M130: 230.65 | N130: 224.35 | O130: 32619000 | P130: 3.15%
A131: 121 | B131: Finance | C131: PFC | D131: 2021-06-24 | E131: 124.60 | F131: 125.00 | G131: 122.45 | H131: 120.30 | I131: 117.75 | J131: 127.15 | K131: 129.70 | L131: 131.85 | M131: 127.55 | N131: 122.85 | O131: 42544400 | P131: -0.54%
A132: 122 | B132: Pharma | C132: PFIZER | D132: 2021-06-24 | E132: 5412.85 | F132: 5422.40 | G132: 5377.15 | H132: 5341.45 | I132: 5296.20 | J132: 5458.10 | K132: 5503.35 | L132: 5539.05 | M132: 5467.65 | N132: 5386.7 | O132: 393500 | P132: 0.29%
A133: 123 | B133: FMCG | C133: PIDILITIND | D133: 2021-06-24 | E133: 2131.25 | F133: 2130.57 | G133: 2103.13 | H133: 2075.02 | I133: 2047.58 | J133: 2158.68 | K133: 2186.12 | L133: 2214.23 | M133: 2158 | N133: 2102.45 | O133: 2434000 | P133: -4.64%
A134: 124 | B134: Chemical | C134: PIIND | D134: 2021-06-24 | E134: 2852.00 | F134: 2832.30 | G134: 2789.80 | H134: 2727.60 | I134: 2685.10 | J134: 2894.50 | K134: 2937.00 | L134: 2999.20 | M134: 2874.8 | N134: 2770.1 | O134: 687000 | P134: 7.13%
A135: 125 | B135: Banking | C135: PNB | D135: 2021-06-24 | E135: 40.20 | F135: 40.13 | G135: 38.77 | H135: 37.33 | I135: 35.97 | J135: 41.57 | K135: 42.93 | L135: 44.37 | M135: 41.5 | N135: 38.7 | O135: 303104000 | P135: -4.55%
A136: 126 | B136: Power | C136: POWERGRID | D136: 2021-06-24 | E136: 233.05 | F136: 236.25 | G136: 227.35 | H136: 221.65 | I136: 212.75 | J136: 241.95 | K136: 250.85 | L136: 256.55 | M136: 245.15 | N136: 230.55 | O136: 25524000 | P136: 6.21%
A137: 127 | B137: Media | C137: PVR | D137: 2021-06-24 | E137: 1421.00 | F137: 1406.55 | G137: 1381.10 | H137: 1341.20 | I137: 1315.75 | J137: 1446.45 | K137: 1471.90 | L137: 1511.80 | M137: 1432 | N137: 1366.65 | O137: 1566543 | P137: -4.09%
A138: 128 | B138: Cement | C138: RAMCOCEM | D138: 2021-06-24 | E138: 1023.30 | F138: 1021.20 | G138: 999.40 | H138: 975.50 | I138: 953.70 | J138: 1045.10 | K138: 1066.90 | L138: 1090.80 | M138: 1043 | N138: 997.3 | O138: 2044250 | P138: 3.53%
A139: 129 | B139: Banking | C139: RBLBANK | D139: 2021-06-24 | E139: 206.80 | F139: 206.40 | G139: 201.60 | H139: 196.40 | I139: 191.60 | J139: 211.60 | K139: 216.40 | L139: 221.60 | M139: 211.2 | N139: 201.2 | O139: 23684300 | P139: -4.47%
A140: 130 | B140: Power | C140: RECLTD | D140: 2021-06-24 | E140: 147.10 | F140: 148.18 | G140: 144.07 | H140: 141.03 | I140: 136.92 | J140: 151.22 | K140: 155.33 | L140: 158.37 | M140: 152.3 | N140: 145.15 | O140: 24120000 | P140: 0.50%
A141: 131 | B141: Oil_Gas | C141: RELIANCE | D141: 2021-06-24 | E141: 2225.95 | F141: 2216.23 | G141: 2197.52 | H141: 2169.08 | I141: 2150.37 | J141: 2244.67 | K141: 2263.38 | L141: 2291.82 | M141: 2234.95 | N141: 2187.8 | O141: 35835500 | P141: -1.86%
A142: 132 | B142: Metals | C142: SAIL | D142: 2021-06-24 | E142: 124.20 | F142: 124.97 | G142: 118.63 | H142: 113.07 | I142: 106.73 | J142: 130.53 | K142: 136.87 | L142: 142.43 | M142: 131.3 | N142: 119.4 | O142: 174344000 | P142: 2.25%
A143: 133 | B143: Finance | C143: SBILIFE | D143: 2021-06-24 | E143: 983.00 | F143: 979.72 | G143: 960.43 | H143: 937.87 | I143: 918.58 | J143: 1002.28 | K143: 1021.57 | L143: 1044.13 | M143: 999 | N143: 957.15 | O143: 5818500 | P143: -3.52%
A144: 134 | B144: Banking | C144: SBIN | D144: 2021-06-24 | E144: 413.65 | F144: 413.37 | G144: 402.98 | H144: 392.32 | I144: 381.93 | J144: 424.03 | K144: 434.42 | L144: 445.08 | M144: 423.75 | N144: 402.7 | O144: 86881500 | P144: 1.94%
A145: 135 | B145: Cement | C145: SHREECEM | D145: 2021-06-24 | E145: 28082.70 | F145: 28205.83 | G145: 27876.82 | H145: 27670.93 | I145: 27341.92 | J145: 28411.72 | K145: 28740.73 | L145: 28946.62 | M145: 28534.85 | N145: 27999.95 | O145: 134675 | P145: 1.26%
A146: 136 | B146: Capital_Goods | C146: SIEMENS | D146: 2021-06-24 | E146: 2024.55 | F146: 2006.20 | G146: 1980.35 | H146: 1936.15 | I146: 1910.30 | J146: 2050.40 | K146: 2076.25 | L146: 2120.45 | M146: 2032.05 | N146: 1962 | O146: 1037300 | P146: -2.61%
A147: 137 | B147: Textile | C147: SRF | D147: 2021-06-24 | E147: 7066.60 | F147: 7056.50 | G147: 6935.15 | H147: 6803.70 | I147: 6682.35 | J147: 7187.95 | K147: 7309.30 | L147: 7440.75 | M147: 7177.85 | N147: 6925.05 | O147: 304625 | P147: -0.57%
A148: 138 | B148: Finance | C148: SRTRANSFIN | D148: 2021-06-24 | E148: 1382.10 | F148: 1381.20 | G148: 1342.90 | H148: 1303.70 | I148: 1265.40 | J148: 1420.40 | K148: 1458.70 | L148: 1497.90 | M148: 1419.5 | N148: 1342 | O148: 5077200 | P148: 3.53%
A149: 139 | B149: Pharma | C149: SUNPHARMA | D149: 2021-06-24 | E149: 668.95 | F149: 665.12 | G149: 656.83 | H149: 644.72 | I149: 636.43 | J149: 677.23 | K149: 685.52 | L149: 697.63 | M149: 673.4 | N149: 653 | O149: 38700200 | P149: -1.98%
A150: 140 | B150: Media | C150: SUNTV | D150: 2021-06-24 | E150: 550.90 | F150: 539.17 | G150: 523.63 | H150: 496.37 | I150: 480.83 | J150: 566.43 | K150: 581.97 | L150: 609.23 | M150: 554.7 | N150: 511.9 | O150: 15756000 | P150: 11.14%
A151: 141 | B151: Chemical | C151: TATACHEM | D151: 2021-06-24 | E151: 713.70 | F151: 713.77 | G151: 695.48 | H151: 677.27 | I151: 658.98 | J151: 731.98 | K151: 750.27 | L151: 768.48 | M151: 732.05 | N151: 695.55 | O151: 7336000 | P151: -6.17%
A152: 142 | B152: FMCG | C152: TATACONSUM | D152: 2021-06-24 | E152: 739.50 | F152: 739.98 | G152: 732.77 | H152: 726.03 | I152: 718.82 | J152: 746.72 | K152: 753.93 | L152: 760.67 | M152: 747.2 | N152: 733.25 | O152: 6929550 | P152: -7.53%
A153: 143 | B153: Automobile | C153: TATAMOTORS | D153: 2021-06-24 | E153: 338.00 | F153: 337.88 | G153: 328.82 | H153: 319.63 | I153: 310.57 | J153: 347.07 | K153: 356.13 | L153: 365.32 | M153: 346.95 | N153: 328.7 | O153: 90675600 | P153: 0.67%
A154: 144 | B154: Power | C154: TATAPOWER | D154: 2021-06-24 | E154: 121.40 | F154: 120.85 | G154: 117.30 | H154: 113.20 | I154: 109.65 | J154: 124.95 | K154: 128.50 | L154: 132.60 | M154: 124.4 | N154: 116.75 | O154: 134014500 | P154: -2.60%
A155: 145 | B155: Metals | C155: TATASTEEL | D155: 2021-06-24 | E155: 1091.05 | F155: 1082.83 | G155: 1056.72 | H155: 1022.38 | I155: 996.27 | J155: 1117.17 | K155: 1143.28 | L155: 1177.62 | M155: 1108.95 | N155: 1048.5 | O155: 49481900 | P155: -2.37%
A156: 146 | B156: Technology | C156: TCS | D156: 2021-06-24 | E156: 3303.50 | F156: 3313.98 | G156: 3271.07 | H156: 3238.63 | I156: 3195.72 | J156: 3346.42 | K156: 3389.33 | L156: 3421.77 | M156: 3356.9 | N156: 3281.55 | O156: 7962300 | P156: 4.67%
A157: 147 | B157: Technology | C157: TECHM | D157: 2021-06-24 | E157: 1071.60 | F157: 1073.05 | G157: 1055.10 | H157: 1038.60 | I157: 1020.65 | J157: 1089.55 | K157: 1107.50 | L157: 1124.00 | M157: 1091 | N157: 1056.55 | O157: 12747000 | P157: 2.05%
A158: 148 | B158: FMCG | C158: TITAN | D158: 2021-06-24 | E158: 1710.15 | F158: 1705.63 | G158: 1691.77 | H158: 1673.38 | I158: 1659.52 | J158: 1724.02 | K158: 1737.88 | L158: 1756.27 | M158: 1719.5 | N158: 1687.25 | O158: 4300125 | P158: 4.49%
A159: 149 | B159: Pharma | C159: TORNTPHARM | D159: 2021-06-24 | E159: 2897.80 | F159: 2907.53 | G159: 2857.67 | H159: 2817.53 | I159: 2767.67 | J159: 2947.67 | K159: 2997.53 | L159: 3037.67 | M159: 2957.4 | N159: 2867.4 | O159: 701500 | P159: -1.51%
A160: 150 | B160: Power | C160: TORNTPOWER | D160: 2021-06-24 | E160: 449.00 | F160: 446.15 | G160: 436.85 | H160: 424.70 | I160: 415.40 | J160: 458.30 | K160: 467.60 | L160: 479.75 | M160: 455.45 | N160: 434 | O160: 4081500 | P160: -8.14%
A161: 151 | B161: Others | C161: TRENT | D161: 2021-06-24 | E161: 848.25 | F161: 851.32 | G161: 837.03 | H161: 825.82 | I161: 811.53 | J161: 862.53 | K161: 876.82 | L161: 888.03 | M161: 865.6 | N161: 840.1 | O161: 967150 | P161: -11.77%
A162: 152 | B162: Automobile | C162: TVSMOTOR | D162: 2021-06-24 | E162: 611.40 | F162: 606.12 | G162: 597.88 | H162: 584.37 | I162: 576.13 | J162: 619.63 | K162: 627.87 | L162: 641.38 | M162: 614.35 | N162: 592.6 | O162: 6384000 | P162: -4.96%
A163: 153 | B163: FMCG | C163: UBL | D163: 2021-06-24 | E163: 1371.50 | F163: 1374.63 | G163: 1339.42 | H163: 1307.33 | I163: 1272.12 | J163: 1406.72 | K163: 1441.93 | L163: 1474.02 | M163: 1409.85 | N163: 1342.55 | O163: 1933400 | P163: 2.75%
A164: 154 | B164: Cement | C164: ULTRACEMCO | D164: 2021-06-24 | E164: 6687.25 | F164: 6661.88 | G164: 6601.87 | H164: 6516.48 | I164: 6456.47 | J164: 6747.27 | K164: 6807.28 | L164: 6892.67 | M164: 6721.9 | N164: 6576.5 | O164: 2072000 | P164: -3.15%
A165: 155 | B165: Chemical | C165: UPL | D165: 2021-06-24 | E165: 810.65 | F165: 814.23 | G165: 788.47 | H165: 766.28 | I165: 740.52 | J165: 836.42 | K165: 862.18 | L165: 884.37 | M165: 840 | N165: 792.05 | O165: 19860100 | P165: 5.30%
A166: 156 | B166: Metals | C166: VEDL | D166: 2021-06-24 | E166: 252.30 | F166: 251.43 | G166: 243.37 | H166: 234.43 | I166: 226.37 | J166: 260.37 | K166: 268.43 | L166: 277.37 | M166: 259.5 | N166: 242.5 | O166: 126501700 | P166: 2.09%
A167: 157 | B167: Capital_Goods | C167: VOLTAS | D167: 2021-06-24 | E167: 1030.65 | F167: 1024.73 | G167: 1009.47 | H167: 988.28 | I167: 973.02 | J167: 1045.92 | K167: 1061.18 | L167: 1082.37 | M167: 1040 | N167: 1003.55 | O167: 3362500 | P167: -10.00%
A168: 158 | B168: Technology | C168: WIPRO | D168: 2021-06-24 | E168: 551.80 | F168: 553.93 | G168: 545.37 | H168: 538.93 | I168: 530.37 | J168: 560.37 | K168: 568.93 | L168: 575.37 | M168: 562.5 | N168: 547.5 | O168: 30169600 | P168: -4.60%
A169: 159 | B169: Media | C169: ZEEL | D169: 2021-06-24 | E169: 222.10 | F169: 220.28 | G169: 214.42 | H169: 206.73 | I169: 200.87 | J169: 227.97 | K169: 233.83 | L169: 241.52 | M169: 226.15 | N169: 212.6 | O169: 78165000 | P169: -2.42%
A175: Pivot Point: This is trigger point for intra day buy/sell based on the price range of the previous day
A176: As per the tool,the trader should take BUY position just above Pivot and keep the stop loss of pivot point and the first target would be Resistance 1(R1)
A177: If R1 is crossed then R2 becomes the next target with stop loss of at R1
A178: Similarly if price goes below pivot point then the trader should sell and keep a stop loss of pivot point and the first target would be S1
A179: If S1 is crossed then S2 becomes the next target with stop loss of at S1
A181: Disclaimer:
A182: This document has been prepared by the Retail Research Desk of Asit C Mehta
A183: Investment Intermediates Ltd. and is meant for use of the recipient only
A184: and is not for circulation. This document is not to be reported or
A185: copied or made available to others. It should not be considered to be
A186: taken as an offer to sell or a solicitation to buy any security. The
A187: information contained herein is from sources believed reliable. We do
A188: not represent that it is accurate or complete and it should not be
A189: relied upon as such. We may from time to time have positions in and buy
A190: and sell securities referred to herein

Sheet Cash Intra
M5: Back to Main Page
A6: FOR INTRA DAY TRADING | K6: =Main!B10 -> 2021-06-21
A8: Sr.no | C8: CLOSE RATE | D8: Pivot Point | E8: Supports | H8: Resistances
C9: Point | E9: S1 | F9: S2 | G9: S3 | H9: R1 | I9: R2 | J9: R3 | K9: HIGH | L9: LOW | M9: Total Trade Quanity in Lakhs
A10: 1 | B10: Nifty 50 | C10: 15683.35 | D10: 15631.92 | E10: 15502.33 | F10: 15321.32 | G10: 15191.73 | H10: 15812.93 | I10: 15942.52 | J10: 16123.53 | K10: 15761.5 | L10: 15450.9
A11: 2 | B11: Nifty Bank | C11: 34558 | D11: 34418.12 | E11: 34048.83 | F11: 33539.67 | G11: 33170.38 | H11: 34927.28 | I11: 35296.57 | J11: 35805.73 | K11: 34787.4 | L11: 33908.95
A12: 3 | B12: Nifty CPSE | C12: 2009.95 | D12: 2022.58 | E12: 1970.17 | F12: 1930.38 | G12: 1877.97 | H12: 2062.37 | I12: 2114.78 | J12: 2154.57 | K12: 2075 | L12: 1982.8
A13: 4 | B13: Nifty Infra | C13: 4376.65 | D13: 4358.45 | E13: 4310.40 | F13: 4244.15 | G13: 4196.10 | H13: 4424.70 | I13: 4472.75 | J13: 4539.00 | K13: 4406.5 | L13: 4292.2
A14: 5 | B14: Nifty IT | C14: 28445.6 | D14: 28535.73 | E14: 28137.42 | F14: 27829.23 | G14: 27430.92 | H14: 28843.92 | I14: 29242.23 | J14: 29550.42 | K14: 28934.05 | L14: 28227.55
A15: 6 | B15: Nifty PSE | C15: 3566.95 | D15: 3586.43 | E15: 3498.12 | F15: 3429.28 | G15: 3340.97 | H15: 3655.27 | I15: 3743.58 | J15: 3812.42 | K15: 3674.75 | L15: 3517.6
A16: 7 | B16: Nifty Midcap 50 | C16: 7347.6 | D16: 7320.80 | E16: 7170.95 | F16: 6994.30 | G16: 6844.45 | H16: 7497.45 | I16: 7647.30 | J16: 7823.95 | K16: 7470.65 | L16: 7144.15
A17: 8 | B17: ACC | C17: 2027.9 | D17: 2029.03 | E17: 1995.07 | F17: 1962.23 | G17: 1928.27 | H17: 2061.87 | I17: 2095.83 | J17: 2128.67 | K17: 2063 | L17: 1996.2 | M17: 5.02755
A18: 9 | B18: AUBANK | C18: 1027.65 | D18: 1028.42 | E18: 1006.88 | F18: 986.12 | G18: 964.58 | H18: 1049.18 | I18: 1070.72 | J18: 1091.48 | K18: 1049.95 | L18: 1007.65 | M18: 14.79855
A19: 10 | B19: AARTIIND | C19: 1770.35 | D19: 1784.15 | E19: 1738.30 | F19: 1706.25 | G19: 1660.40 | H19: 1816.20 | I19: 1862.05 | J19: 1894.10 | K19: 1830 | L19: 1752.1 | M19: 8.08127
A20: 11 | B20: ABBOTINDIA | C20: 16536.7 | D20: 16395.57 | E20: 16161.13 | F20: 15785.57 | G20: 15551.13 | H20: 16771.13 | I20: 17005.57 | J20: 17381.13 | K20: 16630 | L20: 16020 | M20: 0.18388
A21: 12 | B21: ADANIENT | C21: 1487.5 | D21: 1441.35 | E21: 1378.70 | F21: 1269.90 | G21: 1207.25 | H21: 1550.15 | I21: 1612.80 | J21: 1721.60 | K21: 1504 | L21: 1332.55 | M21: 305.26777
A22: 13 | B22: ADANIGREEN | C22: 1067.55 | D22: 1070.02 | E22: 1065.03 | F22: 1062.52 | G22: 1057.53 | H22: 1072.53 | I22: 1077.52 | J22: 1080.03 | K22: 1075 | L22: 1067.5 | M22: 12.27389
A23: 14 | B23: ADANIPORTS | C23: 694.35 | D23: 679.02 | E23: 653.43 | F23: 612.52 | G23: 586.93 | H23: 719.93 | I23: 745.52 | J23: 786.43 | K23: 704.6 | L23: 638.1 | M23: 762.66975
A24: 15 | B24: ATGL | C24: 1258.45 | D24: 1258.45 | E24: 1258.45 | F24: 1258.45 | G24: 1258.45 | H24: 1258.45 | I24: 1258.45 | J24: 1258.45 | K24: 1258.45 | L24: 1258.45 | M24: 3.44217
A25: 16 | B25: ADANITRANS | C25: 1240.15 | D25: 1240.15 | E25: 1240.15 | F25: 1240.15 | G25: 1240.15 | H25: 1240.15 | I25: 1240.15 | J25: 1240.15 | K25: 1240.15 | L25: 1240.15 | M25: 1.84482
A26: 17 | B26: ABCAPITAL | C26: 118.5 | D26: 119.58 | E26: 115.97 | F26: 113.43 | G26: 109.82 | H26: 122.12 | I26: 125.73 | J26: 128.27 | K26: 123.2 | L26: 117.05 | M26: 43.30142
A27: 18 | B27: ABFRL | C27: 201.6 | D27: 199.93 | E27: 195.47 | F27: 189.33 | G27: 184.87 | H27: 206.07 | I27: 210.53 | J27: 216.67 | K27: 204.4 | L27: 193.8 | M27: 20.24306
A28: 19 | B28: AJANTPHARM | C28: 1947.9 | D28: 1944.55 | E28: 1918.35 | F28: 1888.80 | G28: 1862.60 | H28: 1974.10 | I28: 2000.30 | J28: 2029.85 | K28: 1970.75 | L28: 1915 | M28: 0.675
A29: 20 | B29: APLLTD | C29: 976.05 | D29: 978.75 | E29: 956.70 | F29: 937.35 | G29: 915.30 | H29: 998.10 | I29: 1020.15 | J29: 1039.50 | K29: 1000.8 | L29: 959.4 | M29: 4.10916
A30: 21 | B30: ALKEM | C30: 3142.2 | D30: 3134.82 | E30: 3059.68 | F30: 2977.17 | G30: 2902.03 | H30: 3217.33 | I30: 3292.47 | J30: 3374.98 | K30: 3209.95 | L30: 3052.3 | M30: 1.61188
A31: 22 | B31: AMARAJABAT | C31: 748 | D31: 751.67 | E31: 733.58 | F31: 719.17 | G31: 701.08 | H31: 766.08 | I31: 784.17 | J31: 798.58 | K31: 769.75 | L31: 737.25 | M31: 20.5319
A32: 23 | B32: AMBUJACEM | C32: 341.3 | D32: 341.38 | E32: 335.27 | F32: 329.23 | G32: 323.12 | H32: 347.42 | I32: 353.53 | J32: 359.57 | K32: 347.5 | L32: 335.35 | M32: 31.29778
A33: 24 | B33: APOLLOHOSP | C33: 3221.5 | D33: 3212.35 | E33: 3171.70 | F33: 3121.90 | G33: 3081.25 | H33: 3262.15 | I33: 3302.80 | J33: 3352.60 | K33: 3253 | L33: 3162.55 | M33: 5.20516
A34: 25 | B34: APOLLOTYRE | C34: 227.2 | D34: 226.62 | E34: 220.58 | F34: 213.97 | G34: 207.93 | H34: 233.23 | I34: 239.27 | J34: 245.88 | K34: 232.65 | L34: 220 | M34: 49.40545
A35: 26 | B35: ASHOKLEY | C35: 116.45 | D35: 117.45 | E35: 112.55 | F35: 108.65 | G35: 103.75 | H35: 121.35 | I35: 126.25 | J35: 130.15 | K35: 122.35 | L35: 113.55 | M35: 409.21071
A36: 27 | B36: ASIANPAINT | C36: 3047.2 | D36: 3047.02 | E36: 3016.23 | F36: 2985.27 | G36: 2954.48 | H36: 3077.98 | I36: 3108.77 | J36: 3139.73 | K36: 3077.8 | L36: 3016.05 | M36: 22.9386
A37: 28 | B37: AUROPHARMA | C37: 952.45 | D37: 946.27 | E37: 923.93 | F37: 895.42 | G37: 873.08 | H37: 974.78 | I37: 997.12 | J37: 1025.63 | K37: 968.6 | L37: 917.75 | M37: 27.78336
A38: 29 | B38: DMART | C38: 3317.7 | D38: 3314.08 | E38: 3255.82 | F38: 3193.93 | G38: 3135.67 | H38: 3375.97 | I38: 3434.23 | J38: 3496.12 | K38: 3372.35 | L38: 3252.2 | M38: 7.65935
A39: 30 | B39: AXISBANK | C39: 736.3 | D39: 733.92 | E39: 724.63 | F39: 712.97 | G39: 703.68 | H39: 745.58 | I39: 754.87 | J39: 766.53 | K39: 743.2 | L39: 722.25 | M39: 81.43792
A40: 31 | B40: BAJAJ-AUTO | C40: 4167.1 | D40: 4130.15 | E40: 4066.95 | F40: 3966.80 | G40: 3903.60 | H40: 4230.30 | I40: 4293.50 | J40: 4393.65 | K40: 4193.35 | L40: 4030 | M40: 7.01993
A41: 32 | B41: BAJFINANCE | C41: 6087.05 | D41: 6066.70 | E41: 5985.40 | F41: 5883.75 | G41: 5802.45 | H41: 6168.35 | I41: 6249.65 | J41: 6351.30 | K41: 6148 | L41: 5965.05 | M41: 27.09615
A42: 33 | B42: BAJAJFINSV | C42: 11999.35 | D42: 11940.07 | E42: 11780.13 | F42: 11560.92 | G42: 11400.98 | H42: 12159.28 | I42: 12319.22 | J42: 12538.43 | K42: 12100 | L42: 11720.85 | M42: 4.89567
A43: 34 | B43: BAJAJHLDNG | C43: 3520.6 | D43: 3509.27 | E43: 3478.03 | F43: 3435.47 | G43: 3404.23 | H43: 3551.83 | I43: 3583.07 | J43: 3625.63 | K43: 3540.5 | L43: 3466.7 | M43: 0.72089
A44: 35 | B44: BALKRISIND | C44: 2292 | D44: 2278.00 | E44: 2252.00 | F44: 2212.00 | G44: 2186.00 | H44: 2318.00 | I44: 2344.00 | J44: 2384.00 | K44: 2304 | L44: 2238 | M44: 2.73098
A45: 36 | B45: BANDHANBNK | C45: 316.65 | D45: 315.55 | E45: 310.60 | F45: 304.55 | G45: 299.60 | H45: 321.60 | I45: 326.55 | J45: 332.60 | K45: 320.5 | L45: 309.5 | M45: 36.14173
A46: 37 | B46: BANKBARODA | C46: 80.2 | D46: 80.05 | E46: 77.20 | F46: 74.20 | G46: 71.35 | H46: 83.05 | I46: 85.90 | J46: 88.90 | K46: 82.9 | L46: 77.05 | M46: 676.49503
A47: 38 | B47: BANKINDIA | C47: 75.25 | D47: 75.63 | E47: 73.42 | F47: 71.58 | G47: 69.37 | H47: 77.47 | I47: 79.68 | J47: 81.52 | K47: 77.85 | L47: 73.8 | M47: 49.73255
A48: 39 | B48: BATAINDIA | C48: 1644.05 | D48: 1651.62 | E48: 1622.43 | F48: 1600.82 | G48: 1571.63 | H48: 1673.23 | I48: 1702.42 | J48: 1724.03 | K48: 1680.8 | L48: 1630 | M48: 5.36074
A49: 40 | B49: BERGEPAINT | C49: 825.6 | D49: 824.18 | E49: 813.37 | F49: 801.13 | G49: 790.32 | H49: 836.42 | I49: 847.23 | J49: 859.47 | K49: 835 | L49: 811.95 | M49: 12.81147
A50: 41 | B50: BEL | C50: 146.2 | D50: 144.57 | E50: 142.13 | F50: 138.07 | G50: 135.63 | H50: 148.63 | I50: 151.07 | J50: 155.13 | K50: 147 | L50: 140.5 | M50: 113.63848
A51: 42 | B51: BHARATFORG | C51: 726.85 | D51: 721.78 | E51: 711.67 | F51: 696.48 | G51: 686.37 | H51: 736.97 | I51: 747.08 | J51: 762.27 | K51: 731.9 | L51: 706.6 | M51: 22.12168
A52: 43 | B52: BHEL | C52: 64.25 | D52: 64.12 | E52: 60.73 | F52: 57.22 | G52: 53.83 | H52: 67.63 | I52: 71.02 | J52: 74.53 | K52: 67.5 | L52: 60.6 | M52: 854.18573
A53: 44 | B53: BPCL | C53: 472.35 | D53: 473.07 | E53: 466.03 | F53: 459.72 | G53: 452.68 | H53: 479.38 | I53: 486.42 | J53: 492.73 | K53: 480.1 | L53: 466.75 | M53: 52.91888
A54: 45 | B54: BHARTIARTL | C54: 538.75 | D54: 533.22 | E54: 524.53 | F54: 510.32 | G54: 501.63 | H54: 547.43 | I54: 556.12 | J54: 570.33 | K54: 541.9 | L54: 519 | M54: 147.23907
A55: 46 | B55: BIOCON | C55: 398.95 | D55: 396.63 | E55: 391.37 | F55: 383.78 | G55: 378.52 | H55: 404.22 | I55: 409.48 | J55: 417.07 | K55: 401.9 | L55: 389.05 | M55: 40.09623
A56: 47 | B56: BBTC | C56: 1307.3 | D56: 1318.68 | E56: 1285.12 | F56: 1262.93 | G56: 1229.37 | H56: 1340.87 | I56: 1374.43 | J56: 1396.62 | K56: 1352.25 | L56: 1296.5 | M56: 1.40558
A57: 48 | B57: BOSCHLTD | C57: 15211.3 | D57: 15281.77 | E57: 15018.53 | F57: 14825.77 | G57: 14562.53 | H57: 15474.53 | I57: 15737.77 | J57: 15930.53 | K57: 15545 | L57: 15089 | M57: 0.55028
A58: 49 | B58: BRITANNIA | C58: 3619.2 | D58: 3631.07 | E58: 3583.13 | F58: 3547.07 | G58: 3499.13 | H58: 3667.13 | I58: 3715.07 | J58: 3751.13 | K58: 3679 | L58: 3595 | M58: 7.31807
A59: 50 | B59: CESC | C59: 764.5 | D59: 770.17 | E59: 750.43 | F59: 736.37 | G59: 716.63 | H59: 784.23 | I59: 803.97 | J59: 818.03 | K59: 789.9 | L59: 756.1 | M59: 12.25659
A60: 51 | B60: CADILAHC | C60: 620.4 | D60: 616.73 | E60: 607.27 | F60: 594.13 | G60: 584.67 | H60: 629.87 | I60: 639.33 | J60: 652.47 | K60: 626.2 | L60: 603.6 | M60: 52.18888
A61: 52 | B61: CANBK | C61: 147.4 | D61: 147.25 | E61: 141.60 | F61: 135.80 | G61: 130.15 | H61: 153.05 | I61: 158.70 | J61: 164.50 | K61: 152.9 | L61: 141.45 | M61: 190.3044
A62: 53 | B62: CASTROLIND | C62: 147.2 | D62: 145.88 | E62: 142.32 | F62: 137.43 | G62: 133.87 | H62: 150.77 | I62: 154.33 | J62: 159.22 | K62: 149.45 | L62: 141 | M62: 16.1419
A63: 54 | B63: CHOLAFIN | C63: 538.5 | D63: 536.92 | E63: 519.58 | F63: 500.67 | G63: 483.33 | H63: 555.83 | I63: 573.17 | J63: 592.08 | K63: 554.25 | L63: 518 | M63: 55.04915
A64: 55 | B64: CIPLA | C64: 960.9 | D64: 957.97 | E64: 948.28 | F64: 935.67 | G64: 925.98 | H64: 970.58 | I64: 980.27 | J64: 992.88 | K64: 967.65 | L64: 945.35 | M64: 49.78288
A65: 56 | B65: CUB | C65: 164.3 | D65: 164.03 | E65: 161.27 | F65: 158.23 | G65: 155.47 | H65: 167.07 | I65: 169.83 | J65: 172.87 | K65: 166.8 | L65: 161 | M65: 23.18992
A66: 57 | B66: COALINDIA | C66: 146.4 | D66: 148.43 | E66: 143.07 | F66: 139.73 | G66: 134.37 | H66: 151.77 | I66: 157.13 | J66: 160.47 | K66: 153.8 | L66: 145.1 | M66: 248.23176
A67: 58 | B67: COFORGE | C67: 3971.05 | D67: 3963.30 | E67: 3877.75 | F67: 3784.45 | G67: 3698.90 | H67: 4056.60 | I67: 4142.15 | J67: 4235.45 | K67: 4048.85 | L67: 3870 | M67: 4.12475
A68: 59 | B68: COLPAL | C68: 1689.85 | D68: 1699.28 | E68: 1670.57 | F68: 1651.28 | G68: 1622.57 | H68: 1718.57 | I68: 1747.28 | J68: 1766.57 | K68: 1728 | L68: 1680 | M68: 8.55999
A69: 60 | B69: CONCOR | C69: 688.35 | D69: 683.03 | E69: 674.32 | F69: 660.28 | G69: 651.57 | H69: 697.07 | I69: 705.78 | J69: 719.82 | K69: 691.75 | L69: 669 | M69: 36.41682
A70: 61 | B70: COROMANDEL | C70: 877.3 | D70: 875.52 | E70: 854.03 | F70: 830.77 | G70: 809.28 | H70: 898.78 | I70: 920.27 | J70: 943.53 | K70: 897 | L70: 852.25 | M70: 6.36484
A71: 62 | B71: CROMPTON | C71: 421.2 | D71: 421.97 | E71: 414.43 | F71: 407.67 | G71: 400.13 | H71: 428.73 | I71: 436.27 | J71: 443.03 | K71: 429.5 | L71: 415.2 | M71: 14.81724
A72: 63 | B72: CUMMINSIND | C72: 833.05 | D72: 832.02 | E72: 819.03 | F72: 805.02 | G72: 792.03 | H72: 846.03 | I72: 859.02 | J72: 873.03 | K72: 845 | L72: 818 | M72: 10.79697
A73: 64 | B73: DLF | C73: 294.85 | D73: 292.17 | E73: 285.18 | F73: 275.52 | G73: 268.53 | H73: 301.83 | I73: 308.82 | J73: 318.48 | K73: 299.15 | L73: 282.5 | M73: 125.63202
A74: 65 | B74: DABUR | C74: 577.1 | D74: 576.87 | E74: 571.83 | F74: 566.57 | G74: 561.53 | H74: 582.13 | I74: 587.17 | J74: 592.43 | K74: 581.9 | L74: 571.6 | M74: 39.01362
A75: 66 | B75: DALBHARAT | C75: 1789.8 | D75: 1785.28 | E75: 1732.52 | F75: 1675.23 | G75: 1622.47 | H75: 1842.57 | I75: 1895.33 | J75: 1952.62 | K75: 1838.05 | L75: 1728 | M75: 1.40222
A76: 67 | B76: DHANI | C76: 186.1 | D76: 189.82 | E76: 181.83 | F76: 177.57 | G76: 169.58 | H76: 194.08 | I76: 202.07 | J76: 206.33 | K76: 197.8 | L76: 185.55 | M76: 19.69878
A77: 68 | B77: DIVISLAB | C77: 4197.3 | D77: 4235.92 | E77: 4107.88 | F77: 4018.47 | G77: 3890.43 | H77: 4325.33 | I77: 4453.37 | J77: 4542.78 | K77: 4363.95 | L77: 4146.5 | M77: 15.86031
A78: 69 | B78: LALPATHLAB | C78: 3176.2 | D78: 3192.72 | E78: 3093.48 | F78: 3010.77 | G78: 2911.53 | H78: 3275.43 | I78: 3374.67 | J78: 3457.38 | K78: 3291.95 | L78: 3110 | M78: 12.28732
A79: 70 | B79: DRREDDY | C79: 5283.9 | D79: 5287.90 | E79: 5230.80 | F79: 5177.70 | G79: 5120.60 | H79: 5341.00 | I79: 5398.10 | J79: 5451.20 | K79: 5345 | L79: 5234.8 | M79: 6.97428
A80: 71 | B80: EDELWEISS | C80: 73.1 | D80: 71.12 | E80: 68.53 | F80: 63.97 | G80: 61.38 | H80: 75.68 | I80: 78.27 | J80: 82.83 | K80: 73.7 | L80: 66.55 | M80: 46.78814
A81: 72 | B81: EICHERMOT | C81: 2707.55 | D81: 2688.92 | E81: 2662.83 | F81: 2618.12 | G81: 2592.03 | H81: 2733.63 | I81: 2759.72 | J81: 2804.43 | K81: 2715 | L81: 2644.2 | M81: 6.49498
A82: 73 | B82: EMAMILTD | C82: 542.7 | D82: 541.77 | E82: 528.03 | F82: 513.37 | G82: 499.63 | H82: 556.43 | I82: 570.17 | J82: 584.83 | K82: 555.5 | L82: 527.1 | M82: 9.18452
A83: 74 | B83: ENDURANCE | C83: 1571.5 | D83: 1564.32 | E83: 1537.48 | F83: 1503.47 | G83: 1476.63 | H83: 1598.33 | I83: 1625.17 | J83: 1659.18 | K83: 1591.15 | L83: 1530.3 | M83: 1.11156
A84: 75 | B84: ESCORTS | C84: 1169.95 | D84: 1159.23 | E84: 1141.82 | F84: 1113.68 | G84: 1096.27 | H84: 1187.37 | I84: 1204.78 | J84: 1232.92 | K84: 1176.65 | L84: 1131.1 | M84: 13.44781
A85: 76 | B85: EXIDEIND | C85: 184.9 | D85: 185.35 | E85: 181.40 | F85: 177.90 | G85: 173.95 | H85: 188.85 | I85: 192.80 | J85: 196.30 | K85: 189.3 | L85: 181.85 | M85: 39.93617
A86: 77 | B86: FEDERALBNK | C86: 83.85 | D86: 83.70 | E86: 81.40 | F86: 78.95 | G86: 76.65 | H86: 86.15 | I86: 88.45 | J86: 90.90 | K86: 86 | L86: 81.25 | M86: 202.69918
A87: 78 | B87: FORTIS | C87: 232 | D87: 232.10 | E87: 226.90 | F87: 221.80 | G87: 216.60 | H87: 237.20 | I87: 242.40 | J87: 247.50 | K87: 237.3 | L87: 227 | M87: 42.62994
A88: 79 | B88: FRETAIL | C88: 65.2 | D88: 64.75 | E88: 62.80 | F88: 60.40 | G88: 58.45 | H88: 67.15 | I88: 69.10 | J88: 71.50 | K88: 66.7 | L88: 62.35 | M88: 157.70725
A89: 80 | B89: GAIL | C89: 155.05 | D89: 156.53 | E89: 151.12 | F89: 147.18 | G89: 141.77 | H89: 160.47 | I89: 165.88 | J89: 169.82 | K89: 161.95 | L89: 152.6 | M89: 181.84052
A90: 81 | B90: GMRINFRA | C90: 28.2 | D90: 28.25 | E90: 27.35 | F90: 26.50 | G90: 25.60 | H90: 29.10 | I90: 30.00 | J90: 30.85 | K90: 29.15 | L90: 27.4 | M90: 339.75886
A91: 82 | B91: GICRE | C91: 201.65 | D91: 200.02 | E91: 192.63 | F91: 183.62 | G91: 176.23 | H91: 209.03 | I91: 216.42 | J91: 225.43 | K91: 207.4 | L91: 191 | M91: 16.22436
A92: 83 | B92: GLENMARK | C92: 640.4 | D92: 637.85 | E92: 628.55 | F92: 616.70 | G92: 607.40 | H92: 649.70 | I92: 659.00 | J92: 670.85 | K92: 647.15 | L92: 626 | M92: 19.21799
A93: 84 | B93: GODREJAGRO | C93: 555 | D93: 554.93 | E93: 543.87 | F93: 532.73 | G93: 521.67 | H93: 566.07 | I93: 577.13 | J93: 588.27 | K93: 566 | L93: 543.8 | M93: 2.18989
A94: 85 | B94: GODREJCP | C94: 892.95 | D94: 895.47 | E94: 877.48 | F94: 862.02 | G94: 844.03 | H94: 910.93 | I94: 928.92 | J94: 944.38 | K94: 913.45 | L94: 880 | M94: 14.25767
A95: 86 | B95: GODREJIND | C95: 537.65 | D95: 534.42 | E95: 524.43 | F95: 511.22 | G95: 501.23 | H95: 547.63 | I95: 557.62 | J95: 570.83 | K95: 544.4 | L95: 521.2 | M95: 1.3807
A96: 87 | B96: GODREJPROP | C96: 1387.1 | D96: 1374.35 | E96: 1344.10 | F96: 1301.10 | G96: 1270.85 | H96: 1417.35 | I96: 1447.60 | J96: 1490.60 | K96: 1404.6 | L96: 1331.35 | M96: 8.87842
A97: 88 | B97: GRASIM | C97: 1480.75 | D97: 1463.33 | E97: 1437.47 | F97: 1394.18 | G97: 1368.32 | H97: 1506.62 | I97: 1532.48 | J97: 1575.77 | K97: 1489.2 | L97: 1420.05 | M97: 14.85497
A98: 89 | B98: GUJGASLTD | C98: 658.05 | D98: 655.67 | E98: 638.38 | F98: 618.72 | G98: 601.43 | H98: 675.33 | I98: 692.62 | J98: 712.28 | K98: 672.95 | L98: 636 | M98: 37.907
A99: 90 | B99: GSPL | C99: 325.25 | D99: 321.97 | E99: 314.53 | F99: 303.82 | G99: 296.38 | H99: 332.68 | I99: 340.12 | J99: 350.83 | K99: 329.4 | L99: 311.25 | M99: 29.49122
A100: 91 | B100: HCLTECH | C100: 975.25 | D100: 980.68 | E100: 964.67 | F100: 954.08 | G100: 938.07 | H100: 991.27 | I100: 1007.28 | J100: 1017.87 | K100: 996.7 | L100: 970.1 | M100: 56.22783
A101: 92 | B101: HDFCAMC | C101: 2945 | D101: 2964.67 | E101: 2900.33 | F101: 2855.67 | G101: 2791.33 | H101: 3009.33 | I101: 3073.67 | J101: 3118.33 | K101: 3029 | L101: 2920 | M101: 3.10441
A102: 93 | B102: HDFCBANK | C102: 1479.8 | D102: 1474.93 | E102: 1459.87 | F102: 1439.93 | G102: 1424.87 | H102: 1494.87 | I102: 1509.93 | J102: 1529.87 | K102: 1490 | L102: 1455 | M102: 59.6903
A103: 94 | B103: HDFCLIFE | C103: 709.2 | D103: 704.27 | E103: 697.53 | F103: 685.87 | G103: 679.13 | H103: 715.93 | I103: 722.67 | J103: 734.33 | K103: 711 | L103: 692.6 | M103: 65.80504
A104: 95 | B104: HAVELLS | C104: 996.5 | D104: 994.05 | E104: 979.55 | F104: 962.60 | G104: 948.10 | H104: 1011.00 | I104: 1025.50 | J104: 1042.45 | K104: 1008.55 | L104: 977.1 | M104: 13.74997
A105: 96 | B105: HEROMOTOCO | C105: 2891.35 | D105: 2896.12 | E105: 2847.23 | F105: 2803.12 | G105: 2754.23 | H105: 2940.23 | I105: 2989.12 | J105: 3033.23 | K105: 2945 | L105: 2852 | M105: 9.04203
A106: 97 | B106: HINDALCO | C106: 371.35 | D106: 368.17 | E106: 362.98 | F106: 354.62 | G106: 349.43 | H106: 376.53 | I106: 381.72 | J106: 390.08 | K106: 373.35 | L106: 359.8 | M106: 227.23111
A107: 98 | B107: HINDPETRO | C107: 295.75 | D107: 299.68 | E107: 288.82 | F107: 281.88 | G107: 271.02 | H107: 306.62 | I107: 317.48 | J107: 324.42 | K107: 310.55 | L107: 292.75 | M107: 72.22425
A108: 99 | B108: HINDUNILVR | C108: 2482.9 | D108: 2461.53 | E108: 2426.37 | F108: 2369.83 | G108: 2334.67 | H108: 2518.07 | I108: 2553.23 | J108: 2609.77 | K108: 2496.7 | L108: 2405 | M108: 39.37751
A109: 100 | B109: HINDZINC | C109: 328.9 | D109: 328.35 | E109: 324.05 | F109: 319.20 | G109: 314.90 | H109: 333.20 | I109: 337.50 | J109: 342.35 | K109: 332.65 | L109: 323.5 | M109: 21.92582
A110: 101 | B110: HUDCO | C110: 50.3 | D110: 50.38 | E110: 48.92 | F110: 47.53 | G110: 46.07 | H110: 51.77 | I110: 53.23 | J110: 54.62 | K110: 51.85 | L110: 49 | M110: 32.35092
A111: 102 | B111: HDFC | C111: 2488.1 | D111: 2484.05 | E111: 2457.10 | F111: 2426.10 | G111: 2399.15 | H111: 2515.05 | I111: 2542.00 | J111: 2573.00 | K111: 2511 | L111: 2453.05 | M111: 30.82747
A112: 103 | B112: ICICIBANK | C112: 630.4 | D112: 629.23 | E112: 621.87 | F112: 613.33 | G112: 605.97 | H112: 637.77 | I112: 645.13 | J112: 653.67 | K112: 636.6 | L112: 620.7 | M112: 138.2069
A113: 104 | B113: ICICIGI | C113: 1534 | D113: 1520.07 | E113: 1499.03 | F113: 1464.07 | G113: 1443.03 | H113: 1555.03 | I113: 1576.07 | J113: 1611.03 | K113: 1541.1 | L113: 1485.1 | M113: 7.04322
A114: 105 | B114: ICICIPRULI | C114: 580 | D114: 584.40 | E114: 571.85 | F114: 563.70 | G114: 551.15 | H114: 592.55 | I114: 605.10 | J114: 613.25 | K114: 596.95 | L114: 576.25 | M114: 21.1363
A115: 106 | B115: ISEC | C115: 639.3 | D115: 634.60 | E115: 619.70 | F115: 600.10 | G115: 585.20 | H115: 654.20 | I115: 669.10 | J115: 688.70 | K115: 649.5 | L115: 615 | M115: 6.8272
A116: 107 | B116: IDFCFIRSTB | C116: 57.6 | D116: 57.05 | E116: 55.65 | F116: 53.70 | G116: 52.30 | H116: 59.00 | I116: 60.40 | J116: 62.35 | K116: 58.45 | L116: 55.1 | M116: 383.71621
A117: 108 | B117: ITC | C117: 204.55 | D117: 204.50 | E117: 202.55 | F117: 200.55 | G117: 198.60 | H117: 206.50 | I117: 208.45 | J117: 210.45 | K117: 206.45 | L117: 202.5 | M117: 235.67549
A118: 109 | B118: IBULHSGFIN | C118: 278.9 | D118: 278.68 | E118: 268.57 | F118: 258.23 | G118: 248.12 | H118: 289.02 | I118: 299.13 | J118: 309.47 | K118: 288.8 | L118: 268.35 | M118: 313.40003
A119: 110 | B119: INDHOTEL | C119: 135.25 | D119: 132.50 | E119: 127.75 | F119: 120.25 | G119: 115.50 | H119: 140.00 | I119: 144.75 | J119: 152.25 | K119: 137.25 | L119: 125 | M119: 70.08318
A120: 111 | B120: IOC | C120: 112.3 | D120: 112.97 | E120: 110.33 | F120: 108.37 | G120: 105.73 | H120: 114.93 | I120: 117.57 | J120: 119.53 | K120: 115.6 | L120: 111 | M120: 162.11302
A121: 112 | B121: IRCTC | C121: 2011.7 | D121: 2020.20 | E121: 1970.15 | F121: 1928.60 | G121: 1878.55 | H121: 2061.75 | I121: 2111.80 | J121: 2153.35 | K121: 2070.25 | L121: 1978.65 | M121: 13.04337
A122: 113 | B122: IGL | C122: 531.95 | D122: 532.53 | E122: 523.07 | F122: 514.18 | G122: 504.72 | H122: 541.42 | I122: 550.88 | J122: 559.77 | K122: 542 | L122: 523.65 | M122: 36.97836
A123: 114 | B123: INDUSTOWER | C123: 246.15 | D123: 244.32 | E123: 239.83 | F123: 233.52 | G123: 229.03 | H123: 250.63 | I123: 255.12 | J123: 261.43 | K123: 248.8 | L123: 238 | M123: 28.6721
A124: 115 | B124: INDUSINDBK | C124: 995.4 | D124: 985.07 | E124: 970.33 | F124: 945.27 | G124: 930.53 | H124: 1010.13 | I124: 1024.87 | J124: 1049.93 | K124: 999.8 | L124: 960 | M124: 48.95262
A125: 116 | B125: NAUKRI | C125: 4998.75 | D125: 4962.58 | E125: 4877.17 | F125: 4755.58 | G125: 4670.17 | H125: 5084.17 | I125: 5169.58 | J125: 5291.17 | K125: 5048 | L125: 4841 | M125: 10.43645
A126: 117 | B126: INFY | C126: 1503.3 | D126: 1502.17 | E126: 1488.53 | F126: 1473.77 | G126: 1460.13 | H126: 1516.93 | I126: 1530.57 | J126: 1545.33 | K126: 1515.8 | L126: 1487.4 | M126: 135.33974
A127: 118 | B127: INDIGO | C127: 1702.7 | D127: 1694.68 | E127: 1673.12 | F127: 1643.53 | G127: 1621.97 | H127: 1724.27 | I127: 1745.83 | J127: 1775.42 | K127: 1716.25 | L127: 1665.1 | M127: 4.77005
A128: 119 | B128: IPCALAB | C128: 1992.85 | D128: 1998.58 | E128: 1958.37 | F128: 1923.88 | G128: 1883.67 | H128: 2033.07 | I128: 2073.28 | J128: 2107.77 | K128: 2038.8 | L128: 1964.1 | M128: 4.2375
A129: 120 | B129: JSWENERGY | C129: 157.95 | D129: 155.22 | E129: 148.03 | F129: 138.12 | G129: 130.93 | H129: 165.13 | I129: 172.32 | J129: 182.23 | K129: 162.4 | L129: 145.3 | M129: 84.66559
A130: 121 | B130: JSWSTEEL | C130: 670.6 | D130: 674.37 | E130: 652.33 | F130: 634.07 | G130: 612.03 | H130: 692.63 | I130: 714.67 | J130: 732.93 | K130: 696.4 | L130: 656.1 | M130: 135.056
A131: 122 | B131: JINDALSTEL | C131: 388.35 | D131: 382.78 | E131: 370.57 | F131: 352.78 | G131: 340.57 | H131: 400.57 | I131: 412.78 | J131: 430.57 | K131: 395 | L131: 365 | M131: 224.97537
A132: 123 | B132: JUBLFOOD | C132: 3292.2 | D132: 3267.75 | E132: 3225.50 | F132: 3158.80 | G132: 3116.55 | H132: 3334.45 | I132: 3376.70 | J132: 3443.40 | K132: 3310 | L132: 3201.05 | M132: 7.20815
A133: 124 | B133: KOTAKBANK | C133: 1760.45 | D133: 1756.78 | E133: 1736.92 | F133: 1713.38 | G133: 1693.52 | H133: 1780.32 | I133: 1800.18 | J133: 1823.72 | K133: 1776.65 | L133: 1733.25 | M133: 26.78789
A134: 125 | B134: L&TFH | C134: 91.45 | D134: 91.78 | E134: 88.62 | F134: 85.78 | G134: 82.62 | H134: 94.62 | I134: 97.78 | J134: 100.62 | K134: 94.95 | L134: 88.95 | M134: 223.84326
A135: 126 | B135: LTTS | C135: 2794.6 | D135: 2800.92 | E135: 2727.83 | F135: 2661.07 | G135: 2587.98 | H135: 2867.68 | I135: 2940.77 | J135: 3007.53 | K135: 2874 | L135: 2734.15 | M135: 2.27143
A136: 127 | B136: LICHSGFIN | C136: 469.9 | D136: 471.68 | E136: 456.87 | F136: 443.83 | G136: 429.02 | H136: 484.72 | I136: 499.53 | J136: 512.57 | K136: 486.5 | L136: 458.65 | M136: 93.10454
A137: 128 | B137: LTI | C137: 4072.5 | D137: 4102.13 | E137: 3970.52 | F137: 3868.53 | G137: 3736.92 | H137: 4204.12 | I137: 4335.73 | J137: 4437.72 | K137: 4233.75 | L137: 4000.15 | M137: 4.63743
A138: 129 | B138: LT | C138: 1476 | D138: 1475.68 | E138: 1460.42 | F138: 1444.83 | G138: 1429.57 | H138: 1491.27 | I138: 1506.53 | J138: 1522.12 | K138: 1490.95 | L138: 1460.1 | M138: 46.49835
A139: 130 | B139: LUPIN | C139: 1155.6 | D139: 1156.53 | E139: 1140.17 | F139: 1124.73 | G139: 1108.37 | H139: 1171.97 | I139: 1188.33 | J139: 1203.77 | K139: 1172.9 | L139: 1141.1 | M139: 13.79262
A140: 131 | B140: MRF | C140: 82644.1 | D140: 82097.17 | E140: 81046.93 | F140: 79449.77 | G140: 78399.53 | H140: 83694.33 | I140: 84744.57 | J140: 86341.73 | K140: 83147.4 | L140: 80500 | M140: 0.32641
A141: 132 | B141: MGL | C141: 1188.2 | D141: 1201.22 | E141: 1147.48 | F141: 1106.77 | G141: 1053.03 | H141: 1241.93 | I141: 1295.67 | J141: 1336.38 | K141: 1254.95 | L141: 1160.5 | M141: 11.36427
A142: 133 | B142: M&MFIN | C142: 158.65 | D142: 159.03 | E142: 153.87 | F142: 149.08 | G142: 143.92 | H142: 163.82 | I142: 168.98 | J142: 173.77 | K142: 164.2 | L142: 154.25 | M142: 121.0477
A143: 134 | B143: M&M | C143: 781.55 | D143: 787.87 | E143: 766.78 | F143: 752.02 | G143: 730.93 | H143: 802.63 | I143: 823.72 | J143: 838.48 | K143: 808.95 | L143: 773.1 | M143: 57.93496
A144: 135 | B144: MANAPPURAM | C144: 160.2 | D144: 159.78 | E144: 157.17 | F144: 154.13 | G144: 151.52 | H144: 162.82 | I144: 165.43 | J144: 168.47 | K144: 162.4 | L144: 156.75 | M144: 98.21156
A145: 136 | B145: MARICO | C145: 521.15 | D145: 518.48 | E145: 512.07 | F145: 502.98 | G145: 496.57 | H145: 527.57 | I145: 533.98 | J145: 543.07 | K145: 524.9 | L145: 509.4 | M145: 31.28347
A146: 137 | B146: MARUTI | C146: 6959.35 | D146: 6923.40 | E146: 6856.95 | F146: 6754.55 | G146: 6688.10 | H146: 7025.80 | I146: 7092.25 | J146: 7194.65 | K146: 6989.85 | L146: 6821 | M146: 7.97389
A147: 138 | B147: MFSL | C147: 978.2 | D147: 988.07 | E147: 958.63 | F147: 939.07 | G147: 909.63 | H147: 1007.63 | I147: 1037.07 | J147: 1056.63 | K147: 1017.5 | L147: 968.5 | M147: 16.2478
A148: 139 | B148: MINDTREE | C148: 2472 | D148: 2474.03 | E148: 2423.07 | F148: 2374.13 | G148: 2323.17 | H148: 2522.97 | I148: 2573.93 | J148: 2622.87 | K148: 2525 | L148: 2425.1 | M148: 6.68819
A149: 140 | B149: MOTHERSUMI | C149: 236.9 | D149: 235.62 | E149: 228.98 | F149: 221.07 | G149: 214.43 | H149: 243.53 | I149: 250.17 | J149: 258.08 | K149: 242.25 | L149: 227.7 | M149: 120.08278
A150: 141 | B150: MPHASIS | C150: 2032.85 | D150: 2042.12 | E150: 1984.33 | F150: 1935.82 | G150: 1878.03 | H150: 2090.63 | I150: 2148.42 | J150: 2196.93 | K150: 2099.9 | L150: 1993.6 | M150: 10.89882
A151: 142 | B151: MUTHOOTFIN | C151: 1472.4 | D151: 1468.95 | E151: 1449.85 | F151: 1427.30 | G151: 1408.20 | H151: 1491.50 | I151: 1510.60 | J151: 1533.15 | K151: 1488.05 | L151: 1446.4 | M151: 14.34839
A152: 143 | B152: NATCOPHARM | C152: 1095.8 | D152: 1080.60 | E152: 1061.20 | F152: 1026.60 | G152: 1007.20 | H152: 1115.20 | I152: 1134.60 | J152: 1169.20 | K152: 1100 | L152: 1046 | M152: 12.9181
A153: 144 | B153: NMDC | C153: 178.2 | D153: 177.10 | E153: 172.70 | F153: 167.20 | G153: 162.80 | H153: 182.60 | I153: 187.00 | J153: 192.50 | K153: 181.5 | L153: 171.6 | M153: 127.2108
A154: 145 | B154: NTPC | C154: 113.55 | D154: 114.87 | E154: 111.58 | F154: 109.62 | G154: 106.33 | H154: 116.83 | I154: 120.12 | J154: 122.08 | K154: 118.15 | L154: 112.9 | M154: 439.27941
A155: 146 | B155: NATIONALUM | C155: 67.65 | D155: 67.33 | E155: 65.37 | F155: 63.08 | G155: 61.12 | H155: 69.62 | I155: 71.58 | J155: 73.87 | K155: 69.3 | L155: 65.05 | M155: 462.81471
A156: 147 | B156: NAVINFLUOR | C156: 3349.75 | D156: 3344.78 | E156: 3280.82 | F156: 3211.88 | G156: 3147.92 | H156: 3413.72 | I156: 3477.68 | J156: 3546.62 | K156: 3408.75 | L156: 3275.85 | M156: 1.43724
A157: 148 | B157: NESTLEIND | C157: 17670.65 | D157: 17789.87 | E157: 17480.78 | F157: 17290.92 | G157: 16981.83 | H157: 17979.73 | I157: 18288.82 | J157: 18478.68 | K157: 18098.95 | L157: 17600 | M157: 1.4767
A158: 149 | B158: NAM-INDIA | C158: 356.2 | D158: 356.32 | E158: 349.98 | F158: 343.77 | G158: 337.43 | H158: 362.53 | I158: 368.87 | J158: 375.08 | K158: 362.65 | L158: 350.1 | M158: 6.56121
A159: 150 | B159: OBEROIRLTY | C159: 617.35 | D159: 620.88 | E159: 601.47 | F159: 585.58 | G159: 566.17 | H159: 636.77 | I159: 656.18 | J159: 672.07 | K159: 640.3 | L159: 605 | M159: 5.11018
A160: 151 | B160: ONGC | C160: 120.25 | D160: 121.23 | E160: 117.92 | F160: 115.58 | G160: 112.27 | H160: 123.57 | I160: 126.88 | J160: 129.22 | K160: 124.55 | L160: 118.9 | M160: 879.1273
A161: 152 | B161: OIL | C161: 148.5 | D161: 147.38 | E161: 145.12 | F161: 141.73 | G161: 139.47 | H161: 150.77 | I161: 153.03 | J161: 156.42 | K161: 149.65 | L161: 144 | M161: 24.05196
A162: 153 | B162: OFSS | C162: 3536.4 | D162: 3576.80 | E162: 3483.60 | F162: 3430.80 | G162: 3337.60 | H162: 3629.60 | I162: 3722.80 | J162: 3775.60 | K162: 3670 | L162: 3524 | M162: 1.18288
A163: 154 | B163: PIIND | C163: 2853.2 | D163: 2833.38 | E163: 2791.87 | F163: 2730.53 | G163: 2689.02 | H163: 2894.72 | I163: 2936.23 | J163: 2997.57 | K163: 2874.9 | L163: 2772.05 | M163: 3.33538
A164: 155 | B164: PAGEIND | C164: 29698.95 | D164: 29718.48 | E164: 29380.47 | F164: 29061.98 | G164: 28723.97 | H164: 30036.97 | I164: 30374.98 | J164: 30693.47 | K164: 30056.5 | L164: 29400 | M164: 0.20668
A165: 156 | B165: PETRONET | C165: 225.85 | D165: 226.90 | E165: 223.60 | F165: 221.35 | G165: 218.05 | H165: 229.15 | I165: 232.45 | J165: 234.70 | K165: 230.2 | L165: 224.65 | M165: 51.32062
A166: 157 | B166: PFIZER | C166: 5403.25 | D166: 5414.42 | E166: 5368.83 | F166: 5334.42 | G166: 5288.83 | H166: 5448.83 | I166: 5494.42 | J166: 5528.83 | K166: 5460 | L166: 5380 | M166: 0.82062
A167: 158 | B167: PIDILITIND | C167: 2125.55 | D167: 2125.98 | E167: 2094.12 | F167: 2062.68 | G167: 2030.82 | H167: 2157.42 | I167: 2189.28 | J167: 2220.72 | K167: 2157.85 | L167: 2094.55 | M167: 5.0362
A168: 159 | B168: PEL | C168: 2236.5 | D168: 2203.33 | E168: 2151.67 | F168: 2066.83 | G168: 2015.17 | H168: 2288.17 | I168: 2339.83 | J168: 2424.67 | K168: 2255 | L168: 2118.5 | M168: 14.03778
A169: 160 | B169: POLYCAB | C169: 1936.3 | D169: 1931.23 | E169: 1906.47 | F169: 1876.63 | G169: 1851.87 | H169: 1961.07 | I169: 1985.83 | J169: 2015.67 | K169: 1956 | L169: 1901.4 | M169: 2.66616
A170: 161 | B170: PFC | C170: 124.35 | D170: 125.08 | E170: 122.32 | F170: 120.28 | G170: 117.52 | H170: 127.12 | I170: 129.88 | J170: 131.92 | K170: 127.85 | L170: 123.05 | M170: 129.78891
A171: 162 | B171: POWERGRID | C171: 233 | D171: 236.03 | E171: 227.07 | F171: 221.13 | G171: 212.17 | H171: 241.97 | I171: 250.93 | J171: 256.87 | K171: 245 | L171: 230.1 | M171: 277.19
A172: 163 | B172: PRESTIGE | C172: 282.05 | D172: 279.97 | E172: 276.08 | F172: 270.12 | G172: 266.23 | H172: 285.93 | I172: 289.82 | J172: 295.78 | K172: 283.85 | L172: 274 | M172: 3.56722
A173: 164 | B173: PGHH | C173: 13260.55 | D173: 13244.55 | E173: 13022.25 | F173: 12783.95 | G173: 12561.65 | H173: 13482.85 | I173: 13705.15 | J173: 13943.45 | K173: 13466.85 | L173: 13006.25 | M173: 0.06504
A174: 165 | B174: PNB | C174: 40.3 | D174: 40.30 | E174: 38.90 | F174: 37.50 | G174: 36.10 | H174: 41.70 | I174: 43.10 | J174: 44.50 | K174: 41.7 | L174: 38.9 | M174: 1174.16542
A175: 166 | B175: RBLBANK | C175: 206.75 | D175: 206.47 | E175: 201.58 | F175: 196.42 | G175: 191.53 | H175: 211.63 | I175: 216.52 | J175: 221.68 | K175: 211.35 | L175: 201.3 | M175: 124.11452
A176: 167 | B176: RECLTD | C176: 147.05 | D176: 148.05 | E176: 144.00 | F176: 140.95 | G176: 136.90 | H176: 151.10 | I176: 155.15 | J176: 158.20 | K176: 152.1 | L176: 145 | M176: 56.7203
A177: 168 | B177: RAJESHEXPO | C177: 604.85 | D177: 596.78 | E177: 574.32 | F177: 543.78 | G177: 521.32 | H177: 627.32 | I177: 649.78 | J177: 680.32 | K177: 619.25 | L177: 566.25 | M177: 3.59041
A178: 169 | B178: RELIANCE | C178: 2225.65 | D178: 2215.00 | E178: 2195.00 | F178: 2164.35 | G178: 2144.35 | H178: 2245.65 | I178: 2265.65 | J178: 2296.30 | K178: 2235 | L178: 2184.35 | M178: 135.53801
A179: 170 | B179: SBICARD | C179: 1005.9 | D179: 1000.70 | E179: 986.50 | F179: 967.10 | G179: 952.90 | H179: 1020.10 | I179: 1034.30 | J179: 1053.70 | K179: 1014.9 | L179: 981.3 | M179: 526.08706
A180: 171 | B180: SBILIFE | C180: 982.55 | D180: 980.00 | E180: 959.30 | F180: 936.05 | G180: 915.35 | H180: 1003.25 | I180: 1023.95 | J180: 1047.20 | K180: 1000.7 | L180: 956.75 | M180: 18.88723
A181: 172 | B181: SRF | C181: 7069.2 | D181: 7063.77 | E181: 6938.53 | F181: 6807.87 | G181: 6682.63 | H181: 7194.43 | I181: 7319.67 | J181: 7450.33 | K181: 7189 | L181: 6933.1 | M181: 1.95083
A182: 173 | B182: SANOFI | C182: 7609.75 | D182: 7635.82 | E182: 7485.48 | F182: 7361.22 | G182: 7210.88 | H182: 7760.08 | I182: 7910.42 | J182: 8034.68 | K182: 7786.15 | L182: 7511.55 | M182: 0.31622
A183: 174 | B183: SHREECEM | C183: 28045.8 | D183: 28164.87 | E183: 27759.73 | F183: 27473.67 | G183: 27068.53 | H183: 28450.93 | I183: 28856.07 | J183: 29142.13 | K183: 28570 | L183: 27878.8 | M183: 0.5108
A184: 175 | B184: SRTRANSFIN | C184: 1380 | D184: 1382.65 | E184: 1341.35 | F184: 1302.70 | G184: 1261.40 | H184: 1421.30 | I184: 1462.60 | J184: 1501.25 | K184: 1423.95 | L184: 1344 | M184: 29.55858
A185: 176 | B185: SIEMENS | C185: 2024.05 | D185: 2008.25 | E185: 1976.50 | F185: 1928.95 | G185: 1897.20 | H185: 2055.80 | I185: 2087.55 | J185: 2135.10 | K185: 2040 | L185: 1960.7 | M185: 2.43147
A186: 177 | B186: SBIN | C186: 412.9 | D186: 413.15 | E186: 402.40 | F186: 391.90 | G186: 381.15 | H186: 423.65 | I186: 434.40 | J186: 444.90 | K186: 423.9 | L186: 402.65 | M186: 457.48727
A187: 178 | B187: SAIL | C187: 124 | D187: 124.18 | E187: 119.37 | F187: 114.73 | G187: 109.92 | H187: 128.82 | I187: 133.63 | J187: 138.27 | K187: 129 | L187: 119.55 | M187: 875.06711
A188: 179 | B188: SUNPHARMA | C188: 668.5 | D188: 664.73 | E188: 656.47 | F188: 644.43 | G188: 636.17 | H188: 676.77 | I188: 685.03 | J188: 697.07 | K188: 673 | L188: 652.7 | M188: 41.58743
A189: 180 | B189: SUNTV | C189: 549.55 | D189: 538.68 | E189: 523.42 | F189: 497.28 | G189: 482.02 | H189: 564.82 | I189: 580.08 | J189: 606.22 | K189: 553.95 | L189: 512.55 | M189: 65.36218
A190: 181 | B190: SYNGENE | C190: 573.15 | D190: 574.30 | E190: 566.35 | F190: 559.55 | G190: 551.60 | H190: 581.10 | I190: 589.05 | J190: 595.85 | K190: 582.25 | L190: 567.5 | M190: 2.56374
A191: 182 | B191: TVSMOTOR | C191: 610.4 | D191: 606.10 | E191: 597.20 | F191: 584.00 | G191: 575.10 | H191: 619.30 | I191: 628.20 | J191: 641.40 | K191: 615 | L191: 592.9 | M191: 22.17548
A192: 183 | B192: TATACHEM | C192: 714.8 | D192: 714.67 | E192: 696.18 | F192: 677.57 | G192: 659.08 | H192: 733.28 | I192: 751.77 | J192: 770.38 | K192: 733.15 | L192: 696.05 | M192: 28.78683
A193: 184 | B193: TCS | C193: 3297.3 | D193: 3310.10 | E193: 3262.20 | F193: 3227.10 | G193: 3179.20 | H193: 3345.20 | I193: 3393.10 | J193: 3428.20 | K193: 3358 | L193: 3275 | M193: 33.80431
A194: 185 | B194: TATACONSUM | C194: 739.8 | D194: 739.78 | E194: 732.12 | F194: 724.43 | G194: 716.77 | H194: 747.47 | I194: 755.13 | J194: 762.82 | K194: 747.45 | L194: 732.1 | M194: 37.62934
A195: 186 | B195: TATAMOTORS | C195: 337.4 | D195: 337.77 | E195: 328.63 | F195: 319.87 | G195: 310.73 | H195: 346.53 | I195: 355.67 | J195: 364.43 | K195: 346.9 | L195: 329 | M195: 494.40514
A196: 187 | B196: TATAPOWER | C196: 121.45 | D196: 121.03 | E196: 117.37 | F196: 113.28 | G196: 109.62 | H196: 125.12 | I196: 128.78 | J196: 132.87 | K196: 124.7 | L196: 116.95 | M196: 739.72898
A197: 188 | B197: TATASTEEL | C197: 1092.3 | D197: 1084.15 | E197: 1058.40 | F197: 1024.50 | G197: 998.75 | H197: 1118.05 | I197: 1143.80 | J197: 1177.70 | K197: 1109.9 | L197: 1050.25 | M197: 403.47077
A198: 189 | B198: TECHM | C198: 1070.7 | D198: 1072.43 | E198: 1053.27 | F198: 1035.83 | G198: 1016.67 | H198: 1089.87 | I198: 1109.03 | J198: 1126.47 | K198: 1091.6 | L198: 1055 | M198: 43.96398
A199: 190 | B199: RAMCOCEM | C199: 1021.2 | D199: 1021.23 | E199: 998.47 | F199: 975.73 | G199: 952.97 | H199: 1043.97 | I199: 1066.73 | J199: 1089.47 | K199: 1044 | L199: 998.5 | M199: 7.29282
A200: 191 | B200: TITAN | C200: 1711.3 | D200: 1707.43 | E200: 1689.87 | F200: 1668.43 | G200: 1650.87 | H200: 1728.87 | I200: 1746.43 | J200: 1767.87 | K200: 1725 | L200: 1686 | M200: 20.18319
A201: 192 | B201: TORNTPHARM | C201: 2897.7 | D201: 2906.53 | E201: 2853.17 | F201: 2808.63 | G201: 2755.27 | H201: 2951.07 | I201: 3004.43 | J201: 3048.97 | K201: 2959.9 | L201: 2862 | M201: 2.00557
A202: 193 | B202: TORNTPOWER | C202: 455.35 | D202: 452.60 | E202: 442.20 | F202: 429.05 | G202: 418.65 | H202: 465.75 | I202: 476.15 | J202: 489.30 | K202: 463 | L202: 439.45 | M202: 21.98717
A203: 194 | B203: TRENT | C203: 849.2 | D203: 851.43 | E203: 837.97 | F203: 826.73 | G203: 813.27 | H203: 862.67 | I203: 876.13 | J203: 887.37 | K203: 864.9 | L203: 840.2 | M203: 10.05831
A204: 195 | B204: UPL | C204: 808 | D204: 812.70 | E204: 786.15 | F204: 764.30 | G204: 737.75 | H204: 834.55 | I204: 861.10 | J204: 882.95 | K204: 839.25 | L204: 790.85 | M204: 81.45772
A205: 196 | B205: ULTRACEMCO | C205: 6693.9 | D205: 6668.40 | E205: 6608.85 | F205: 6523.80 | G205: 6464.25 | H205: 6753.45 | I205: 6813.00 | J205: 6898.05 | K205: 6727.95 | L205: 6583.35 | M205: 3.67329
... 29 more rows

Sheet MidCap Intra
L5: Back To Main Page
A6: FOR INTRA DAY TRADING | K6: =Main!B10 -> 2021-06-21
A9: Sr.no | B9: Scrip | C9: CLOSE RATE | D9: Pivot Point | E9: Supports | H9: Resistances
C10: Point | E10: S1 | F10: S2 | G10: S3 | H10: R1 | I10: R2 | J10: R3 | K10: HIGH | L10: LOW | M10: Total Trade Quanity in Lakhs
A11: 1 | B11: 3MINDIA | C11: 25445.4 | D11: 25302.13 | E11: 25004.27 | F11: 24563.13 | G11: 24265.27 | H11: 25743.27 | I11: 26041.13 | J11: 26482.27 | K11: 25600 | L11: 24861 | M11: 0.10227
A12: 2 | B12: ABB | C12: 1743.45 | D12: 1717.80 | E12: 1682.60 | F12: 1621.75 | G12: 1586.55 | H12: 1778.65 | I12: 1813.85 | J12: 1874.70 | K12: 1753 | L12: 1656.95 | M12: 1.2804
A13: 3 | B13: POWERINDIA | C13: 1818.8 | D13: 1801.08 | E13: 1773.27 | F13: 1727.73 | G13: 1699.92 | H13: 1846.62 | I13: 1874.43 | J13: 1919.97 | K13: 1828.9 | L13: 1755.55 | M13: 0.16696
A14: 4 | B14: ACC | C14: 2027.9 | D14: 2029.03 | E14: 1995.07 | F14: 1962.23 | G14: 1928.27 | H14: 2061.87 | I14: 2095.83 | J14: 2128.67 | K14: 2063 | L14: 1996.2 | M14: 5.02755
A15: 5 | B15: AIAENG | C15: 1983.2 | D15: 1981.38 | E15: 1954.82 | F15: 1926.43 | G15: 1899.87 | H15: 2009.77 | I15: 2036.33 | J15: 2064.72 | K15: 2007.95 | L15: 1953 | M15: 0.25222
A16: 6 | B16: APLAPOLLO | C16: 1549.9 | D16: 1545.40 | E16: 1511.20 | F16: 1472.50 | G16: 1438.30 | H16: 1584.10 | I16: 1618.30 | J16: 1657.00 | K16: 1579.6 | L16: 1506.7 | M16: 11.90498
A17: 7 | B17: AUBANK | C17: 1027.65 | D17: 1028.42 | E17: 1006.88 | F17: 986.12 | G17: 964.58 | H17: 1049.18 | I17: 1070.72 | J17: 1091.48 | K17: 1049.95 | L17: 1007.65 | M17: 14.79855
A18: 8 | B18: AARTIDRUGS | C18: 720.1 | D18: 720.60 | E18: 708.50 | F18: 696.90 | G18: 684.80 | H18: 732.20 | I18: 744.30 | J18: 755.90 | K18: 732.7 | L18: 709 | M18: 2.82121
A19: 9 | B19: AARTIIND | C19: 1770.35 | D19: 1784.15 | E19: 1738.30 | F19: 1706.25 | G19: 1660.40 | H19: 1816.20 | I19: 1862.05 | J19: 1894.10 | K19: 1830 | L19: 1752.1 | M19: 8.08127
A20: 10 | B20: AAVAS | C20: 2512.2 | D20: 2519.73 | E20: 2415.47 | F20: 2318.73 | G20: 2214.47 | H20: 2616.47 | I20: 2720.73 | J20: 2817.47 | K20: 2624 | L20: 2423 | M20: 1.54854
A21: 11 | B21: ABBOTINDIA | C21: 16536.7 | D21: 16395.57 | E21: 16161.13 | F21: 15785.57 | G21: 15551.13 | H21: 16771.13 | I21: 17005.57 | J21: 17381.13 | K21: 16630 | L21: 16020 | M21: 0.18388
A22: 12 | B22: ADANIENT | C22: 1487.5 | D22: 1441.35 | E22: 1378.70 | F22: 1269.90 | G22: 1207.25 | H22: 1550.15 | I22: 1612.80 | J22: 1721.60 | K22: 1504 | L22: 1332.55 | M22: 305.26777
A23: 13 | B23: ADANIGREEN | C23: 1067.55 | D23: 1070.02 | E23: 1065.03 | F23: 1062.52 | G23: 1057.53 | H23: 1072.53 | I23: 1077.52 | J23: 1080.03 | K23: 1075 | L23: 1067.5 | M23: 12.27389
A24: 14 | B24: ADANIPORTS | C24: 694.35 | D24: 679.02 | E24: 653.43 | F24: 612.52 | G24: 586.93 | H24: 719.93 | I24: 745.52 | J24: 786.43 | K24: 704.6 | L24: 638.1 | M24: 762.66975
A25: 15 | B25: ATGL | C25: 1258.45 | D25: 1258.45 | E25: 1258.45 | F25: 1258.45 | G25: 1258.45 | H25: 1258.45 | I25: 1258.45 | J25: 1258.45 | K25: 1258.45 | L25: 1258.45 | M25: 3.44217
A26: 16 | B26: ADANITRANS | C26: 1240.15 | D26: 1240.15 | E26: 1240.15 | F26: 1240.15 | G26: 1240.15 | H26: 1240.15 | I26: 1240.15 | J26: 1240.15 | K26: 1240.15 | L26: 1240.15 | M26: 1.84482
A27: 17 | B27: ABCAPITAL | C27: 118.5 | D27: 119.58 | E27: 115.97 | F27: 113.43 | G27: 109.82 | H27: 122.12 | I27: 125.73 | J27: 128.27 | K27: 123.2 | L27: 117.05 | M27: 43.30142
A28: 18 | B28: ABFRL | C28: 201.6 | D28: 199.93 | E28: 195.47 | F28: 189.33 | G28: 184.87 | H28: 206.07 | I28: 210.53 | J28: 216.67 | K28: 204.4 | L28: 193.8 | M28: 20.24306
A29: 19 | B29: ADVENZYMES | C29: 416.1 | D29: 423.78 | E29: 403.77 | F29: 391.43 | G29: 371.42 | H29: 436.12 | I29: 456.13 | J29: 468.47 | K29: 443.8 | L29: 411.45 | M29: 8.16292
A30: 20 | B30: AEGISCHEM | C30: 354.5 | D30: 353.03 | E30: 344.47 | F30: 334.43 | G30: 325.87 | H30: 363.07 | I30: 371.63 | J30: 381.67 | K30: 361.6 | L30: 343 | M30: 5.6262
A31: 21 | B31: AFFLE | C31: 4730.45 | D31: 4812.63 | E31: 4648.27 | F31: 4566.08 | G31: 4401.72 | H31: 4894.82 | I31: 5059.18 | J31: 5141.37 | K31: 4977 | L31: 4730.45 | M31: 1.21191
A32: 22 | B32: AJANTPHARM | C32: 1947.9 | D32: 1944.55 | E32: 1918.35 | F32: 1888.80 | G32: 1862.60 | H32: 1974.10 | I32: 2000.30 | J32: 2029.85 | K32: 1970.75 | L32: 1915 | M32: 0.675
A33: 23 | B33: AKZOINDIA | C33: 2232.05 | D33: 2245.97 | E33: 2213.18 | F33: 2194.32 | G33: 2161.53 | H33: 2264.83 | I33: 2297.62 | J33: 2316.48 | K33: 2278.75 | L33: 2227.1 | M33: 0.16806
A34: 24 | B34: ALEMBICLTD | C34: 134 | D34: 130.57 | E34: 123.43 | F34: 112.87 | G34: 105.73 | H34: 141.13 | I34: 148.27 | J34: 158.83 | K34: 137.7 | L34: 120 | M34: 26.50491
A35: 25 | B35: APLLTD | C35: 976.05 | D35: 978.75 | E35: 956.70 | F35: 937.35 | G35: 915.30 | H35: 998.10 | I35: 1020.15 | J35: 1039.50 | K35: 1000.8 | L35: 959.4 | M35: 4.10916
A36: 26 | B36: ALKEM | C36: 3142.2 | D36: 3134.82 | E36: 3059.68 | F36: 2977.17 | G36: 2902.03 | H36: 3217.33 | I36: 3292.47 | J36: 3374.98 | K36: 3209.95 | L36: 3052.3 | M36: 1.61188
A37: 27 | B37: ALKYLAMINE | C37: 3528.7 | D37: 3528.13 | E37: 3460.62 | F37: 3392.53 | G37: 3325.02 | H37: 3596.22 | I37: 3663.73 | J37: 3731.82 | K37: 3595.65 | L37: 3460.05 | M37: 0.72029
A38: 28 | B38: ALOKINDS | C38: 27.6 | D38: 27.65 | E38: 26.00 | F38: 24.40 | G38: 22.75 | H38: 29.25 | I38: 30.90 | J38: 32.50 | K38: 29.3 | L38: 26.05 | M38: 225.36266
A39: 29 | B39: AMARAJABAT | C39: 748 | D39: 751.67 | E39: 733.58 | F39: 719.17 | G39: 701.08 | H39: 766.08 | I39: 784.17 | J39: 798.58 | K39: 769.75 | L39: 737.25 | M39: 20.5319
A40: 30 | B40: AMBER | C40: 2737.05 | D40: 2742.53 | E40: 2700.32 | F40: 2663.58 | G40: 2621.37 | H40: 2779.27 | I40: 2821.48 | J40: 2858.22 | K40: 2784.75 | L40: 2705.8 | M40: 0.68877
A41: 31 | B41: AMBUJACEM | C41: 341.3 | D41: 341.38 | E41: 335.27 | F41: 329.23 | G41: 323.12 | H41: 347.42 | I41: 353.53 | J41: 359.57 | K41: 347.5 | L41: 335.35 | M41: 31.29778
A42: 32 | B42: APOLLOHOSP | C42: 3221.5 | D42: 3212.35 | E42: 3171.70 | F42: 3121.90 | G42: 3081.25 | H42: 3262.15 | I42: 3302.80 | J42: 3352.60 | K42: 3253 | L42: 3162.55 | M42: 5.20516
A43: 33 | B43: APOLLOTYRE | C43: 227.2 | D43: 226.62 | E43: 220.58 | F43: 213.97 | G43: 207.93 | H43: 233.23 | I43: 239.27 | J43: 245.88 | K43: 232.65 | L43: 220 | M43: 49.40545
A44: 34 | B44: ASHOKLEY | C44: 116.45 | D44: 117.45 | E44: 112.55 | F44: 108.65 | G44: 103.75 | H44: 121.35 | I44: 126.25 | J44: 130.15 | K44: 122.35 | L44: 113.55 | M44: 409.21071
A45: 35 | B45: ASHOKA | C45: 99.4 | D45: 96.55 | E45: 90.85 | F45: 82.30 | G45: 76.60 | H45: 105.10 | I45: 110.80 | J45: 119.35 | K45: 102.25 | L45: 88 | M45: 31.2354
A46: 36 | B46: ASIANPAINT | C46: 3047.2 | D46: 3047.02 | E46: 3016.23 | F46: 2985.27 | G46: 2954.48 | H46: 3077.98 | I46: 3108.77 | J46: 3139.73 | K46: 3077.8 | L46: 3016.05 | M46: 22.9386
A47: 37 | B47: ASTERDM | C47: 160.5 | D47: 156.77 | E47: 151.73 | F47: 142.97 | G47: 137.93 | H47: 165.53 | I47: 170.57 | J47: 179.33 | K47: 161.8 | L47: 148 | M47: 20.94379
A48: 38 | B48: ASTRAZEN | C48: 3690.15 | D48: 3698.45 | E48: 3641.70 | F48: 3593.25 | G48: 3536.50 | H48: 3746.90 | I48: 3803.65 | J48: 3852.10 | K48: 3755.2 | L48: 3650 | M48: 0.27126
A49: 39 | B49: ASTRAL | C49: 1980.45 | D49: 1964.20 | E49: 1939.25 | F49: 1898.05 | G49: 1873.10 | H49: 2005.40 | I49: 2030.35 | J49: 2071.55 | K49: 1989.15 | L49: 1923 | M49: 4.84038
A50: 40 | B50: ATUL | C50: 8925.8 | D50: 8892.23 | E50: 8809.47 | F50: 8693.13 | G50: 8610.37 | H50: 9008.57 | I50: 9091.33 | J50: 9207.67 | K50: 8975 | L50: 8775.9 | M50: 0.14443
A51: 41 | B51: AUROPHARMA | C51: 952.45 | D51: 946.27 | E51: 923.93 | F51: 895.42 | G51: 873.08 | H51: 974.78 | I51: 997.12 | J51: 1025.63 | K51: 968.6 | L51: 917.75 | M51: 27.78336
A52: 42 | B52: AVANTIFEED | C52: 583 | D52: 579.53 | E52: 565.47 | F52: 547.93 | G52: 533.87 | H52: 597.07 | I52: 611.13 | J52: 628.67 | K52: 593.6 | L52: 562 | M52: 4.91644
A53: 43 | B53: DMART | C53: 3317.7 | D53: 3314.08 | E53: 3255.82 | F53: 3193.93 | G53: 3135.67 | H53: 3375.97 | I53: 3434.23 | J53: 3496.12 | K53: 3372.35 | L53: 3252.2 | M53: 7.65935
A54: 44 | B54: AXISBANK | C54: 736.3 | D54: 733.92 | E54: 724.63 | F54: 712.97 | G54: 703.68 | H54: 745.58 | I54: 754.87 | J54: 766.53 | K54: 743.2 | L54: 722.25 | M54: 81.43792
A55: 45 | B55: BASF | C55: 2645.4 | D55: 2649.92 | E55: 2555.33 | F55: 2465.27 | G55: 2370.68 | H55: 2739.98 | I55: 2834.57 | J55: 2924.63 | K55: 2744.5 | L55: 2559.85 | M55: 0.67986
A56: 46 | B56: BEML | C56: 1372.25 | D56: 1373.55 | E56: 1339.10 | F56: 1305.95 | G56: 1271.50 | H56: 1406.70 | I56: 1441.15 | J56: 1474.30 | K56: 1408 | L56: 1340.4 | M56: 4.85149
A57: 47 | B57: BSE | C57: 895.7 | D57: 892.53 | E57: 860.07 | F57: 824.43 | G57: 791.97 | H57: 928.17 | I57: 960.63 | J57: 996.27 | K57: 925 | L57: 856.9 | M57: 7.35199
A58: 48 | B58: BAJAJ-AUTO | C58: 4167.1 | D58: 4130.15 | E58: 4066.95 | F58: 3966.80 | G58: 3903.60 | H58: 4230.30 | I58: 4293.50 | J58: 4393.65 | K58: 4193.35 | L58: 4030 | M58: 7.01993
A59: 49 | B59: BAJAJCON | C59: 297.5 | D59: 294.30 | E59: 288.60 | F59: 279.70 | G59: 274.00 | H59: 303.20 | I59: 308.90 | J59: 317.80 | K59: 300 | L59: 285.4 | M59: 7.95556
A60: 50 | B60: BAJAJELEC | C60: 994.5 | D60: 1001.47 | E60: 980.03 | F60: 965.57 | G60: 944.13 | H60: 1015.93 | I60: 1037.37 | J60: 1051.83 | K60: 1022.9 | L60: 987 | M60: 1.56469
A61: 51 | B61: BAJFINANCE | C61: 6087.05 | D61: 6066.70 | E61: 5985.40 | F61: 5883.75 | G61: 5802.45 | H61: 6168.35 | I61: 6249.65 | J61: 6351.30 | K61: 6148 | L61: 5965.05 | M61: 27.09615
A62: 52 | B62: BAJAJFINSV | C62: 11999.35 | D62: 11940.07 | E62: 11780.13 | F62: 11560.92 | G62: 11400.98 | H62: 12159.28 | I62: 12319.22 | J62: 12538.43 | K62: 12100 | L62: 11720.85 | M62: 4.89567
A63: 53 | B63: BAJAJHLDNG | C63: 3520.6 | D63: 3509.27 | E63: 3478.03 | F63: 3435.47 | G63: 3404.23 | H63: 3551.83 | I63: 3583.07 | J63: 3625.63 | K63: 3540.5 | L63: 3466.7 | M63: 0.72089
A64: 54 | B64: BALKRISIND | C64: 2292 | D64: 2278.00 | E64: 2252.00 | F64: 2212.00 | G64: 2186.00 | H64: 2318.00 | I64: 2344.00 | J64: 2384.00 | K64: 2304 | L64: 2238 | M64: 2.73098
A65: 55 | B65: BALMLAWRIE | C65: 138.15 | D65: 138.97 | E65: 134.53 | F65: 130.92 | G65: 126.48 | H65: 142.58 | I65: 147.02 | J65: 150.63 | K65: 143.4 | L65: 135.35 | M65: 5.76271
A66: 56 | B66: BALRAMCHIN | C66: 319.65 | D66: 323.38 | E66: 310.77 | F66: 301.88 | G66: 289.27 | H66: 332.27 | I66: 344.88 | J66: 353.77 | K66: 336 | L66: 314.5 | M66: 20.74877
A67: 57 | B67: BANDHANBNK | C67: 316.65 | D67: 315.55 | E67: 310.60 | F67: 304.55 | G67: 299.60 | H67: 321.60 | I67: 326.55 | J67: 332.60 | K67: 320.5 | L67: 309.5 | M67: 36.14173
A68: 58 | B68: BANKBARODA | C68: 80.2 | D68: 80.05 | E68: 77.20 | F68: 74.20 | G68: 71.35 | H68: 83.05 | I68: 85.90 | J68: 88.90 | K68: 82.9 | L68: 77.05 | M68: 676.49503
A69: 59 | B69: BANKINDIA | C69: 75.25 | D69: 75.63 | E69: 73.42 | F69: 71.58 | G69: 69.37 | H69: 77.47 | I69: 79.68 | J69: 81.52 | K69: 77.85 | L69: 73.8 | M69: 49.73255
A70: 60 | B70: MAHABANK | C70: 25.1 | D70: 25.03 | E70: 24.27 | F70: 23.43 | G70: 22.67 | H70: 25.87 | I70: 26.63 | J70: 27.47 | K70: 25.8 | L70: 24.2 | M70: 60.78959
A71: 61 | B71: BATAINDIA | C71: 1644.05 | D71: 1651.62 | E71: 1622.43 | F71: 1600.82 | G71: 1571.63 | H71: 1673.23 | I71: 1702.42 | J71: 1724.03 | K71: 1680.8 | L71: 1630 | M71: 5.36074
A72: 62 | B72: BAYERCROP | C72: 5582.1 | D72: 5595.83 | E72: 5516.67 | F72: 5451.23 | G72: 5372.07 | H72: 5661.27 | I72: 5740.43 | J72: 5805.87 | K72: 5675 | L72: 5530.4 | M72: 0.51006
A73: 63 | B73: BERGEPAINT | C73: 825.6 | D73: 824.18 | E73: 813.37 | F73: 801.13 | G73: 790.32 | H73: 836.42 | I73: 847.23 | J73: 859.47 | K73: 835 | L73: 811.95 | M73: 12.81147
A74: 64 | B74: BDL | C74: 356.7 | D74: 358.57 | E74: 348.23 | F74: 339.77 | G74: 329.43 | H74: 367.03 | I74: 377.37 | J74: 385.83 | K74: 368.9 | L74: 350.1 | M74: 1.82699
A75: 65 | B75: BEL | C75: 146.2 | D75: 144.57 | E75: 142.13 | F75: 138.07 | G75: 135.63 | H75: 148.63 | I75: 151.07 | J75: 155.13 | K75: 147 | L75: 140.5 | M75: 113.63848
A76: 66 | B76: BHARATFORG | C76: 726.85 | D76: 721.78 | E76: 711.67 | F76: 696.48 | G76: 686.37 | H76: 736.97 | I76: 747.08 | J76: 762.27 | K76: 731.9 | L76: 706.6 | M76: 22.12168
A77: 67 | B77: BHEL | C77: 64.25 | D77: 64.12 | E77: 60.73 | F77: 57.22 | G77: 53.83 | H77: 67.63 | I77: 71.02 | J77: 74.53 | K77: 67.5 | L77: 60.6 | M77: 854.18573
A78: 68 | B78: BPCL | C78: 472.35 | D78: 473.07 | E78: 466.03 | F78: 459.72 | G78: 452.68 | H78: 479.38 | I78: 486.42 | J78: 492.73 | K78: 480.1 | L78: 466.75 | M78: 52.91888
A79: 69 | B79: BHARATRAS | C79: 12336.65 | D79: 12419.85 | E79: 12093.25 | F79: 11849.85 | G79: 11523.25 | H79: 12663.25 | I79: 12989.85 | J79: 13233.25 | K79: 12746.45 | L79: 12176.45 | M79: 0.03421
A80: 70 | B80: BHARTIARTL | C80: 538.75 | D80: 533.22 | E80: 524.53 | F80: 510.32 | G80: 501.63 | H80: 547.43 | I80: 556.12 | J80: 570.33 | K80: 541.9 | L80: 519 | M80: 147.23907
A81: 71 | B81: BIOCON | C81: 398.95 | D81: 396.63 | E81: 391.37 | F81: 383.78 | G81: 378.52 | H81: 404.22 | I81: 409.48 | J81: 417.07 | K81: 401.9 | L81: 389.05 | M81: 40.09623
A82: 72 | B82: BIRLACORPN | C82: 1180.05 | D82: 1184.28 | E82: 1140.77 | F82: 1101.48 | G82: 1057.97 | H82: 1223.57 | I82: 1267.08 | J82: 1306.37 | K82: 1227.8 | L82: 1145 | M82: 2.43465
A83: 73 | B83: BSOFT | C83: 394 | D83: 392.02 | E83: 376.98 | F83: 359.97 | G83: 344.93 | H83: 409.03 | I83: 424.07 | J83: 441.08 | K83: 407.05 | L83: 375 | M83: 20.15934
A84: 74 | B84: BLISSGVS | C84: 108.55 | D84: 109.57 | E84: 106.53 | F84: 104.52 | G84: 101.48 | H84: 111.58 | I84: 114.62 | J84: 116.63 | K84: 112.6 | L84: 107.55 | M84: 4.76923
A85: 75 | B85: BLUEDART | C85: 5588.85 | D85: 5662.68 | E85: 5481.17 | F85: 5373.48 | G85: 5191.97 | H85: 5770.37 | I85: 5951.88 | J85: 6059.57 | K85: 5844.2 | L85: 5555 | M85: 0.35728
A86: 76 | B86: BLUESTARCO | C86: 820.6 | D86: 815.53 | E86: 806.07 | F86: 791.53 | G86: 782.07 | H86: 830.07 | I86: 839.53 | J86: 854.07 | K86: 825 | L86: 801 | M86: 1.08622
A87: 77 | B87: BBTC | C87: 1307.3 | D87: 1318.68 | E87: 1285.12 | F87: 1262.93 | G87: 1229.37 | H87: 1340.87 | I87: 1374.43 | J87: 1396.62 | K87: 1352.25 | L87: 1296.5 | M87: 1.40558
A88: 78 | B88: BOMDYEING | C88: 92.05 | D88: 91.92 | E88: 87.43 | F88: 82.82 | G88: 78.33 | H88: 96.53 | I88: 101.02 | J88: 105.63 | K88: 96.4 | L88: 87.3 | M88: 111.18051
A89: 79 | B89: BOSCHLTD | C89: 15211.3 | D89: 15281.77 | E89: 15018.53 | F89: 14825.77 | G89: 14562.53 | H89: 15474.53 | I89: 15737.77 | J89: 15930.53 | K89: 15545 | L89: 15089 | M89: 0.55028
A90: 80 | B90: BRIGADE | C90: 275.2 | D90: 272.72 | E90: 261.98 | F90: 248.77 | G90: 238.03 | H90: 285.93 | I90: 296.67 | J90: 309.88 | K90: 283.45 | L90: 259.5 | M90: 4.51746
A91: 81 | B91: BRITANNIA | C91: 3619.2 | D91: 3631.07 | E91: 3583.13 | F91: 3547.07 | G91: 3499.13 | H91: 3667.13 | I91: 3715.07 | J91: 3751.13 | K91: 3679 | L91: 3595 | M91: 7.31807
A92: 82 | B92: CARERATING | C92: 720.55 | D92: 711.05 | E92: 687.20 | F92: 653.85 | G92: 630.00 | H92: 744.40 | I92: 768.25 | J92: 801.60 | K92: 734.9 | L92: 677.7 | M92: 8.8494
A93: 83 | B93: CCL | C93: 341.65 | D93: 338.60 | E93: 328.70 | F93: 315.75 | G93: 305.85 | H93: 351.55 | I93: 361.45 | J93: 374.40 | K93: 348.5 | L93: 325.65 | M93: 9.85882
A94: 84 | B94: CESC | C94: 764.5 | D94: 770.17 | E94: 750.43 | F94: 736.37 | G94: 716.63 | H94: 784.23 | I94: 803.97 | J94: 818.03 | K94: 789.9 | L94: 756.1 | M94: 12.25659
A95: 85 | B95: CRISIL | C95: 2564.85 | D95: 2541.28 | E95: 2484.57 | F95: 2404.28 | G95: 2347.57 | H95: 2621.57 | I95: 2678.28 | J95: 2758.57 | K95: 2598 | L95: 2461 | M95: 1.47163
A96: 86 | B96: CSBBANK | C96: 317.85 | D96: 315.50 | E96: 308.35 | F96: 298.85 | G96: 291.70 | H96: 325.00 | I96: 332.15 | J96: 341.65 | K96: 322.65 | L96: 306 | M96: 2.05171
A97: 87 | B97: CADILAHC | C97: 620.4 | D97: 616.73 | E97: 607.27 | F97: 594.13 | G97: 584.67 | H97: 629.87 | I97: 639.33 | J97: 652.47 | K97: 626.2 | L97: 603.6 | M97: 52.18888
A98: 88 | B98: CANFINHOME | C98: 513.35 | D98: 511.22 | E98: 503.63 | F98: 493.92 | G98: 486.33 | H98: 520.93 | I98: 528.52 | J98: 538.23 | K98: 518.8 | L98: 501.5 | M98: 9.93857
A99: 89 | B99: CANBK | C99: 147.4 | D99: 147.25 | E99: 141.60 | F99: 135.80 | G99: 130.15 | H99: 153.05 | I99: 158.70 | J99: 164.50 | K99: 152.9 | L99: 141.45 | M99: 190.3044
A100: 90 | B100: CAPLIPOINT | C100: 653.2 | D100: 649.83 | E100: 625.02 | F100: 596.83 | G100: 572.02 | H100: 678.02 | I100: 702.83 | J100: 731.02 | K100: 674.65 | L100: 621.65 | M100: 2.95786
A101: 91 | B101: CGCL | C101: 530.75 | D101: 530.42 | E101: 527.33 | F101: 523.92 | G101: 520.83 | H101: 533.83 | I101: 536.92 | J101: 540.33 | K101: 533.5 | L101: 527 | M101: 1.33631
A102: 92 | B102: CARBORUNIV | C102: 593.2 | D102: 589.37 | E102: 581.43 | F102: 569.67 | G102: 561.73 | H102: 601.13 | I102: 609.07 | J102: 620.83 | K102: 597.3 | L102: 577.6 | M102: 2.41617
A103: 93 | B103: CASTROLIND | C103: 147.2 | D103: 145.88 | E103: 142.32 | F103: 137.43 | G103: 133.87 | H103: 150.77 | I103: 154.33 | J103: 159.22 | K103: 149.45 | L103: 141 | M103: 16.1419
A104: 94 | B104: CEATLTD | C104: 1359.15 | D104: 1353.18 | E104: 1317.52 | F104: 1275.88 | G104: 1240.22 | H104: 1394.82 | I104: 1430.48 | J104: 1472.12 | K104: 1388.85 | L104: 1311.55 | M104: 2.73631
A105: 95 | B105: CENTRALBK | C105: 20.2 | D105: 20.22 | E105: 19.43 | F105: 18.67 | G105: 17.88 | H105: 20.98 | I105: 21.77 | J105: 22.53 | K105: 21 | L105: 19.45 | M105: 77.85736
A106: 96 | B106: CDSL | C106: 984.9 | D106: 977.98 | E106: 956.97 | F106: 929.03 | G106: 908.02 | H106: 1005.92 | I106: 1026.93 | J106: 1054.87 | K106: 999 | L106: 950.05 | M106: 7.84655
A107: 97 | B107: CENTURYPLY | C107: 414.05 | D107: 413.35 | E107: 408.70 | F107: 403.35 | G107: 398.70 | H107: 418.70 | I107: 423.35 | J107: 428.70 | K107: 418 | L107: 408 | M107: 2.57209
A108: 98 | B108: CENTURYTEX | C108: 566.15 | D108: 562.58 | E108: 548.72 | F108: 531.28 | G108: 517.42 | H108: 580.02 | I108: 593.88 | J108: 611.32 | K108: 576.45 | L108: 545.15 | M108: 5.60088
A109: 99 | B109: CERA | C109: 4315.05 | D109: 4329.02 | E109: 4236.03 | F109: 4157.02 | G109: 4064.03 | H109: 4408.03 | I109: 4501.02 | J109: 4580.03 | K109: 4422 | L109: 4250 | M109: 0.10241
A110: 100 | B110: CHALET | C110: 179.15 | D110: 178.72 | E110: 173.68 | F110: 168.22 | G110: 163.18 | H110: 184.18 | I110: 189.22 | J110: 194.68 | K110: 183.75 | L110: 173.25 | M110: 1.79723
A111: 101 | B111: CHAMBLFERT | C111: 311 | D111: 305.47 | E111: 296.73 | F111: 282.47 | G111: 273.73 | H111: 319.73 | I111: 328.47 | J111: 342.73 | K111: 314.2 | L111: 291.2 | M111: 41.04611
A112: 102 | B112: CHENNPETRO | C112: 130.05 | D112: 128.97 | E112: 125.38 | F112: 120.72 | G112: 117.13 | H112: 133.63 | I112: 137.22 | J112: 141.88 | K112: 132.55 | L112: 124.3 | M112: 8.28821
A113: 103 | B113: CHOLAHLDNG | C113: 616.1 | D113: 622.95 | E113: 599.15 | F113: 582.20 | G113: 558.40 | H113: 639.90 | I113: 663.70 | J113: 680.65 | K113: 646.75 | L113: 606 | M113: 4.08904
A114: 104 | B114: CHOLAFIN | C114: 538.5 | D114: 536.92 | E114: 519.58 | F114: 500.67 | G114: 483.33 | H114: 555.83 | I114: 573.17 | J114: 592.08 | K114: 554.25 | L114: 518 | M114: 55.04915
A115: 105 | B115: CIPLA | C115: 960.9 | D115: 957.97 | E115: 948.28 | F115: 935.67 | G115: 925.98 | H115: 970.58 | I115: 980.27 | J115: 992.88 | K115: 967.65 | L115: 945.35 | M115: 49.78288
A116: 106 | B116: CUB | C116: 164.3 | D116: 164.03 | E116: 161.27 | F116: 158.23 | G116: 155.47 | H116: 167.07 | I116: 169.83 | J116: 172.87 | K116: 166.8 | L116: 161 | M116: 23.18992
A117: 107 | B117: COALINDIA | C117: 146.4 | D117: 148.43 | E117: 143.07 | F117: 139.73 | G117: 134.37 | H117: 151.77 | I117: 157.13 | J117: 160.47 | K117: 153.8 | L117: 145.1 | M117: 248.23176
A118: 108 | B118: COCHINSHIP | C118: 410.2 | D118: 411.67 | E118: 400.78 | F118: 391.37 | G118: 380.48 | H118: 421.08 | I118: 431.97 | J118: 441.38 | K118: 422.55 | L118: 402.25 | M118: 6.91679
A119: 109 | B119: COFORGE | C119: 3971.05 | D119: 3963.30 | E119: 3877.75 | F119: 3784.45 | G119: 3698.90 | H119: 4056.60 | I119: 4142.15 | J119: 4235.45 | K119: 4048.85 | L119: 3870 | M119: 4.12475
A120: 110 | B120: COLPAL | C120: 1689.85 | D120: 1699.28 | E120: 1670.57 | F120: 1651.28 | G120: 1622.57 | H120: 1718.57 | I120: 1747.28 | J120: 1766.57 | K120: 1728 | L120: 1680 | M120: 8.55999
A121: 111 | B121: CONCOR | C121: 688.35 | D121: 683.03 | E121: 674.32 | F121: 660.28 | G121: 651.57 | H121: 697.07 | I121: 705.78 | J121: 719.82 | K121: 691.75 | L121: 669 | M121: 36.41682
A122: 112 | B122: COROMANDEL | C122: 877.3 | D122: 875.52 | E122: 854.03 | F122: 830.77 | G122: 809.28 | H122: 898.78 | I122: 920.27 | J122: 943.53 | K122: 897 | L122: 852.25 | M122: 6.36484
A123: 113 | B123: CREDITACC | C123: 744.55 | D123: 750.27 | E123: 721.28 | F123: 698.02 | G123: 669.03 | H123: 773.53 | I123: 802.52 | J123: 825.78 | K123: 779.25 | L123: 727 | M123: 3.56744
A124: 114 | B124: CROMPTON | C124: 421.2 | D124: 421.97 | E124: 414.43 | F124: 407.67 | G124: 400.13 | H124: 428.73 | I124: 436.27 | J124: 443.03 | K124: 429.5 | L124: 415.2 | M124: 14.81724
A125: 115 | B125: CUMMINSIND | C125: 833.05 | D125: 832.02 | E125: 819.03 | F125: 805.02 | G125: 792.03 | H125: 846.03 | I125: 859.02 | J125: 873.03 | K125: 845 | L125: 818 | M125: 10.79697
A126: 116 | B126: CYIENT | C126: 862.1 | D126: 854.47 | E126: 822.68 | F126: 783.27 | G126: 751.48 | H126: 893.88 | I126: 925.67 | J126: 965.08 | K126: 886.25 | L126: 815.05 | M126: 2.81898
A127: 117 | B127: DBCORP | C127: 107.75 | D127: 108.90 | E127: 102.85 | F127: 97.95 | G127: 91.90 | H127: 113.80 | I127: 119.85 | J127: 124.75 | K127: 114.95 | L127: 104 | M127: 12.80218
A128: 118 | B128: DCBBANK | C128: 108.25 | D128: 108.82 | E128: 105.43 | F128: 102.62 | G128: 99.23 | H128: 111.63 | I128: 115.02 | J128: 117.83 | K128: 112.2 | L128: 106 | M128: 20.12545
A129: 119 | B129: DCMSHRIRAM | C129: 728 | D129: 727.08 | E129: 704.17 | F129: 680.33 | G129: 657.42 | H129: 750.92 | I129: 773.83 | J129: 797.67 | K129: 750 | L129: 703.25 | M129: 2.16095
A130: 120 | B130: DLF | C130: 294.85 | D130: 292.17 | E130: 285.18 | F130: 275.52 | G130: 268.53 | H130: 301.83 | I130: 308.82 | J130: 318.48 | K130: 299.15 | L130: 282.5 | M130: 125.63202
A131: 121 | B131: DABUR | C131: 577.1 | D131: 576.87 | E131: 571.83 | F131: 566.57 | G131: 561.53 | H131: 582.13 | I131: 587.17 | J131: 592.43 | K131: 581.9 | L131: 571.6 | M131: 39.01362
A132: 122 | B132: DALBHARAT | C132: 1789.8 | D132: 1785.28 | E132: 1732.52 | F132: 1675.23 | G132: 1622.47 | H132: 1842.57 | I132: 1895.33 | J132: 1952.62 | K132: 1838.05 | L132: 1728 | M132: 1.40222
A133: 123 | B133: DEEPAKNTR | C133: 1754.8 | D133: 1753.93 | E133: 1715.87 | F133: 1676.93 | G133: 1638.87 | H133: 1792.87 | I133: 1830.93 | J133: 1869.87 | K133: 1792 | L133: 1715 | M133: 11.69907
A134: 124 | B134: DELTACORP | C134: 177.4 | D134: 176.40 | E134: 171.10 | F134: 164.80 | G134: 159.50 | H134: 182.70 | I134: 188.00 | J134: 194.30 | K134: 181.7 | L134: 170.1 | M134: 23.57238
A135: 125 | B135: DHANI | C135: 186.1 | D135: 189.82 | E135: 181.83 | F135: 177.57 | G135: 169.58 | H135: 194.08 | I135: 202.07 | J135: 206.33 | K135: 197.8 | L135: 185.55 | M135: 19.69878
A136: 126 | B136: DHANUKA | C136: 968.65 | D136: 955.75 | E136: 933.80 | F136: 898.95 | G136: 877.00 | H136: 990.60 | I136: 1012.55 | J136: 1047.40 | K136: 977.7 | L136: 920.9 | M136: 1.67477
A137: 127 | B137: DBL | C137: 553.8 | D137: 547.83 | E137: 535.97 | F137: 518.13 | G137: 506.27 | H137: 565.67 | I137: 577.53 | J137: 595.37 | K137: 559.7 | L137: 530 | M137: 3.16179
A138: 128 | B138: DISHTV | C138: 14.8 | D138: 14.57 | E138: 13.93 | F138: 13.07 | G138: 12.43 | H138: 15.43 | I138: 16.07 | J138: 16.93 | K138: 15.2 | L138: 13.7 | M138: 149.31431
A139: 129 | B139: DCAL | C139: 198.05 | D139: 198.55 | E139: 190.10 | F139: 182.15 | G139: 173.70 | H139: 206.50 | I139: 214.95 | J139: 222.90 | K139: 207 | L139: 190.6 | M139: 5.11614
A140: 130 | B140: DIVISLAB | C140: 4197.3 | D140: 4235.92 | E140: 4107.88 | F140: 4018.47 | G140: 3890.43 | H140: 4325.33 | I140: 4453.37 | J140: 4542.78 | K140: 4363.95 | L140: 4146.5 | M140: 15.86031
A141: 131 | B141: DIXON | C141: 4427.15 | D141: 4397.38 | E141: 4314.77 | F141: 4202.38 | G141: 4119.77 | H141: 4509.77 | I141: 4592.38 | J141: 4704.77 | K141: 4480 | L141: 4285 | M141: 5.804
A142: 132 | B142: LALPATHLAB | C142: 3176.2 | D142: 3192.72 | E142: 3093.48 | F142: 3010.77 | G142: 2911.53 | H142: 3275.43 | I142: 3374.67 | J142: 3457.38 | K142: 3291.95 | L142: 3110 | M142: 12.28732
A143: 133 | B143: DRREDDY | C143: 5283.9 | D143: 5287.90 | E143: 5230.80 | F143: 5177.70 | G143: 5120.60 | H143: 5341.00 | I143: 5398.10 | J143: 5451.20 | K143: 5345 | L143: 5234.8 | M143: 6.97428
A144: 134 | B144: EIDPARRY | C144: 424.35 | D144: 420.82 | E144: 407.13 | F144: 389.92 | G144: 376.23 | H144: 438.03 | I144: 451.72 | J144: 468.93 | K144: 434.5 | L144: 403.6 | M144: 8.21605
A145: 135 | B145: EIHOTEL | C145: 110.7 | D145: 111.32 | E145: 107.68 | F145: 104.67 | G145: 101.03 | H145: 114.33 | I145: 117.97 | J145: 120.98 | K145: 114.95 | L145: 108.3 | M145: 16.67202
A146: 136 | B146: EPL | C146: 278.85 | D146: 276.55 | E146: 269.45 | F146: 260.05 | G146: 252.95 | H146: 285.95 | I146: 293.05 | J146: 302.45 | K146: 283.65 | L146: 267.15 | M146: 28.00772
A147: 137 | B147: ESABINDIA | C147: 1834.35 | D147: 1827.88 | E147: 1800.77 | F147: 1767.18 | G147: 1740.07 | H147: 1861.47 | I147: 1888.58 | J147: 1922.17 | K147: 1855 | L147: 1794.3 | M147: 0.0547
A148: 138 | B148: EDELWEISS | C148: 73.1 | D148: 71.12 | E148: 68.53 | F148: 63.97 | G148: 61.38 | H148: 75.68 | I148: 78.27 | J148: 82.83 | K148: 73.7 | L148: 66.55 | M148: 46.78814
A149: 139 | B149: EICHERMOT | C149: 2707.55 | D149: 2688.92 | E149: 2662.83 | F149: 2618.12 | G149: 2592.03 | H149: 2733.63 | I149: 2759.72 | J149: 2804.43 | K149: 2715 | L149: 2644.2 | M149: 6.49498
A150: 140 | B150: ELGIEQUIP | C150: 209.55 | D150: 208.88 | E150: 205.77 | F150: 201.98 | G150: 198.87 | H150: 212.67 | I150: 215.78 | J150: 219.57 | K150: 212 | L150: 205.1 | M150: 0.62941
A151: 141 | B151: EMAMILTD | C151: 542.7 | D151: 541.77 | E151: 528.03 | F151: 513.37 | G151: 499.63 | H151: 556.43 | I151: 570.17 | J151: 584.83 | K151: 555.5 | L151: 527.1 | M151: 9.18452
A152: 142 | B152: ENDURANCE | C152: 1571.5 | D152: 1564.32 | E152: 1537.48 | F152: 1503.47 | G152: 1476.63 | H152: 1598.33 | I152: 1625.17 | J152: 1659.18 | K152: 1591.15 | L152: 1530.3 | M152: 1.11156
A153: 143 | B153: ENGINERSIN | C153: 81 | D153: 81.57 | E153: 79.88 | F153: 78.77 | G153: 77.08 | H153: 82.68 | I153: 84.37 | J153: 85.48 | K153: 83.25 | L153: 80.45 | M153: 31.95507
A154: 144 | B154: EQUITAS | C154: 91.9 | D154: 92.60 | E154: 90.50 | F154: 89.10 | G154: 87.00 | H154: 94.00 | I154: 96.10 | J154: 97.50 | K154: 94.7 | L154: 91.2 | M154: 14.19351
A155: 145 | B155: ERIS | C155: 711.45 | D155: 702.60 | E155: 691.20 | F155: 670.95 | G155: 659.55 | H155: 722.85 | I155: 734.25 | J155: 754.50 | K155: 714 | L155: 682.35 | M155: 1.27688
A156: 146 | B156: ESCORTS | C156: 1169.95 | D156: 1159.23 | E156: 1141.82 | F156: 1113.68 | G156: 1096.27 | H156: 1187.37 | I156: 1204.78 | J156: 1232.92 | K156: 1176.65 | L156: 1131.1 | M156: 13.44781
A157: 147 | B157: EXIDEIND | C157: 184.9 | D157: 185.35 | E157: 181.40 | F157: 177.90 | G157: 173.95 | H157: 188.85 | I157: 192.80 | J157: 196.30 | K157: 189.3 | L157: 181.85 | M157: 39.93617
A158: 148 | B158: FDC | C158: 345.45 | D158: 348.07 | E158: 337.63 | F158: 329.82 | G158: 319.38 | H158: 355.88 | I158: 366.32 | J158: 374.13 | K158: 358.5 | L158: 340.25 | M158: 5.62308
A159: 149 | B159: FEDERALBNK | C159: 83.85 | D159: 83.70 | E159: 81.40 | F159: 78.95 | G159: 76.65 | H159: 86.15 | I159: 88.45 | J159: 90.90 | K159: 86 | L159: 81.25 | M159: 202.69918
A160: 150 | B160: FINEORG | C160: 2826.1 | D160: 2834.60 | E160: 2781.50 | F160: 2736.90 | G160: 2683.80 | H160: 2879.20 | I160: 2932.30 | J160: 2976.90 | K160: 2887.7 | L160: 2790 | M160: 0.3886
A161: 151 | B161: FINCABLES | C161: 481.6 | D161: 476.35 | E161: 461.25 | F161: 440.90 | G161: 425.80 | H161: 496.70 | I161: 511.80 | J161: 532.15 | K161: 491.45 | L161: 456 | M161: 4.37746
A162: 152 | B162: FINPIPE | C162: 169.35 | D162: 168.03 | E162: 164.07 | F162: 158.78 | G162: 154.82 | H162: 173.32 | I162: 177.28 | J162: 182.57 | K162: 172 | L162: 162.75 | M162: 4.97463
A163: 153 | B163: FSL | C163: 163.9 | D163: 162.42 | E163: 156.83 | F163: 149.77 | G163: 144.18 | H163: 169.48 | I163: 175.07 | J163: 182.13 | K163: 168 | L163: 155.35 | M163: 31.41292
A164: 154 | B164: FORTIS | C164: 232 | D164: 232.10 | E164: 226.90 | F164: 221.80 | G164: 216.60 | H164: 237.20 | I164: 242.40 | J164: 247.50 | K164: 237.3 | L164: 227 | M164: 42.62994
A165: 155 | B165: FCONSUMER | C165: 10.15 | D165: 9.78 | E165: 9.27 | F165: 8.38 | G165: 7.87 | H165: 10.67 | I165: 11.18 | J165: 12.07 | K165: 10.3 | L165: 8.9 | M165: 425.49701
A166: 156 | B166: FRETAIL | C166: 65.2 | D166: 64.75 | E166: 62.80 | F166: 60.40 | G166: 58.45 | H166: 67.15 | I166: 69.10 | J166: 71.50 | K166: 66.7 | L166: 62.35 | M166: 157.70725
A167: 157 | B167: GAIL | C167: 155.05 | D167: 156.53 | E167: 151.12 | F167: 147.18 | G167: 141.77 | H167: 160.47 | I167: 165.88 | J167: 169.82 | K167: 161.95 | L167: 152.6 | M167: 181.84052
A168: 158 | B168: GEPIL | C168: 346.95 | D168: 340.38 | E168: 326.57 | F168: 306.18 | G168: 292.37 | H168: 360.77 | I168: 374.58 | J168: 394.97 | K168: 354.2 | L168: 320 | M168: 10.95164
A169: 159 | B169: GHCL | C169: 286.95 | D169: 283.07 | E169: 275.28 | F169: 263.62 | G169: 255.83 | H169: 294.73 | I169: 302.52 | J169: 314.18 | K169: 290.85 | L169: 271.4 | M169: 2.75499
A170: 160 | B170: GMMPFAUDLR | C170: 4525.85 | D170: 4546.95 | E170: 4433.90 | F170: 4341.95 | G170: 4228.90 | H170: 4638.90 | I170: 4751.95 | J170: 4843.90 | K170: 4660 | L170: 4455 | M170: 0.6411
A171: 161 | B171: GMRINFRA | C171: 28.2 | D171: 28.25 | E171: 27.35 | F171: 26.50 | G171: 25.60 | H171: 29.10 | I171: 30.00 | J171: 30.85 | K171: 29.15 | L171: 27.4 | M171: 339.75886
A172: 162 | B172: GALAXYSURF | C172: 3010.05 | D172: 3010.37 | E172: 2976.68 | F172: 2943.32 | G172: 2909.63 | H172: 3043.73 | I172: 3077.42 | J172: 3110.78 | K172: 3044.05 | L172: 2977 | M172: 0.20437
A173: 163 | B173: GRSE | C173: 194.2 | D173: 195.88 | E173: 191.07 | F173: 187.93 | G173: 183.12 | H173: 199.02 | I173: 203.83 | J173: 206.97 | K173: 200.7 | L173: 192.75 | M173: 2.25325
A174: 164 | B174: GARFIBRES | C174: 3064.8 | D174: 3047.27 | E174: 3002.53 | F174: 2940.27 | G174: 2895.53 | H174: 3109.53 | I174: 3154.27 | J174: 3216.53 | K174: 3092 | L174: 2985 | M174: 0.09459
A175: 165 | B175: GICRE | C175: 201.65 | D175: 200.02 | E175: 192.63 | F175: 183.62 | G175: 176.23 | H175: 209.03 | I175: 216.42 | J175: 225.43 | K175: 207.4 | L175: 191 | M175: 16.22436
A176: 166 | B176: GILLETTE | C176: 5599.15 | D176: 5626.35 | E176: 5542.80 | F176: 5486.45 | G176: 5402.90 | H176: 5682.70 | I176: 5766.25 | J176: 5822.60 | K176: 5709.9 | L176: 5570 | M176: 0.05265
A177: 167 | B177: GLAXO | C177: 1517.2 | D177: 1525.68 | E177: 1492.62 | F177: 1468.03 | G177: 1434.97 | H177: 1550.27 | I177: 1583.33 | J177: 1607.92 | K177: 1558.75 | L177: 1501.1 | M177: 0.45569
A178: 168 | B178: GLENMARK | C178: 640.4 | D178: 637.85 | E178: 628.55 | F178: 616.70 | G178: 607.40 | H178: 649.70 | I178: 659.00 | J178: 670.85 | K178: 647.15 | L178: 626 | M178: 19.21799
A179: 169 | B179: GODFRYPHLP | C179: 911.75 | D179: 915.03 | E179: 900.72 | F179: 889.68 | G179: 875.37 | H179: 926.07 | I179: 940.38 | J179: 951.42 | K179: 929.35 | L179: 904 | M179: 0.61461
A180: 170 | B180: GODREJAGRO | C180: 555 | D180: 554.93 | E180: 543.87 | F180: 532.73 | G180: 521.67 | H180: 566.07 | I180: 577.13 | J180: 588.27 | K180: 566 | L180: 543.8 | M180: 2.18989
A181: 171 | B181: GODREJCP | C181: 892.95 | D181: 895.47 | E181: 877.48 | F181: 862.02 | G181: 844.03 | H181: 910.93 | I181: 928.92 | J181: 944.38 | K181: 913.45 | L181: 880 | M181: 14.25767
A182: 172 | B182: GODREJIND | C182: 537.65 | D182: 534.42 | E182: 524.43 | F182: 511.22 | G182: 501.23 | H182: 547.63 | I182: 557.62 | J182: 570.83 | K182: 544.4 | L182: 521.2 | M182: 1.3807
A183: 173 | B183: GODREJPROP | C183: 1387.1 | D183: 1374.35 | E183: 1344.10 | F183: 1301.10 | G183: 1270.85 | H183: 1417.35 | I183: 1447.60 | J183: 1490.60 | K183: 1404.6 | L183: 1331.35 | M183: 8.87842
A184: 174 | B184: GRANULES | C184: 310.8 | D184: 313.18 | E184: 306.07 | F184: 301.33 | G184: 294.22 | H184: 317.92 | I184: 325.03 | J184: 329.77 | K184: 320.3 | L184: 308.45 | M184: 30.69117
A185: 175 | B185: GRAPHITE | C185: 603.35 | D185: 615.08 | E185: 552.17 | F185: 500.98 | G185: 438.07 | H185: 666.27 | I185: 729.18 | J185: 780.37 | K185: 678 | L185: 563.9 | M185: 40.72721
A186: 176 | B186: GRASIM | C186: 1480.75 | D186: 1463.33 | E186: 1437.47 | F186: 1394.18 | G186: 1368.32 | H186: 1506.62 | I186: 1532.48 | J186: 1575.77 | K186: 1489.2 | L186: 1420.05 | M186: 14.85497
A187: 177 | B187: GESHIP | C187: 403.8 | D187: 405.55 | E187: 400.25 | F187: 396.70 | G187: 391.40 | H187: 409.10 | I187: 414.40 | J187: 417.95 | K187: 410.85 | L187: 402 | M187: 9.28432
A188: 178 | B188: GREAVESCOT | C188: 156 | D188: 157.47 | E188: 146.58 | F188: 137.17 | G188: 126.28 | H188: 166.88 | I188: 177.77 | J188: 187.18 | K188: 168.35 | L188: 148.05 | M188: 85.98669
A189: 179 | B189: GRINDWELL | C189: 1154.5 | D189: 1151.27 | E189: 1133.58 | F189: 1112.67 | G189: 1094.98 | H189: 1172.18 | I189: 1189.87 | J189: 1210.78 | K189: 1168.95 | L189: 1130.35 | M189: 3.16095
A190: 180 | B190: GUJALKALI | C190: 404.7 | D190: 405.03 | E190: 396.67 | F190: 388.63 | G190: 380.27 | H190: 413.07 | I190: 421.43 | J190: 429.47 | K190: 413.4 | L190: 397 | M190: 2.68756
A191: 181 | B191: GAEL | C191: 165.65 | D191: 164.93 | E191: 159.42 | F191: 153.18 | G191: 147.67 | H191: 171.17 | I191: 176.68 | J191: 182.92 | K191: 170.45 | L191: 158.7 | M191: 4.57101
A192: 182 | B192: FLUOROCHEM | C192: 1141 | D192: 1159.70 | E192: 1081.40 | F192: 1021.80 | G192: 943.50 | H192: 1219.30 | I192: 1297.60 | J192: 1357.20 | K192: 1238 | L192: 1100.1 | M192: 7.19639
A193: 183 | B193: GUJGASLTD | C193: 658.05 | D193: 655.67 | E193: 638.38 | F193: 618.72 | G193: 601.43 | H193: 675.33 | I193: 692.62 | J193: 712.28 | K193: 672.95 | L193: 636 | M193: 37.907
A194: 184 | B194: GMDCLTD | C194: 72.9 | D194: 73.33 | E194: 70.22 | F194: 67.53 | G194: 64.42 | H194: 76.02 | I194: 79.13 | J194: 81.82 | K194: 76.45 | L194: 70.65 | M194: 17.05843
A195: 185 | B195: GNFC | C195: 358.95 | D195: 359.22 | E195: 350.73 | F195: 342.52 | G195: 334.03 | H195: 367.43 | I195: 375.92 | J195: 384.13 | K195: 367.7 | L195: 351 | M195: 7.50666
A196: 186 | B196: GPPL | C196: 110.35 | D196: 110.53 | E196: 106.37 | F196: 102.38 | G196: 98.22 | H196: 114.52 | I196: 118.68 | J196: 122.67 | K196: 114.7 | L196: 106.55 | M196: 25.59832
A197: 187 | B197: GSFC | C197: 115.9 | D197: 116.03 | E197: 112.17 | F197: 108.43 | G197: 104.57 | H197: 119.77 | I197: 123.63 | J197: 127.37 | K197: 119.9 | L197: 112.3 | M197: 21.55371
A198: 188 | B198: GSPL | C198: 325.25 | D198: 321.97 | E198: 314.53 | F198: 303.82 | G198: 296.38 | H198: 332.68 | I198: 340.12 | J198: 350.83 | K198: 329.4 | L198: 311.25 | M198: 29.49122
A199: 189 | B199: GULFOILLUB | C199: 690.7 | D199: 691.22 | E199: 682.63 | F199: 674.57 | G199: 665.98 | H199: 699.28 | I199: 707.87 | J199: 715.93 | K199: 699.8 | L199: 683.15 | M199: 0.35428
A200: 190 | B200: HEG | C200: 2052.9 | D200: 2057.65 | E200: 1920.30 | F200: 1787.70 | G200: 1650.35 | H200: 2190.25 | I200: 2327.60 | J200: 2460.20 | K200: 2195 | L200: 1925.05 | M200: 4.90137
A201: 191 | B201: HCLTECH | C201: 975.25 | D201: 980.68 | E201: 964.67 | F201: 954.08 | G201: 938.07 | H201: 991.27 | I201: 1007.28 | J201: 1017.87 | K201: 996.7 | L201: 970.1 | M201: 56.22783
A202: 192 | B202: HDFCAMC | C202: 2945 | D202: 2964.67 | E202: 2900.33 | F202: 2855.67 | G202: 2791.33 | H202: 3009.33 | I202: 3073.67 | J202: 3118.33 | K202: 3029 | L202: 2920 | M202: 3.10441
A203: 193 | B203: HDFCBANK | C203: 1479.8 | D203: 1474.93 | E203: 1459.87 | F203: 1439.93 | G203: 1424.87 | H203: 1494.87 | I203: 1509.93 | J203: 1529.87 | K203: 1490 | L203: 1455 | M203: 59.6903
A204: 194 | B204: HDFCLIFE | C204: 709.2 | D204: 704.27 | E204: 697.53 | F204: 685.87 | G204: 679.13 | H204: 715.93 | I204: 722.67 | J204: 734.33 | K204: 711 | L204: 692.6 | M204: 65.80504
A205: 195 | B205: HFCL | C205: 52.7 | D205: 52.40 | E205: 50.40 | F205: 48.10 | G205: 46.10 | H205: 54.70 | I205: 56.70 | J205: 59.00 | K205: 54.4 | L205: 50.1 | M205: 372.08157
A206: 196 | B206: HATHWAY | C206: 25.95 | D206: 26.12 | E206: 24.98 | F206: 24.02 | G206: 22.88 | H206: 27.08 | I206: 28.22 | J206: 29.18 | K206: 27.25 | L206: 25.15 | M206: 133.76068
... 321 more rows

Sheet Bulk Deals
E6: Back To Main Page
A7: Subject : | B7: BULK DEAL | D7: =Main!B10 -> 2021-06-21
A9: Date | B9: Scrip code | C9: Scrip Name | D9: Client Name | E9: Buy / Sell | F9: Quantity Traded | G9: Trade Price / Wt.Avg.trade price | H9: Exchange
A10: 2021-06-18 | B10: 500009 | C10: AMBALALSA | D10: MONET SECURITIES PRIVATE LTD | E10: SELL | F10: 821,593 | G10: 34.57 | H10: BSE
A11: 2021-06-18 | B11: 500009 | C11: AMBALALSA | D11: TOPGAIN FINANCE PRIVATE LIMITED | E11: BUY | F11: 396,891 | G11: 34.82 | H11: BSE
A12: 2021-06-18 | B12: 500009 | C12: AMBALALSA | D12: TOPGAIN FINANCE PRIVATE LIMITED | E12: SELL | F12: 847,922 | G12: 34.91 | H12: BSE
A13: 2021-06-18 | B13: 500009 | C13: AMBALALSA | D13: ALPHA LEON ENTERPRISES LLP | E13: BUY | F13: 447,507 | G13: 34.15 | H13: BSE
A14: 2021-06-18 | B14: 500009 | C14: AMBALALSA | D14: ALPHA LEON ENTERPRISES LLP | E14: SELL | F14: 447,507 | G14: 35.73 | H14: BSE
A15: 2021-06-18 | B15: 500102 | C15: BALLARPUR | D15: L&T FINANCE LIMITED | E15: SELL | F15: 9,097,586 | G15: 1.94 | H15: BSE
A16: 2021-06-18 | B16: 531752 | C16: BIOGEN | D16: ALPHA LEON ENTERPRISES LLP | E16: BUY | F16: 6,009,996 | G16: 0.35 | H16: BSE
A17: 2021-06-18 | B17: 540710 | C17: CAPACITE | D17: RAHUL RAMNATH KATYAL | E17: SELL | F17: 1,000,000 | G17: 202 | H17: BSE
A18: 2021-06-18 | B18: 540710 | C18: CAPACITE | D18: ASUTOSH TRADE LINKS | E18: SELL | F18: 1,189,153 | G18: 202 | H18: BSE
A19: 2021-06-18 | B19: 540710 | C19: CAPACITE | D19: ROHIT RAMNATH KATYAL | E19: SELL | F19: 1,304,144 | G19: 202 | H19: BSE
A20: 2021-06-18 | B20: 540710 | C20: CAPACITE | D20: THINK INDIA OPPORTUNITIES MASTER FUND LP | E20: BUY | F20: 3,493,297 | G20: 202 | H20: BSE
A21: 2021-06-18 | B21: 531227 | C21: DECOMIC | D21: DIPAK KANAYALAL SHAH | E21: BUY | F21: 27,200 | G21: 34.68 | H21: BSE
A22: 2021-06-18 | B22: 539197 | C22: DEVHARI | D22: SHAH BHAVESH DINESHCHANDRA | E22: SELL | F22: 648,500 | G22: 0.88 | H22: BSE
A23: 2021-06-18 | B23: 542155 | C23: DGL | D23: MAANOR INVESTMENTS PRIVATE LIMITED . | E23: SELL | F23: 82,000 | G23: 2.91 | H23: BSE
A24: 2021-06-18 | B24: 533212 | C24: GKB | D24: RAVIRAJ DEVELOPERS LIMITED | E24: BUY | F24: 28,557 | G24: 84.72 | H24: BSE
A25: 2021-06-18 | B25: 542666 | C25: GKP | D25: BEELINE MERCHANT BANKING PRIVATE LIMITED | E25: BUY | F25: 48,000 | G25: 47.07 | H25: BSE
A26: 2021-06-18 | B26: 539097 | C26: HKG | D26: JILESH NAVIN CHHEDA | E26: BUY | F26: 150,000 | G26: 64.21 | H26: BSE
A27: 2021-06-18 | B27: 539097 | C27: HKG | D27: JILESH NAVIN CHHEDA | E27: SELL | F27: 150,000 | G27: 57.99 | H27: BSE
A28: 2021-06-18 | B28: 539097 | C28: HKG | D28: TCG FUNDS-FUND 2 | E28: BUY | F28: 152,500 | G28: 58 | H28: BSE
A29: 2021-06-18 | B29: 539097 | C29: HKG | D29: TCG FUNDS FUND 1 | E29: BUY | F29: 672,500 | G29: 58 | H29: BSE
A30: 2021-06-18 | B30: 540134 | C30: IISL | D30: KANTA DEVI RATHI | E30: BUY | F30: 37,506 | G30: 3.87 | H30: BSE
A31: 2021-06-18 | B31: 540134 | C31: IISL | D31: KANTA DEVI RATHI | E31: SELL | F31: 500 | G31: 4.34 | H31: BSE
A32: 2021-06-18 | B32: 540134 | C32: IISL | D32: BHAVIN INDRAJITBHAI PARIKH | E32: SELL | F32: 60,000 | G32: 4.14 | H32: BSE
A33: 2021-06-18 | B33: 524400 | C33: ISHITADR | D33: NARENDRAKUMAR BHAGWANDAS GUPTA | E33: SELL | F33: 17,060 | G33: 28.5 | H33: BSE
A34: 2021-06-18 | B34: 509715 | C34: JAYSHREETEA | D34: RAVIRAJ DEVELOPERS LIMITED | E34: BUY | F34: 8,969 | G34: 104 | H34: BSE
A35: 2021-06-18 | B35: 509715 | C35: JAYSHREETEA | D35: RAVIRAJ DEVELOPERS LIMITED | E35: SELL | F35: 190,000 | G35: 104 | H35: BSE
A36: 2021-06-18 | B36: 505523 | C36: MAHACORP | D36: TURBOT TRADERS PRIVATE LIMITED | E36: SELL | F36: 1,872,727 | G36: 0.47 | H36: BSE
A37: 2021-06-18 | B37: 539519 | C37: MAYUKH | D37: MEHUL H SHAH | E37: SELL | F37: 58,128 | G37: 28.8 | H37: BSE
A38: 2021-06-18 | B38: 526235 | C38: MERCATOR | D38: K INDIA OPPORTUNITIES FUND LIMITED CLASS S | E38: BUY | F38: 8,159,363 | G38: 1.82 | H38: BSE
A39: 2021-06-18 | B39: 526235 | C39: MERCATOR | D39: KITARA PIIN 1101 | E39: SELL | F39: 8,159,363 | G39: 1.82 | H39: BSE
A40: 2021-06-18 | B40: 541337 | C40: MILEFUR | D40: MINAKSHI SINGH | E40: BUY | F40: 3,000 | G40: 17.8 | H40: BSE
A41: 2021-06-18 | B41: 541337 | C41: MILEFUR | D41: MINAKSHI SINGH | E41: SELL | F41: 102,000 | G41: 16.51 | H41: BSE
A42: 2021-06-18 | B42: 539767 | C42: MNIL | D42: KABIR SHRAN DAGAR HUF | E42: BUY | F42: 19,995 | G42: 10.87 | H42: BSE
A43: 2021-06-18 | B43: 539767 | C43: MNIL | D43: KABIR SHRAN DAGAR HUF | E43: SELL | F43: 823 | G43: 10.87 | H43: BSE
A44: 2021-06-18 | B44: 539767 | C44: MNIL | D44: SITA RAM | E44: BUY | F44: 24,606 | G44: 10.87 | H44: BSE
A45: 2021-06-18 | B45: 539767 | C45: MNIL | D45: REKHA DAGAR | E45: SELL | F45: 20,000 | G45: 10.87 | H45: BSE
A46: 2021-06-18 | B46: 539767 | C46: MNIL | D46: HEENA BATRA | E46: SELL | F46: 24,000 | G46: 10.87 | H46: BSE
A47: 2021-06-18 | B47: 543247 | C47: NETPIX | D47: ABDUL LATIF VADNAGRA | E47: BUY | F47: 36,000 | G47: 30.45 | H47: BSE
A48: 2021-06-18 | B48: 543247 | C48: NETPIX | D48: ARYAMAN BROKING LIMITED | E48: SELL | F48: 36,000 | G48: 30.45 | H48: BSE
A49: 2021-06-18 | B49: 543282 | C49: NIKSTECH | D49: SHERWOOD SECURITIES PVT LTD | E49: BUY | F49: 600 | G49: 424.35 | H49: BSE
A50: 2021-06-18 | B50: 543282 | C50: NIKSTECH | D50: SHERWOOD SECURITIES PVT LTD | E50: SELL | F50: 4,200 | G50: 391.41 | H50: BSE
A51: 2021-06-18 | B51: 531254 | C51: OPTIFIN | D51: NOPEA CAPITAL SERVICES PRIVATE LIMITED | E51: BUY | F51: 40,732 | G51: 26.9 | H51: BSE
A52: 2021-06-18 | B52: 531254 | C52: OPTIFIN | D52: VEAM CAPITALS PRIVATE LIMITED | E52: SELL | F52: 50,000 | G52: 26.88 | H52: BSE
A53: 2021-06-18 | B53: 539287 | C53: ORTINLAABS | D53: SUMAN DEVI DAGA | E53: BUY | F53: 47,734 | G53: 47.97 | H53: BSE
A54: 2021-06-18 | B54: 539287 | C54: ORTINLAABS | D54: ADITYA SARAF (HUF) | E54: BUY | F54: 81,904 | G54: 47.81 | H54: BSE
A55: 2021-06-18 | B55: 539287 | C55: ORTINLAABS | D55: DB (INTL) OWN TRADING | E55: BUY | F55: 119,019 | G55: 48.39 | H55: BSE
A56: 2021-06-18 | B56: 539287 | C56: ORTINLAABS | D56: SUMAN DEVI DAGA | E56: SELL | F56: 42,512 | G56: 47.62 | H56: BSE
A57: 2021-06-18 | B57: 539287 | C57: ORTINLAABS | D57: ADITYA SARAF (HUF) | E57: SELL | F57: 65,203 | G57: 47.92 | H57: BSE
A58: 2021-06-18 | B58: 539287 | C58: ORTINLAABS | D58: DB (INTL) OWN TRADING | E58: SELL | F58: 120,495 | G58: 47.71 | H58: BSE
A59: 2021-06-18 | B59: 539287 | C59: ORTINLAABS | D59: SMC REAL ESTATE ADVISORS PRIVATE LIMITED | E59: BUY | F59: 42,994 | G59: 47.49 | H59: BSE
A60: 2021-06-18 | B60: 539287 | C60: ORTINLAABS | D60: SMC REAL ESTATE ADVISORS PRIVATE LIMITED | E60: SELL | F60: 21,479 | G60: 48.75 | H60: BSE
A61: 2021-06-18 | B61: 539287 | C61: ORTINLAABS | D61: MILLENNIUM STOCK BROKING PVT LTD | E61: BUY | F61: 88,863 | G61: 48.05 | H61: BSE
A62: 2021-06-18 | B62: 539287 | C62: ORTINLAABS | D62: MILLENNIUM STOCK BROKING PVT LTD | E62: SELL | F62: 97,457 | G62: 48.3 | H62: BSE
A63: 2021-06-18 | B63: 539291 | C63: OZONEWORLD | D63: DARSHANGI MANISH PATEL | E63: BUY | F63: 23,565 | G63: 20.42 | H63: BSE
A64: 2021-06-18 | B64: 539291 | C64: OZONEWORLD | D64: DARSHANGI MANISH PATEL | E64: SELL | F64: 15,083 | G64: 20.5 | H64: BSE
A65: 2021-06-18 | B65: 532911 | C65: PARLEIND | D65: PIL ENTERPRISE PRIVATE LIMITED | E65: SELL | F65: 800,000 | G65: 9.14 | H65: BSE
A66: 2021-06-18 | B66: 532911 | C66: PARLEIND | D66: NAVEEN GUPTA | E66: BUY | F66: 256,672 | G66: 9.12 | H66: BSE
A67: 2021-06-18 | B67: 532911 | C67: PARLEIND | D67: NAVEEN GUPTA | E67: SELL | F67: 256,672 | G67: 9.23 | H67: BSE
A68: 2021-06-18 | B68: 524136 | C68: PCCOSMA | D68: SUBHASH PRASHAD GUPTA | E68: BUY | F68: 14,900 | G68: 152.06 | H68: BSE
A69: 2021-06-18 | B69: 524136 | C69: PCCOSMA | D69: PRIYANK GUPTA | E69: SELL | F69: 15,000 | G69: 152.05 | H69: BSE
A70: 2021-06-18 | B70: 500111 | C70: RELCAPITAL | D70: ALPHA LEON ENTERPRISES LLP | E70: BUY | F70: 764,009 | G70: 24.85 | H70: BSE
A71: 2021-06-18 | B71: 500111 | C71: RELCAPITAL | D71: ALPHA LEON ENTERPRISES LLP | E71: SELL | F71: 1,841,906 | G71: 25.64 | H71: BSE
A72: 2021-06-18 | B72: 543066 | C72: SBICARD | D72: CA ROVER HOLDINGS | E72: SELL | F72: 5,000,000 | G72: 1003.27 | H72: BSE
A73: 2021-06-18 | B73: 543066 | C73: SBICARD | D73: CA ROVER HOLDING | E73: SELL | F73: 5,584,076 | G73: 1002 | H73: BSE
A74: 2021-06-18 | B74: 539526 | C74: SCTL | D74: AMUTHAVALLIJEYARAMAN | E74: BUY | F74: 882,427 | G74: 0.78 | H74: BSE
A75: 2021-06-18 | B75: 530525 | C75: SHEETAL | D75: SANKARAN G | E75: BUY | F75: 25,350 | G75: 3.42 | H75: BSE
A76: 2021-06-18 | B76: 530433 | C76: SHIVAAGRO | D76: VRAMATH INVESTMENT CONSULTANCY PVT LTD | E76: SELL | F76: 53,296 | G76: 60.67 | H76: BSE
A77: 2021-06-18 | B77: 538920 | C77: SPACEAGE | D77: PSS INFRASTRUCTURES INDIA PRIVATE LIMITED | E77: BUY | F77: 17,500 | G77: 61.56 | H77: BSE
A78: 2021-06-18 | B78: 538920 | C78: SPACEAGE | D78: PSS INFRASTRUCTURES INDIA PRIVATE LIMITED | E78: SELL | F78: 1,007 | G78: 63 | H78: BSE
A79: 2021-06-18 | B79: 539026 | C79: SSPNFIN | D79: SUBASH RAMASHISH MISHRA | E79: BUY | F79: 36,000 | G79: 11.92 | H79: BSE
A80: 2021-06-18 | B80: 539026 | C80: SSPNFIN | D80: HEMANT PARMANAND SINGH | E80: SELL | F80: 32,000 | G80: 11.88 | H80: BSE
A81: 2021-06-18 | B81: 530419 | C81: SUMEDHA | D81: MUNISH FINANCIAL | E81: SELL | F81: 90,000 | G81: 33.92 | H81: BSE
A82: 2021-06-18 | B82: 530419 | C82: SUMEDHA | D82: RAMDOOT REALTORS PVT LTD | E82: BUY | F82: 62,674 | G82: 33.78 | H82: BSE
A83: 2021-06-18 | B83: 530419 | C83: SUMEDHA | D83: RAMDOOT REALTORS PVT LTD | E83: SELL | F83: 25,321 | G83: 32.44 | H83: BSE
A84: 2021-06-18 | B84: 531279 | C84: TRISHAKT | D84: STARLIGHT CAPITAL PRIVATE LIMITED | E84: BUY | F84: 16,000 | G84: 13.2 | H84: BSE
A85: 2021-06-18 | B85: 531279 | C85: TRISHAKT | D85: SAGARMAL SURESH KUMAR PRIVATE LIMITED | E85: SELL | F85: 16,000 | G85: 13.2 | H85: BSE
A86: 2021-06-18 | B86: 531574 | C86: VASINFRA | D86: NANUBHAI PREMJIBHAI BAMBHAROLIA | E86: SELL | F86: 331,547 | G86: 3.69 | H86: BSE
A87: 2021-06-18 | B87: 531574 | C87: VASINFRA | D87: SUNDEEP RAJPAL CHHABRA | E87: BUY | F87: 330,047 | G87: 3.69 | H87: BSE
A88: 2021-06-18 | B88: 539222 | C88: VMV | D88: ESPS FINSERVE PRIVATE LIMITED. | E88: SELL | F88: 45,000 | G88: 9.1 | H88: BSE
A89: 2021-06-18 | B89: 539222 | C89: VMV | D89: SREEVISAKHRAVEENDRANNAIR | E89: BUY | F89: 40,000 | G89: 8.81 | H89: BSE
A90: 2021-06-18 | B90: AGROPHOS | C90: Agro Phos India Limited | D90: ADROIT FINANCIAL SERVICES PVT LTD | E90: BUY | F90: 107,115 | G90: 14.15 | H90: NSE
A91: 2021-06-18 | B91: ASLIND | C91: ASL Industries Limited | D91: PRO FIN CAPITAL SERVICES LTD | E91: BUY | F91: 196,000 | G91: 11.7 | H91: NSE
A92: 2021-06-18 | B92: BALLARPUR | C92: Ballarpur Industries Limi | D92: ALPHA LEON ENTERPRISES LLP | E92: BUY | F92: 10,701,959 | G92: 1.71 | H92: NSE
A93: 2021-06-18 | B93: BALLARPUR | C93: Ballarpur Industries Limi | D93: TOPGAIN FINANCE PRIVATE LIMITED | E93: BUY | F93: 7,700,000 | G93: 1.71 | H93: NSE
A94: 2021-06-18 | B94: BOMDYEING | C94: Bombay Dyeing & Mfg Co. | D94: GRAVITON RESEARCH CAPITAL LLP | E94: BUY | F94: 1,311,728 | G94: 91.39 | H94: NSE
A95: 2021-06-18 | B95: CAMS | C95: Computer Age Mngt Ser Ltd | D95: THE VANGUARD GROUP INC A/C VANGUARD EMERGING MARKETS STOCK INDEX FUND A SERIES OF VANGUARD INTERNAT | E95: BUY | F95: 348,311 | G95: 2781.82 | H95: NSE
A96: 2021-06-18 | B96: DATAMATICS | C96: Datamatics Global Ser.Ltd | D96: XTX MARKETS LLP | E96: BUY | F96: 366,595 | G96: 173.33 | H96: NSE
A97: 2021-06-18 | B97: DATAMATICS | C97: Datamatics Global Ser.Ltd | D97: GRAVITON RESEARCH CAPITAL LLP | E97: BUY | F97: 426,629 | G97: 172.99 | H97: NSE
A98: 2021-06-18 | B98: GLOBUSSPR | C98: Globus Spirits Limited | D98: XTX MARKETS LLP | E98: BUY | F98: 167,971 | G98: 564.91 | H98: NSE
A99: 2021-06-18 | B99: GLOBUSSPR | C99: Globus Spirits Limited | D99: MANSI SHARES & STOCK ADVISORS PVT LTD | E99: BUY | F99: 50,010 | G99: 583.65 | H99: NSE
A100: 2021-06-18 | B100: HSCL | C100: Himadri Speciality Chem L | D100: GRAVITON RESEARCH CAPITAL LLP | E100: BUY | F100: 3,263,142 | G100: 56.86 | H100: NSE
A101: 2021-06-18 | B101: JAYSREETEA | C101: Jayashree Tea Ltd. | D101: GRAVITON RESEARCH CAPITAL LLP | E101: BUY | F101: 166,650 | G101: 105.79 | H101: NSE
A102: 2021-06-18 | B102: JAYSREETEA | C102: Jayashree Tea Ltd. | D102: ORION STOCKS LTD | E102: BUY | F102: 357,033 | G102: 106 | H102: NSE
A103: 2021-06-18 | B103: JUMPNET | C103: Jump Networks Limited | D103: KULWANT SINGH | E103: BUY | F103: 732,368 | G103: 12.01 | H103: NSE
A104: 2021-06-18 | B104: JUMPNET | C104: Jump Networks Limited | D104: ISHA SINGHAL | E104: BUY | F104: 353,282 | G104: 12.47 | H104: NSE
A105: 2021-06-18 | B105: JUSTDIAL | C105: Justdial Ltd. | D105: XTX MARKETS LLP | E105: BUY | F105: 411,826 | G105: 1018.17 | H105: NSE
A106: 2021-06-18 | B106: JUSTDIAL | C106: Justdial Ltd. | D106: GRAVITON RESEARCH CAPITAL LLP | E106: BUY | F106: 456,263 | G106: 1015.66 | H106: NSE
A107: 2021-06-18 | B107: KHADIM | C107: Khadim India Limited | D107: NK SECURITIES RESEARCH PRIVATE LIMITED | E107: BUY | F107: 116,803 | G107: 215.34 | H107: NSE
A108: 2021-06-18 | B108: KHADIM | C108: Khadim India Limited | D108: GRAVITON RESEARCH CAPITAL LLP | E108: BUY | F108: 116,289 | G108: 214.2 | H108: NSE
A109: 2021-06-18 | B109: KNRCON | C109: KNR Constructions Limited | D109: SBI MUTUAL FUND | E109: BUY | F109: 4,763,679 | G109: 223 | H109: NSE
A110: 2021-06-18 | B110: LAMBODHARA | C110: Lambodhara Textiles Ltd. | D110: B M TRADERS | E110: BUY | F110: 151,240 | G110: 80.08 | H110: NSE
A111: 2021-06-18 | B111: LGBBROSLTD | C111: LG Balakrishnan & Bros | D111: GRAVITON RESEARCH CAPITAL LLP | E111: BUY | F111: 180,482 | G111: 452.5 | H111: NSE
A112: 2021-06-18 | B112: ORTINLAB | C112: Ortin Laboratories Ltd | D112: SKYVEIL TRADE SOLUTIONS LLP | E112: BUY | F112: 54,015 | G112: 47.49 | H112: NSE
A113: 2021-06-18 | B113: ORTINLAB | C113: Ortin Laboratories Ltd | D113: JALPABEN PRATIKBHAI DOBARIYA | E113: BUY | F113: 87,710 | G113: 46.47 | H113: NSE
A114: 2021-06-18 | B114: ORTINLAB | C114: Ortin Laboratories Ltd | D114: MUKUL MAHESHWARI | E114: BUY | F114: 73,923 | G114: 47.32 | H114: NSE
A115: 2021-06-18 | B115: ORTINLAB | C115: Ortin Laboratories Ltd | D115: URMILA DOSHI | E115: BUY | F115: 699 | G115: 48.99 | H115: NSE
A116: 2021-06-18 | B116: ORTINLAB | C116: Ortin Laboratories Ltd | D116: RS SECURITIES | E116: BUY | F116: 67,241 | G116: 47.38 | H116: NSE
A117: 2021-06-18 | B117: ORTINLAB | C117: Ortin Laboratories Ltd | D117: MILLENNIUM STOCK BROKING PVT LTD | E117: BUY | F117: 97,457 | G117: 48.21 | H117: NSE
A118: 2021-06-18 | B118: ORTINLAB | C118: Ortin Laboratories Ltd | D118: QE SECURITIES | E118: BUY | F118: 59,748 | G118: 47.36 | H118: NSE
A119: 2021-06-18 | B119: ORTINLAB | C119: Ortin Laboratories Ltd | D119: ADITYA SARAF (HUF) | E119: BUY | F119: 65,203 | G119: 47.86 | H119: NSE
A120: 2021-06-18 | B120: ORTINLAB | C120: Ortin Laboratories Ltd | D120: DB INTERNATIONAL STOCK BROKERS LIMITED | E120: BUY | F120: 120,736 | G120: 47.62 | H120: NSE
A121: 2021-06-18 | B121: ORTINLAB | C121: Ortin Laboratories Ltd | D121: SUMAN DEVI DAGA | E121: BUY | F121: 42,512 | G121: 47.62 | H121: NSE
A122: 2021-06-18 | B122: ORTINLAB | C122: Ortin Laboratories Ltd | D122: PULIN INVESTMENTS PVT. LTD | E122: BUY | F122: 135,919 | G122: 48.1 | H122: NSE
A123: 2021-06-18 | B123: ORTINLAB | C123: Ortin Laboratories Ltd | D123: SMC REAL ESTATE ADVISORS PRIVATE LIMITED | E123: BUY | F123: 21,372 | G123: 48.53 | H123: NSE
A124: 2021-06-18 | B124: ORTINLAB | C124: Ortin Laboratories Ltd | D124: INDUS PORTFOLIO PVT. LTD. | E124: BUY | F124: 115,722 | G124: 47.25 | H124: NSE
A125: 2021-06-18 | B125: ORTINLAB | C125: Ortin Laboratories Ltd | D125: NK SECURITIES RESEARCH PRIVATE LIMITED | E125: BUY | F125: 324,930 | G125: 48.14 | H125: NSE
A126: 2021-06-18 | B126: ORTINLAB | C126: Ortin Laboratories Ltd | D126: NIKUNJ KAUSHIK SHAH | E126: BUY | F126: 50,000 | G126: 50.91 | H126: NSE
A127: 2021-06-18 | B127: ORTINLAB | C127: Ortin Laboratories Ltd | D127: RAHUL AGARWAL | E127: BUY | F127: 42,000 | G127: 49.01 | H127: NSE
A128: 2021-06-18 | B128: ORTINLAB | C128: Ortin Laboratories Ltd | D128: JAYARAM BHARATH | E128: BUY | F128: 45,801 | G128: 48.14 | H128: NSE
A129: 2021-06-18 | B129: ORTINLAB | C129: Ortin Laboratories Ltd | D129: AKSHAYBHAI RAMESHBHAI DOBARIYA | E129: BUY | F129: 45,881 | G129: 48.98 | H129: NSE
A130: 2021-06-18 | B130: ORTINLAB | C130: Ortin Laboratories Ltd | D130: ARUNABEN S DOBARIYA | E130: BUY | F130: 65,750 | G130: 47.5 | H130: NSE
A131: 2021-06-18 | B131: ORTINLAB | C131: Ortin Laboratories Ltd | D131: RIYAZ A SHELAT | E131: BUY | F131: 101,647 | G131: 47.42 | H131: NSE
A132: 2021-06-18 | B132: ORTINLAB | C132: Ortin Laboratories Ltd | D132: PRASHANT EQUITY MANAGEMENT PRIVATE LIMITED | E132: BUY | F132: 42,579 | G132: 46.63 | H132: NSE
A133: 2021-06-18 | B133: ORTINLAB | C133: Ortin Laboratories Ltd | D133: RAJEEV MITTAL | E133: BUY | F133: 30,025 | G133: 45.09 | H133: NSE
A134: 2021-06-18 | B134: ORTINLAB | C134: Ortin Laboratories Ltd | D134: KRUNAL FINVEST - NILESH NATWARLAL SHETH | E134: BUY | F134: 55,055 | G134: 48.25 | H134: NSE
A135: 2021-06-18 | B135: ORTINLAB | C135: Ortin Laboratories Ltd | D135: SHREE LAL SAVITA | E135: BUY | F135: 46,172 | G135: 47.4 | H135: NSE
A136: 2021-06-18 | B136: ORTINLAB | C136: Ortin Laboratories Ltd | D136: CHANDARANA INTERMEDIARIES BROKERS PRIVATE LIMITED | E136: BUY | F136: 7,157 | G136: 50.09 | H136: NSE
A137: 2021-06-18 | B137: PATELENG | C137: Patel Engineering Limited | D137: GRAVITON RESEARCH CAPITAL LLP | E137: BUY | F137: 2,335,559 | G137: 18.99 | H137: NSE
A138: 2021-06-18 | B138: PENTAGOLD | C138: Penta Gold Limited | D138: OLGA TRADING PRIVATE LIMITED | E138: BUY | F138: 78,000 | G138: 81.65 | H138: NSE
A139: 2021-06-18 | B139: PILITA | C139: PIL Italica Lifestyle Ltd | D139: OLGA TRADING PRIVATE LIMITED | E139: BUY | F139: 1,295,547 | G139: 10.47 | H139: NSE
A140: 2021-06-18 | B140: RCOM | C140: Reliance Comm. Ltd. | D140: ADROIT FINANCIAL SERVICES PVT LTD | E140: BUY | F140: 15,363,217 | G140: 4.07 | H140: NSE
A141: 2021-06-18 | B141: RELCAPITAL | C141: Reliance Capital Limited | D141: MANSI SHARES & STOCK ADVISORS PVT LTD | E141: BUY | F141: 3,825,359 | G141: 23.81 | H141: NSE
A142: 2021-06-18 | B142: RELCAPITAL | C142: Reliance Capital Limited | D142: PRUDENT VENTURES | E142: BUY | F142: 504,000 | G142: 24.11 | H142: NSE
A143: 2021-06-18 | B143: RELCAPITAL | C143: Reliance Capital Limited | D143: ALPHA LEON ENTERPRISES LLP | E143: BUY | F143: 5,167,160 | G143: 23.62 | H143: NSE
A144: 2021-06-18 | B144: RELCAPITAL | C144: Reliance Capital Limited | D144: BESSEGGEN INFOTECH LLP | E144: BUY | F144: 755,477 | G144: 25.85 | H144: NSE
A145: 2021-06-18 | B145: RIIL | C145: Reliance Indl Infra Ltd | D145: SWAPNIL MEHTA | E145: BUY | F145: 72 | G145: 728.7 | H145: NSE
A146: 2021-06-18 | B146: RIIL | C146: Reliance Indl Infra Ltd | D146: NK SECURITIES RESEARCH PRIVATE LIMITED | E146: BUY | F146: 80,658 | G146: 746.05 | H146: NSE
A147: 2021-06-18 | B147: RUCHIRA | C147: Ruchira Papers Limited | D147: GRAVITON RESEARCH CAPITAL LLP | E147: BUY | F147: 197,000 | G147: 89.26 | H147: NSE
A148: 2021-06-18 | B148: SBICARD | C148: SBI Cards & Pay Ser Ltd | D148: MORGAN STANLEY ASIA (SINGAPORE) PTE. - ODI | E148: BUY | F148: 5,409,522 | G148: 1002 | H148: NSE
A149: 2021-06-18 | B149: SECL | C149: Salasar Exterior Cont Ltd | D149: MIT JIMIT SANGHVI | E149: BUY | F149: 69,000 | G149: 21.47 | H149: NSE
A150: 2021-06-18 | B150: SIGMA | C150: Sigma Solve Limited | D150: JAIN SANJAY POPATLAL | E150: BUY | F150: 33,000 | G150: 182.85 | H150: NSE
A151: 2021-06-18 | B151: SREINFRA | C151: SREI Infrastructure Finan | D151: ADROIT FINANCIAL SERVICES PVT LTD | E151: BUY | F151: 3,237,043 | G151: 13.47 | H151: NSE
A152: 2021-06-18 | B152: TERASOFT | C152: Tera Software Limited | D152: GRAVITON RESEARCH CAPITAL LLP | E152: BUY | F152: 75,470 | G152: 55.49 | H152: NSE
A153: 2021-06-18 | B153: UTTAMSTL | C153: Uttam Galva Steels Limite | D153: GODHAR RAJENDRA GANGARAM | E153: BUY | F153: 833,221 | G153: 6.43 | H153: NSE
A154: 2021-06-18 | B154: VERTOZ | C154: Vertoz Advertising Ltd | D154: SHREE SHIVSHAKTI PROJECT CONSULTANT PRIVATE LIMITE | E154: BUY | F154: 126,022 | G154: 182.39 | H154: NSE
A155: 2021-06-18 | B155: VERTOZ | C155: Vertoz Advertising Ltd | D155: OLGA TRADING PRIVATE LIMITED | E155: BUY | F155: 172,955 | G155: 199.94 | H155: NSE
A156: 2021-06-18 | B156: VERTOZ | C156: Vertoz Advertising Ltd | D156: SHAH NIRAJ RAJNIKANT | E156: BUY | F156: 100,000 | G156: 183 | H156: NSE
A157: 2021-06-18 | B157: VIVIDHA | C157: Visagar Polytex Ltd | D157: ADROIT FINANCIAL SERVICES PVT LTD | E157: BUY | F157: 1,521,748 | G157: 0.98 | H157: NSE
A158: 2021-06-18 | B158: AGROPHOS | C158: Agro Phos India Limited | D158: ADROIT FINANCIAL SERVICES PVT LTD | E158: SELL | F158: 107,115 | G158: 14.2 | H158: NSE
A159: 2021-06-18 | B159: ASLIND | C159: ASL Industries Limited | D159: ANUPAM NARAIN GUPTA | E159: SELL | F159: 200,000 | G159: 11.7 | H159: NSE
A160: 2021-06-18 | B160: BAJAJHIND | C160: Bajaj Hindustan Sugar Ltd | D160: RAMLAL KANWARLAL JAIN | E160: SELL | F160: 7,259,914 | G160: 16.39 | H160: NSE
A161: 2021-06-18 | B161: BALLARPUR | C161: Ballarpur Industries Limi | D161: LT FINANCE LIMITED | E161: SELL | F161: 34,018,840 | G161: 1.72 | H161: NSE
A162: 2021-06-18 | B162: BALLARPUR | C162: Ballarpur Industries Limi | D162: ALPHA LEON ENTERPRISES LLP | E162: SELL | F162: 15 | G162: 1.77 | H162: NSE
A163: 2021-06-18 | B163: BOMDYEING | C163: Bombay Dyeing & Mfg Co. | D163: GRAVITON RESEARCH CAPITAL LLP | E163: SELL | F163: 1,311,728 | G163: 91.38 | H163: NSE
A164: 2021-06-18 | B164: DATAMATICS | C164: Datamatics Global Ser.Ltd | D164: XTX MARKETS LLP | E164: SELL | F164: 359,898 | G164: 174.15 | H164: NSE
A165: 2021-06-18 | B165: DATAMATICS | C165: Datamatics Global Ser.Ltd | D165: GRAVITON RESEARCH CAPITAL LLP | E165: SELL | F165: 426,629 | G165: 172.96 | H165: NSE
A166: 2021-06-18 | B166: GLOBUSSPR | C166: Globus Spirits Limited | D166: MANSI SHARES & STOCK ADVISORS PVT LTD | E166: SELL | F166: 184,304 | G166: 567.58 | H166: NSE
A167: 2021-06-18 | B167: GLOBUSSPR | C167: Globus Spirits Limited | D167: XTX MARKETS LLP | E167: SELL | F167: 164,824 | G167: 566.13 | H167: NSE
A168: 2021-06-18 | B168: GOLDSTAR | C168: Goldstar Power Limited | D168: RIKHAV SECURITIES LIMITED | E168: SELL | F168: 78,000 | G168: 20.5 | H168: NSE
A169: 2021-06-18 | B169: HSCL | C169: Himadri Speciality Chem L | D169: GRAVITON RESEARCH CAPITAL LLP | E169: SELL | F169: 3,263,142 | G169: 56.95 | H169: NSE
A170: 2021-06-18 | B170: JAYSREETEA | C170: Jayashree Tea Ltd. | D170: ORION STOCKS LTD | E170: SELL | F170: 340,931 | G170: 105.6 | H170: NSE
A171: 2021-06-18 | B171: JAYSREETEA | C171: Jayashree Tea Ltd. | D171: RAVIRAJ DEVELOPERS LTD | E171: SELL | F171: 214,203 | G171: 104.48 | H171: NSE
A172: 2021-06-18 | B172: JAYSREETEA | C172: Jayashree Tea Ltd. | D172: GRAVITON RESEARCH CAPITAL LLP | E172: SELL | F172: 166,650 | G172: 105.5 | H172: NSE
A173: 2021-06-18 | B173: JUMPNET | C173: Jump Networks Limited | D173: GAURAV PALIWAL | E173: SELL | F173: 700,000 | G173: 12.05 | H173: NSE
A174: 2021-06-18 | B174: JUMPNET | C174: Jump Networks Limited | D174: ISHA SINGHAL | E174: SELL | F174: 500,000 | G174: 12.5 | H174: NSE
A175: 2021-06-18 | B175: JUMPNET | C175: Jump Networks Limited | D175: ISHA SINGHAL | E175: SELL | F175: 500,000 | G175: 12.7 | H175: NSE
A176: 2021-06-18 | B176: JUSTDIAL | C176: Justdial Ltd. | D176: GRAVITON RESEARCH CAPITAL LLP | E176: SELL | F176: 456,263 | G176: 1016.57 | H176: NSE
A177: 2021-06-18 | B177: JUSTDIAL | C177: Justdial Ltd. | D177: XTX MARKETS LLP | E177: SELL | F177: 434,103 | G177: 1020.59 | H177: NSE
A178: 2021-06-18 | B178: KHADIM | C178: Khadim India Limited | D178: GRAVITON RESEARCH CAPITAL LLP | E178: SELL | F178: 116,289 | G178: 215.09 | H178: NSE
A179: 2021-06-18 | B179: KHADIM | C179: Khadim India Limited | D179: NK SECURITIES RESEARCH PRIVATE LIMITED | E179: SELL | F179: 116,803 | G179: 215.62 | H179: NSE
A180: 2021-06-18 | B180: KNRCON | C180: KNR Constructions Limited | D180: KAMIDI YASHODA | E180: SELL | F180: 2,000,000 | G180: 223.04 | H180: NSE
A181: 2021-06-18 | B181: KNRCON | C181: KNR Constructions Limited | D181: MEREDDY RAJESH REDDY | E181: SELL | F181: 2,000,000 | G181: 223 | H181: NSE
A182: 2021-06-18 | B182: LAMBODHARA | C182: Lambodhara Textiles Ltd. | D182: B M TRADERS | E182: SELL | F182: 151,240 | G182: 82.31 | H182: NSE
A183: 2021-06-18 | B183: LGBBROSLTD | C183: LG Balakrishnan & Bros | D183: GRAVITON RESEARCH CAPITAL LLP | E183: SELL | F183: 180,482 | G183: 452.18 | H183: NSE
A184: 2021-06-18 | B184: ORTINLAB | C184: Ortin Laboratories Ltd | D184: CHANDARANA INTERMEDIARIES BROKERS PRIVATE LIMITED | E184: SELL | F184: 53,157 | G184: 47.79 | H184: NSE
A185: 2021-06-18 | B185: ORTINLAB | C185: Ortin Laboratories Ltd | D185: NIKUNJ KAUSHIK SHAH | E185: SELL | F185: 50,000 | G185: 49.25 | H185: NSE
A186: 2021-06-18 | B186: ORTINLAB | C186: Ortin Laboratories Ltd | D186: INDUS PORTFOLIO PVT. LTD. | E186: SELL | F186: 115,722 | G186: 47.36 | H186: NSE
A187: 2021-06-18 | B187: ORTINLAB | C187: Ortin Laboratories Ltd | D187: SMC REAL ESTATE ADVISORS PRIVATE LIMITED | E187: SELL | F187: 42,887 | G187: 47.98 | H187: NSE
A188: 2021-06-18 | B188: ORTINLAB | C188: Ortin Laboratories Ltd | D188: PULIN INVESTMENTS PVT. LTD | E188: SELL | F188: 135,919 | G188: 48.15 | H188: NSE
A189: 2021-06-18 | B189: ORTINLAB | C189: Ortin Laboratories Ltd | D189: SUMAN DEVI DAGA | E189: SELL | F189: 47,734 | G189: 48.01 | H189: NSE
A190: 2021-06-18 | B190: ORTINLAB | C190: Ortin Laboratories Ltd | D190: DB INTERNATIONAL STOCK BROKERS LIMITED | E190: SELL | F190: 119,260 | G190: 48.51 | H190: NSE
A191: 2021-06-18 | B191: ORTINLAB | C191: Ortin Laboratories Ltd | D191: ADITYA SARAF (HUF) | E191: SELL | F191: 81,904 | G191: 47.91 | H191: NSE
A192: 2021-06-18 | B192: ORTINLAB | C192: Ortin Laboratories Ltd | D192: QE SECURITIES | E192: SELL | F192: 59,748 | G192: 47.95 | H192: NSE
A193: 2021-06-18 | B193: ORTINLAB | C193: Ortin Laboratories Ltd | D193: NK SECURITIES RESEARCH PRIVATE LIMITED | E193: SELL | F193: 324,930 | G193: 48.23 | H193: NSE
A194: 2021-06-18 | B194: ORTINLAB | C194: Ortin Laboratories Ltd | D194: RAHUL AGARWAL | E194: SELL | F194: 42,000 | G194: 46.03 | H194: NSE
A195: 2021-06-18 | B195: ORTINLAB | C195: Ortin Laboratories Ltd | D195: JAYARAM BHARATH | E195: SELL | F195: 45,801 | G195: 46.6 | H195: NSE
A196: 2021-06-18 | B196: ORTINLAB | C196: Ortin Laboratories Ltd | D196: SHREE LAL SAVITA | E196: SELL | F196: 41,404 | G196: 47.26 | H196: NSE
A197: 2021-06-18 | B197: ORTINLAB | C197: Ortin Laboratories Ltd | D197: AFPL TRADELINK LLP | E197: SELL | F197: 110,332 | G197: 47.18 | H197: NSE
A198: 2021-06-18 | B198: ORTINLAB | C198: Ortin Laboratories Ltd | D198: STOCK VERTEX VENTURES | E198: SELL | F198: 60,000 | G198: 49.11 | H198: NSE
A199: 2021-06-18 | B199: ORTINLAB | C199: Ortin Laboratories Ltd | D199: RAJEEV MITTAL | E199: SELL | F199: 45,025 | G199: 46.82 | H199: NSE
A200: 2021-06-18 | B200: ORTINLAB | C200: Ortin Laboratories Ltd | D200: PRASHANT EQUITY MANAGEMENT PRIVATE LIMITED | E200: SELL | F200: 55,915 | G200: 48.16 | H200: NSE
A201: 2021-06-18 | B201: ORTINLAB | C201: Ortin Laboratories Ltd | D201: RIYAZ A SHELAT | E201: SELL | F201: 101,647 | G201: 47.71 | H201: NSE
A202: 2021-06-18 | B202: ORTINLAB | C202: Ortin Laboratories Ltd | D202: ARUNABEN S DOBARIYA | E202: SELL | F202: 65,750 | G202: 47.88 | H202: NSE
A203: 2021-06-18 | B203: ORTINLAB | C203: Ortin Laboratories Ltd | D203: AKSHAYBHAI RAMESHBHAI DOBARIYA | E203: SELL | F203: 45,881 | G203: 49.81 | H203: NSE
A204: 2021-06-18 | B204: ORTINLAB | C204: Ortin Laboratories Ltd | D204: RUPA C MEHTA | E204: SELL | F204: 100,000 | G204: 45.74 | H204: NSE
A205: 2021-06-18 | B205: ORTINLAB | C205: Ortin Laboratories Ltd | D205: URMILA DOSHI | E205: SELL | F205: 90,699 | G205: 49.53 | H205: NSE
A206: 2021-06-18 | B206: ORTINLAB | C206: Ortin Laboratories Ltd | D206: MUKUL MAHESHWARI | E206: SELL | F206: 138,041 | G206: 48.58 | H206: NSE
... 28 more rows

Sheet Call Tracker (Equity & F&O)
M5: Back To Main Page
A6: Retail Research Technical Calls & Fundamental Performance Report for the month of June-2021
M7: =Main!B10 -> 2021-06-21
B8: Positional Call
A9: Sr.no | B9: Date | D9: Company | E9: Rec | F9: Rec Price | G9: Stop Loss*** | H9: Call Closed At | I9: Target | J9: Remark | K9: Profit / Loss per Share | L9: All charges | M9: Net Gain / Loss % | N9: Status | O9: Closed Date
A10: 1 | B10: 2021-04-05 | D10: HDFCBANK | E10: Buy | F10: 1465-1475 | G10: 1370 | I10: 1600-1700 | J10: Open | R10: H
A11: 2 | B11: 2021-05-03 | D11: HDFCLIFE | E11: Buy | F11: 663 | G11: 619 | H11: 703.5 | I11: 720-740 | J11: Profit of Rs.40.5/- | K11: =H11-F11 -> 40.5 | L11: =(F11*-0.8)/100 -> -5.30 | M11: =(K11+L11)/F11 -> 5.31% | N11: Successful | O11: 2021-06-17 | R11: H
A12: 3 | B12: 2021-05-26 | D12: JKCEMENT | E12: Buy | F12: 2830-2850 | G12: 2650 | I12: 3100-3200 | J12: Open | R12: H
A13: 4 | B13: 2021-05-27 | D13: BHARTIARTL | E13: Buy | F13: 522.5 | G13: 488 | H13: 544 | I13: 590-610 | J13: Part Profit of Rs.21.5/- | K13: =H13-F13 -> 21.5 | L13: =(F13*-0.8)/100 -> -4.18 | M13: =(K13+L13)/F13 -> 3.31% | N13: Successful | O13: 2021-06-08 | R13: H
A14: 5 | B14: 2021-05-31 | D14: RELIANCE | E14: Buy | F14: 2085 | G14: 1970 | H14: 2,245.00 | I14: 2250-2300 | J14: Profit of Rs.160/- | K14: =H14-F14 -> 160 | L14: =(F14*-0.8)/100 -> -16.68 | M14: =(K14+L14)/F14 -> 6.87% | N14: Successful | O14: 2021-06-03 | R14: H
A15: 6 | B15: 2021-06-01 | D15: HEROMOTOCO | E15: Buy | F15: 2965-2985 | G15: 2790 | I15: 3300-3350 | J15: Open | R15: H
A16: 7 | B16: 2021-06-02 | D16: SFL | E16: Buy | F16: 2035 | G16: 1895 | H16: 2,195.00 | I16: 2250-2300 | J16: Profit of Rs.160/- | K16: =H16-F16 -> 160 | L16: =(F16*-0.8)/100 -> -16.28 | M16: =(K16+L16)/F16 -> 7.06% | N16: Successful | O16: 2021-06-04 | R16: H
A17: 8 | B17: 2021-06-03 | D17: HUHTAMAKI | E17: Buy<> | F17: 292 | G17: 275 | H17: 306.5 | I17: 317-327 | J17: Part Profit of Rs.14.5/- | K17: =H17-F17 -> 14.5 | L17: =(F17*-0.8)/100 -> -2.34 | M17: =(K17+L17)/F17 -> 4.17% | N17: Successful | O17: 2021-06-04 | R17: H
A18: 9 | B18: 2021-06-10 | D18: BRITANNIA | E18: Buy | F18: 3570-3600 | G18: 3345 | I18: 3900-4000 | J18: Open | R18: H
A19: 10 | B19: 2021-06-14 | D19: IRCTC | E19: Buy | F19: 2050-2065 | G19: 1930 | I19: 2250-2300 | J19: Open | R19: H
A20: 11 | B20: 2021-06-15 | D20: PRSMJOHNSN | E20: Buy | F20: 130-132 | G20: 123 | I20: 150 | J20: Open | R20: N
A21: 12 | B21: 2021-06-16 | D21: ESCORTS | E21: Buy | F21: 1190-1205 | G21: 1119 | I21: 1300-1350 | J21: Open | R21: H
A22: 13 | B22: 2021-06-16 | D22: HERANBA | E22: Buy | F22: 760 | G22: 710 | H22: 710.00 | I22: 830-860 | J22: Loss of Rs.50/- | K22: =H22-F22 -> -50 | L22: =(F22*-0.7)/100 -> -5.32 | M22: =(K22+L22)/F22 -> -7.28% | N22: Unsuccessful | O22: 2021-06-18 | R22: N
A27: CLBS = Closing Basis ***
A28: Dividend adjusted <> | F28: Reinitiated $
A29: Part book {} | F29: Revised stoploss #
B31: Momentum Call
A32: Sr.no | B32: Date | D32: Company | E32: Rec | F32: Rec Price | G32: Stop Loss | H32: Call Closed At | I32: Target | J32: Remark | K32: Profit / Loss per Share/Lot | L32: All charges | M32: Net Gain / Loss % | N32: Status | O32: Closed Date
A33: 1 | B33: 2021-05-21 | D33: BEML | E33: Buy | F33: 1314 | G33: 1275 | H33: 1352 | I33: 1380-1400 | J33: Profit of Rs.38/- | K33: =H33-F33 -> 38 | L33: =(F33*-0.7)/100 -> -9.20 | M33: =(K33+L33)/F33 -> 2.19% | N33: Successful | O33: 2021-06-03 | R33: N
A34: 2 | B34: 2021-05-25 | D34: EXIDEIND | E34: Buy | F34: 190.5 | G34: 185 | H34: 195.5 | I34: 200-205 | J34: Profit of Rs.5/- | K34: =H34-F34 -> 5 | L34: =(F34*-0.7)/100 -> -1.33 | M34: =(K34+L34)/F34 -> 1.92% | N34: Successful | O34: 2021-06-07 | R34: H
A35: 3 | B35: 2021-05-28 | D35: TVSMOTOR | E35: Buy | F35: 636.5 | G35: 615 | H35: 614 | I35: 665-675 | J35: Loss of Rs.22.5/- | K35: =H35-F35 -> -22.5 | L35: =(F35*-0.7)/100 -> -4.46 | M35: =(K35+L35)/F35 -> -4.23% | N35: Unsuccessful | O35: 2021-06-01 | R35: N
A36: 4 | B36: 2021-06-01 | D36: SBIN | E36: Buy | F36: 431 | G36: 418 | H36: 418 | I36: 450-455 | J36: Loss of Rs.13/- | K36: =H36-F36 -> -13 | L36: =(F36*-0.7)/100 -> -3.02 | M36: =(K36+L36)/F36 -> -3.72% | N36: Unsuccessful | O36: 2021-06-18 | R36: H
A37: 5 | B37: 2021-06-03 | D37: AMARAJABAT | E37: Buy | F37: 745 | G37: 725 | H37: 764 | I37: 780-790 | J37: Profit of Rs.19/- | K37: =H37-F37 -> 19 | L37: =(F37*-0.7)/100 -> -5.22 | M37: =(K37+L37)/F37 -> 1.85% | N37: Successful | O37: 2021-06-07 | R37: H
A38: 6 | B38: 2021-06-03 | D38: ESCORTS | E38: Buy | F38: 1195 | G38: 1160 | H38: 1217.5 | I38: 1240-1250 | J38: Profit of Rs.22.5/- | K38: =H38-F38 -> 22.5 | L38: =(F38*-0.07)/100 -> -0.84 | M38: =(K38+L38)/F38 -> 1.81% | N38: Successful | O38: 2021-06-03 | R38: H
A39: 7 | B39: 2021-06-07 | D39: IBULHSGFIN | E39: Buy | F39: 253 | G39: 245 | H39: 261 | I39: 265-270 | J39: Profit of Rs.8/- | K39: 8 | L39: =(F39*-0.7)/100 -> -1.77 | M39: 2.46% | N39: Successful | O39: 2021-06-09 | R39: H
A40: 8 | B40: 2021-06-08 | D40: IEX | E40: Buy | F40: 361 | G40: 349 | H40: 368 | I40: 375-380 | J40: Profit of Rs.7/- | K40: =H40-F40 -> 7 | L40: =(F40*-0.07)/100 -> -0.25 | M40: =(K40+L40)/F40 -> 1.87% | N40: Successful | O40: 2021-06-08 | R40: H
A41: 9 | B41: 2021-06-09 | D41: IRCTC | E41: Buy | F41: 2119 | G41: 2045 | H41: 2045 | I41: 2200-2250 | J41: Loss of Rs.74/- | K41: -74 | L41: =(F41*-0.7)/100 -> -14.83 | M41: -4.19% | N41: Unsuccessful | O41: 2021-06-14 | R41: H
A42: 10 | B42: 2021-06-10 | D42: AMBER | E42: Buy | F42: 2840 | G42: 2760 | H42: 2760 | I42: 2980-3020 | J42: Loss of Rs.80/- | K42: -80 | L42: =(F42*-0.7)/100 -> -19.88 | M42: -3.52% | N42: Unsuccessful | O42: 2021-06-14 | R42: H
A43: 11 | B43: 2021-06-14 | D43: RECLTD | E43: Buy | F43: 158.25 | G43: 153.5 | H43: 153 | I43: 165-170 | J43: Loss of Rs.5.25/- | K43: =H43-F43 -> -5.25 | L43: =(F43*-0.7)/100 -> -1.11 | M43: =(K43+L43)/F43 -> -4.02% | N43: Unsuccessful | O43: 2021-06-17 | R43: H
A44: 12 | B44: 2021-06-15 | D44: CARBORUNIV | E44: Buy | F44: 580 | G44: 562 | H44: 596 | I44: 610-620 | J44: Profit of Rs.16/- | K44: 16 | L44: =(F44*-0.7)/100 -> -4.06 | M44: 2.06% | N44: Successful | O44: 2021-06-18 | R44: H
A45: 13 | B45: 2021-06-16 | D45: MIDHANI | E45: Buy | F45: 210.5 | G45: 205 | H45: 204 | I45: 220-224 | J45: Loss of Rs.6.5/- | K45: =H45-F45 -> -6.5 | L45: =(F45*-0.7)/100 -> -1.47 | M45: =(K45+L45)/F45 -> -3.79% | N45: Unsuccessful | O45: 2021-06-18 | R45: H
A57: CLBS = Closing Basis *** | H57: *
A58: Dividend adjusted <> | F58: Reinitiated $
F59: Revised stoploss #
A61: Master Trade High Risk
A62: Sr.no | B62: Date | D62: Company | E62: Rec | F62: Rec Price | G62: Stop Loss | H62: Call Closed At | I62: Target | J62: Remark | K62: Profit / Loss per share | L62: All charges | M62: Gain / Loss per Lot | N62: Lot | O62: Status | P62: Closed Date
A63: 1 | B63: 2021-05-27 | D63: HINDUNILVR JUNE FUT | E63: Buy | F63: 2330 | G63: 2285 | H63: 2361 | I63: 2390-2410 | J63: Profit of Rs.31/- | K63: =H63-F63 -> 31 | L63: =(H63*N63)*0.07% -> 495.81 | M63: =(K63*N63)-L63 -> 8804.2 | N63: 300 | O63: Successful | P63: 2021-06-02 | R63: H
A64: 2 | B64: 2021-06-02 | D64: HDFCLIFE JUNE FUT | E64: Buy | F64: 678.5 | G64: 668 | H64: 685.5 | I64: 695-700 | J64: Profit of Rs.7/- | K64: 7 | L64: 527.84 | M64: 7172.2 | N64: 1100 | O64: Successful | P64: 2021-06-03 | R64: H
A65: 3 | B65: 2021-06-02 | D65: PEL JUNE FUT | E65: Buy | F65: 1840 | G65: 1794 | H65: 1868.5 | I65: 1910-1930 | J65: Profit of Rs.28.5/- | K65: =H65-F65 -> 28.5 | L65: =(H65*N65)*0.07% -> 359.69 | M65: =(K65*N65)-L65 -> 7477.8 | N65: 275 | O65: Successful | P65: 2021-06-03 | R65: H
A66: 4 | B66: 2021-06-02 | D66: NAUKRI JUNE FUT | E66: Buy | F66: 4530 | G66: 4440 | H66: 4630 | I66: 4700-4750 | J66: Profit of Rs.100/- | K66: =H66-F66 -> 100 | L66: =(H66*N66)*0.07% -> 405.13 | M66: =(K66*N66)-L66 -> 12094.9 | N66: 125 | O66: Successful | P66: 2021-06-03 | R66: H
A67: 5 | B67: 2021-06-04 | D67: HINDUNILVR JUNE FUT | E67: Buy | F67: 2334 | G67: 2289 | H67: 2362 | I67: 2380-2400 | J67: Profit of Rs.28/- | K67: 28 | L67: 496.02 | M67: 7904.0 | N67: 300 | O67: Successful | P67: 2021-06-09 | R67: H
A68: 6 | B68: 2021-06-07 | D68: ESCORTS JUNE FUT | E68: Buy | F68: 1221 | G68: 1197 | H68: 1200 | I68: 1250-1260 | J68: Loss of Rs.21/- | K68: -21 | L68: 462.00 | M68: -12012.0 | N68: 550 | O68: Unsuccessful | P68: 2021-06-09 | R68: H
A69: 7 | B69: 2021-06-08 | D69: NAUKRI JUNE FUT | E69: Buy | F69: 4650 | G69: 4540 | H69: 4580 | I69: 4800-4850 | J69: Loss of Rs.70/- | K69: =H69-F69 -> -70 | L69: =(H69*N69)*0.07% -> 400.75 | M69: =(K69*N69)-L69 -> -9150.8 | N69: 125 | O69: Unsuccessful | P69: 2021-06-09 | R69: H
A70: 8 | B70: 2021-06-08 | D70: HCLTECH JUNE FUT | E70: Buy | F70: 968 | G70: 949 | H70: 980 | I70: 990-1000 | J70: Profit of Rs.12/- | K70: =H70-F70 -> 12 | L70: =(H70*N70)*0.07% -> 480.20 | M70: =(K70*N70)-L70 -> 7919.8 | N70: 700 | O70: Successful | P70: 2021-06-09 | R70: H
A71: 9 | B71: 2021-06-11 | C71: HEROMOTOCO APRIL FUT | D71: RELIANCE JUNE FUT | E71: Buy | F71: 2214-2218 | G71: 2145 | I71: 2300 | J71: Open | R71: H
C72: HEROMOTOCO APR 3050 CE | D72: RELIANCE 2260 CE | E72: Sell | F72: 36-38 | R72: H
A73: 10 | B73: 2021-06-14 | C73: HEROMOTOCO APRIL FUT | D73: DRREDDY JUNE FUT | E73: Buy | F73: 5440 | G73: 5295 | H73: 5295 | I73: 5700 | J73: Loss of Rs.89/- | K73: =H73-F73 -> -145.00 | L73: =(H73*N73)*0.07% -> 463.31 | M73: =(-89*N73)-563.31 -> -11688.31 | N73: 125 | O73: Unsuccessful | P73: 2021-06-17 | R73: H
C74: HEROMOTOCO APR 3050 CE | D74: DRREDDY 5600 CE | E74: Sell | F74: 74 | G74: 18 | K74: =F74-G74 -> 56.00 | L74: 100.00 | R74: H
A75: 11 | B75: 2021-06-15 | D75: TECHM JUN FUT | E75: Buy | F75: 1071 | G75: 1050 | H75: 1084 | I75: 1100-1110 | J75: Profit of Rs.13/- | K75: =H75-F75 -> 13 | L75: =(H75*N75)*0.07% -> 455.28 | M75: =(K75*N75)-L75 -> 7344.7 | N75: 600 | O75: Successful | P75: 2021-06-17 | R75: H
A76: 12 | B76: 2021-06-18 | C76: HEROMOTOCO APRIL FUT | D76: NIFTY JUNE FUT | E76: Buy | F76: 15500 | G76: 15370 | H76: 15595 | I76: 15700 | J76: Porfit of Rs.80/- | K76: =H76-F76 -> 95.00 | L76: 818.74 | M76: =(80*N76)-918.74 -> 5081.26 | N76: 75 | O76: Successful | P76: 2021-06-18 | R76: H
C77: HEROMOTOCO APR 3050 CE | D77: NIFTY 15600 CE | E77: Sell | F77: 102.5 | H77: 117.5 | K77: =F77-H77 -> -15.00 | L77: 100.00 | R77: H
A78: 13 | B78: 2021-06-18 | D78: TATASTEEL JUN FUT | E78: Buy | F78: 1076 | G78: 1060 | H78: 1086 | I78: 1100-1110 | J78: Profit of Rs.10/- | K78: =H78-F78 -> 10 | L78: =(H78*N78)*0.07% -> 646.17 | M78: =(K78*N78)-L78 -> 7853.8 | N78: 850 | O78: Successful | P78: 2021-06-18 | R78: H
A79: 14 | B79: 2021-06-18 | D79: HCLTECH JUN FUT | E79: Buy | F79: 980-982 | G79: 962 | I79: 1010-1020 | J79: Open | R79: N
A86: Master Trade Medium Risk
A87: Sr.no | B87: Date | D87: Company | E87: Rec | F87: Rec Price | G87: Stop Loss | H87: Call Closed At | I87: Target | J87: Remark | K87: Profit/ Loss per lot | L87: All charges | M87: Gain / Loss per Lot | N87: Lot | O87: Status | P87: Closed Date
A88: 1 | B88: 2021-05-28 | D88: M&MFIN 185 CE JUNE | E88: Sell | F88: 2.55 | G88: 3.8 | H88: 1.4 | I88: 0.1 | J88: Profit of Rs.1.15/- | K88: =F88-H88 -> 1.15 | L88: 100 | M88: =(K88*N88)-L88 -> 4500.0 | N88: 4000 | O88: Successful | P88: 2021-06-14 | R88: N
A89: 2 | B89: 2021-05-31 | D89: NIFTY 15600 CE 3 JUNE | E89: Buy | F89: 64 | G89: 17 | H89: 76 | I89: 100-120 | J89: Profit of Rs.12/- | K89: =H89-F89 -> 12 | L89: 100 | M89: 800.0 | N89: 75 | O89: Successful | P89: 2021-06-01 | R89: H
A90: 3 | B90: 2021-06-02 | D90: NIFTY 15500 CE 3 JUNE | E90: Buy | F90: 57.5 | G90: 17 | H90: 71.5 | I90: 100-110 | J90: Profit of Rs.14/- | K90: 14 | L90: 100 | M90: 950.0 | N90: 75 | O90: Successful | P90: 2021-06-02 | R90: H
A91: 4 | B91: 2021-06-07 | D91: IRCTC 2200 CE JUNE | E91: Buy | F91: 40.5 | G91: 27 | H91: 52.5 | I91: 55-60 | J91: Profit of Rs.12/- | K91: 12 | L91: 100 | M91: 3800.0 | N91: 325 | O91: Successful | P91: 2021-06-07 | R91: H
A92: 5 | B92: 2021-06-09 | D92: TECHM 1080 CE JUNE | E92: Buy | F92: 18 | G92: 9 | H92: 22 | I92: 28-32 | J92: Profit of Rs.4/- | K92: 4 | L92: 100 | M92: 2300.0 | N92: 600 | O92: Successful | P92: 2021-06-10 | R92: H
A93: 6 | B93: 2021-06-10 | D93: NIFTY 15550 PE 17 JUNE | E93: Buy | F93: 63.5 | G93: 17 | H93: 17 | I93: 110-120 | J93: Loss of Rs.46.5/- | K93: -46.5 | L93: 100 | M93: -3587.5 | N93: 75 | O93: Unsuccessful | P93: 2021-06-14 | R93: H
A94: 7 | B94: 2021-06-11 | D94: GRANULES 350 CE JUNE | E94: Buy | F94: 8.25 | G94: 4.5 | H94: 4.5 | I94: 14-16 | J94: Loss of Rs.3.75/- | K94: -3.75 | L94: 100 | M94: =(K94*N94)-L94 -> -5912.5 | N94: 1550 | O94: Unsuccessful | P94: 2021-06-16 | R94: H
A95: 8 | B95: 2021-06-15 | D95: M&MFIN 190 CE JUNE | E95: Sell | F95: 2.1 | G95: 3.6 | H95: 0.95 | I95: 0.1 | J95: Profit of Rs.1.15/- | K95: =F95-H95 -> 1.15 | L95: 100 | M95: =(K95*N95)-L95 -> 4500.0 | N95: 4000 | O95: Successful | P95: 2021-06-16 | R95: N
A96: 9 | B96: 2021-06-15 | D96: BANKNIFTY 35000 PE 17 JUNE | E96: Buy | F96: 145 | G96: 40 | H96: 210 | I96: 300-350 | J96: Profit of Rs.65/- | K96: =H96-F96 -> 65 | L96: 100 | M96: =(K96*N96)-L96 -> 1525.0 | N96: 25 | O96: Successful | P96: 2021-06-16 | R96: N
A97: 10 | B97: 2021-06-15 | D97: PETRONET 245 CE JUNE | E97: Sell | F97: 2.45 | G97: 4 | H97: 1.45 | I97: 0.1 | J97: Profit of Rs.1/- | K97: =F97-H97 -> 1 | L97: 100 | M97: 2900.0 | N97: 3000 | O97: Successful | P97: 2021-06-16 | R97: H
A98: 11 | B98: 2021-06-16 | D98: HDFCBANK 1500 CE JUNE | E98: Buy | F98: 21.5 | G98: 11 | H98: 12 | I98: 40 | J98: Loss of Rs.9.5/- | K98: =H98-F98 -> -9.5 | L98: 100 | M98: -5325.0 | N98: 550 | O98: Unsuccessful | P98: 2021-06-17 | R98: N
A99: 12 | B99: 2021-06-17 | D99: BANKNIFTY 35000 CE 24 JUNE | E99: Buy | F99: 340 | G99: 190 | H99: 190 | I99: 550-600 | J99: Loss of Rs.150/- | K99: =H99-F99 -> -150 | L99: 100 | M99: -3850.0 | N99: 25 | O99: Unsuccessful | P99: 2021-06-18 | R99: H
A100: 13 | B100: 2021-06-17 | D100: RELIANCE 2220 CE JUNE | E100: Buy | F100: 39 | G100: 18 | H100: 45.5 | I100: 75-85 | J100: Profit of Rs.6.5/- | K100: =H100-F100 -> 6.5 | L100: 100 | M100: =(K100*N100)-L100 -> 1525.0 | N100: 250 | O100: Successful | P100: 2021-06-17 | R100: H
A101: 14 | B101: 2021-06-17 | D101: NIFTY 15650 CE 17-JUNE | E101: Buy | F101: 13.5 | H101: 26 | I101: 40 | J101: Profit of Rs.12.5/- | K101: =H101-F101 -> 12.5 | L101: 100 | M101: =(K101*N101)-L101 -> 837.5 | N101: 75 | O101: Successful | P101: 2021-06-17 | R101: N
A102: 15 | B102: 2021-06-18 | D102: M&MFIN 180 CE JUN | E102: Sell | F102: 1.10-1.30 | G102: 2.25 | I102: 0.1 | J102: Open | R102: N
A103: 16 | B103: 2021-06-18 | D103: RELIANCE 2160 PE JUN | E103: Sell | F103: 21-23 | G103: 37 | I103: 0.1 | J103: Open | R103: H
A104: 17 | B104: 2021-06-18 | D104: POWERGRID 220 PE JUN | E104: Sell | F104: 0.95-1.15 | G104: 1.8 | I104: 0.1 | J104: Open | R104: H
A105: 18 | B105: 2021-06-18 | D105: TECHM 1060 PE JUNE | E105: Sell | F105: 12-14.0 | G105: 22 | I105: 0.1 | J105: Open | R105: H
A106: 19 | B106: 2021-06-18 | D106: NIFTY 15800 CE JUNE | E106: Sell | F106: 54-58 | G106: 88 | I106: 0.1 | J106: Open | R106: H
A113: Techno -Funda (positional)
A114: Sr.no | B114: Date | D114: Company | E114: Rec | F114: Rec Price | G114: Stop Loss*** | H114: Call Closed At | I114: Target | J114: Remark | K114: Profit / Loss per Share/Lot | L114: All charges | M114: Net Gain / Loss % | N114: Status | O114: Closed Date
A115: 1 | B115: 2021-05-11 | D115: RITES | E115: Buy | F115: 239 | G115: 218 | H115: 264.00 | I115: 280-290 | J115: Profit of Rs.25/- | K115: =H115-F115 -> 25 | L115: =(F115*-0.8)/100 -> -1.91 | M115: =(K115+L115)/F115 -> 9.66% | N115: Successful | O115: 2021-06-07 | R115: H
A116: 2 | B116: 2021-06-16 | D116: WHIRLPOOL | E116: Buy | F116: 2260-2300 | G116: 2070 | I116: 2600-2700 | J116: Open | R116: H
A119: CLBS = Closing Basis *** | F119: Reinitiated $
A120: Dividend adjusted <> | F120: Revised stoploss #
B122: Intrday Call
A123: Sr.no | B123: Date | D123: Company | E123: Rec | F123: Rec Price | G123: Stop Loss | H123: Call Closed At | I123: Target | J123: Remark | K123: Profit / Loss per Share/Lot | L123: Gain / Loss per Lot | M123: Lot | N123: All charges | O123: Net Gain / Loss % | P123: Status | Q123: Closed Date
B136: Investment Idea
A137: Sr.no | B137: Date | D137: Company | E137: Rec | F137: Rec Price | G137: Point of Review | H137: Close Rate | I137: Target | J137: Remark | K137: Profit / Loss per Share | L137: Gain / Loss % | M137: Status | N137: Closed Date
A138: 1 | B138: 2013-11-01 | D138: L&T Finance Holding | E138: Accu | F138: 82.00 | G138: - | H138: 100 | I138: 100.00 | J138: Target Achieved | K138: =H138-F138 -> 18.00 | L138: =K138/F138 -> 21.95% | M138: Successful | N138: 2016-10-14
A139: 2 | B139: 2014-06-04 | D139: Finolex Inds | E139: Buy | F139: 257.00 | G139: - | H139: 300 | I139: 300.00 | J139: Target Achieved | K139: 43.00 | L139: 16.73% | M139: Successful | N139: 2014-07-02
A140: 3 | B140: 2014-07-08 | D140: JK Cement | E140: Buy | F140: 393.00 | G140: - | H140: 468 | I140: 468.00 | J140: Target Achieved | K140: 75.00 | L140: 19.08% | M140: Successful | N140: 2014-08-12
A141: 4 | B141: 2014-08-06 | D141: Finolex Cables | E141: Buy | F141: 205.00 | G141: - | H141: 275 | I141: 250.00 | J141: Target Achieved | K141: 70.00 | L141: 34.15% | M141: Successful | N141: 2014-11-19
A142: 5 | B142: 2014-09-04 | D142: Exide Inds | E142: Buy | F142: 162.00 | G142: - | H142: 190 | I142: 190.00 | J142: Target Achieved | K142: 28.00 | L142: 17.28% | M142: Successful | N142: 2015-01-02
A143: 6 | B143: 2014-09-04 | D143: Deepak Nitrite | E143: Buy | F143: 75.00 | G143: - | H143: 91.5 | I143: 95-100 | J143: Profit of Rs.16.50/- | K143: 16.50 | L143: 22.00% | M143: Successful | N143: 2014-11-11
A144: 7 | B144: 2014-10-01 | D144: Mercks | E144: Buy | F144: 850.00 | G144: - | H144: 982.5 | I144: 1050.00 | J144: Profit of Rs.132.50/- | K144: 132.50 | L144: 15.59% | M144: Successful | N144: 2015-02-04
A145: 8 | B145: 2014-10-01 | D145: Grindwell Norton | E145: Buy | F145: 475.00 | G145: - | H145: 515 | I145: 600.00 | J145: Profit of Rs.40/- | K145: 40.00 | L145: 8.42% | M145: Successful | N145: 2014-10-27
A146: 9 | B146: 2014-10-01 | D146: Snowman Logistics | E146: Buy | F146: 86.00 | G146: - | H146: 99 | I146: 140.00 | J146: Profit of Rs.13.00/- | K146: 13.00 | L146: 15.12% | M146: Successful | N146: 2014-10-27
A147: 10 | B147: 2014-10-14 | D147: Birla Corp | E147: Buy | F147: 496.60 | G147: - | H147: 621 | I147: 580.00 | J147: Target Achieved | K147: 124.40 | L147: 25.05% | M147: Successful | N147: 2016-08-23
A148: 11 | B148: 2014-10-14 | D148: Ultratech Cem | E148: Buy | F148: 2481.90 | G148: - | H148: 2840 | I148: 2870.00 | J148: Profit of Rs.358.10/- | K148: 358.10 | L148: 14.43% | M148: Successful | N148: 2015-01-13
A149: 12 | B149: 2014-10-16 | D149: Sintex Inds | E149: Buy | F149: 84.50 | G149: - | H149: 93 | I149: 110.00 | J149: Profit of Rs.8.50/- | K149: 8.50 | L149: 10.06% | M149: Successful | N149: 2014-10-27
A150: 13 | B150: 2014-10-16 | D150: HSIL | E150: Buy | F150: 401.00 | G150: - | H150: 428 | I150: 450.00 | J150: Profit of Rs.27.00/- | K150: 27.00 | L150: 6.73% | M150: Successful | N150: 2015-01-16
A151: 14 | B151: 2014-10-16 | D151: Eveready Inds | E151: Buy | F151: 101.00 | G151: - | H151: 112 | I151: 120.00 | J151: Profit of Rs.11.00/- | K151: 11.00 | L151: 10.89% | M151: Successful | N151: 2014-10-27
A152: 15 | B152: 2014-11-11 | D152: Pennar Inds | E152: Buy | F152: 59.00 | G152: - | H152: 76 | I152: 76.00 | J152: Target Achieved | K152: 17.00 | L152: 28.81% | M152: Successful | N152: 2017-10-24
A153: 16 | B153: 2014-11-11 | D153: Snowman Logistics | E153: Buy | F153: 99.00 | G153: - | H153: 120 | I153: 120.00 | J153: Profit of Rs.21/- | K153: 21.00 | L153: 21.21% | M153: Successful | N153: 2014-11-17
A154: 17 | B154: 2014-11-13 | D154: Dharamsi Morarji Chem | E154: Buy | F154: 22.00 | G154: - | H154: 33.55 | I154: 32.00 | J154: Profit of Rs 11.55/- | K154: 11.55 | L154: 52.50% | M154: Successful | N154: 2015-07-03
A155: 18 | B155: 2014-12-03 | D155: Tatachem | E155: Buy | F155: 440.00 | G155: - | H155: 520 | I155: 520.00 | J155: Profit of Rs 80.00/- | K155: 80.00 | L155: 18.18% | M155: Successful | N155: 2015-07-23
A156: 19 | B156: 2014-12-03 | D156: Advanta | E156: Buy | F156: 360.00 | G156: - | H156: 427 | I156: 425.00 | J156: Profit of Rs.67.00/- | K156: 67.00 | L156: 18.61% | M156: Successful | N156: 2015-02-23
A157: 20 | B157: 2015-01-08 | D157: GDL | E157: Buy | F157: 360.00 | G157: - | H157: 455 | I157: 420.00 | J157: Profit of Rs.95.00/- | K157: 95.00 | L157: 26.39% | M157: Successful | N157: 2015-01-20
A158: 21 | B158: 2015-01-08 | D158: NRB Bearing | E158: Buy | F158: 130.00 | H158: 175.5 | I158: 165.00 | J158: Profit of Rs 45.50/- | K158: 45.50 | L158: 35.00% | M158: Successful | N158: 2017-12-19
A159: 22 | B159: 2015-02-05 | D159: GSFC | E159: Accu | F159: 98.00 | H159: 120 | I159: 120.00 | J159: Target Achieved | K159: 22.00 | L159: 22.45% | M159: Successful | N159: 2017-01-18
A160: 23 | B160: 2015-02-05 | D160: Sundrmfast | E160: Accu | F160: 196.00 | H160: 262 | I160: 255.00 | J160: Target Achieved | K160: 66.00 | L160: 33.67% | M160: Successful | N160: 2016-08-17
A161: 24 | B161: 2015-03-04 | D161: GPPL | E161: Accu | F161: 235 | H161: 77.00 | I161: 280-285 | J161: Loss of Rs.158/- | K161: -158.00 | L161: -67.23% | M161: Unsuccessful | N161: 2019-02-26
A162: 25 | B162: 2015-03-04 | D162: ORIENTCEM | E162: Accu | F162: 185.00 | H162: 224 | I162: 220-225 | J162: Target Achieved | K162: 39.00 | L162: 21.08% | M162: Successful | N162: 2016-10-04
A163: 26 | B163: 2015-03-27 | D163: PFS | E163: Accu | F163: 49.5 | H163: 15.85 | I163: 67.00 | J163: Loss of Rs.33.65/- | K163: -33.65 | L163: -68% | M163: Unsuccessful | N163: 2019-06-11
A164: 27 | B164: 2015-03-30 | D164: Walchandnagar Ind Ltd | E164: Accu | F164: 183.50 | H164: 219 | I164: 218.00 | J164: Profit of Rs.35.50/- | K164: 35.50 | L164: 19.35% | M164: Successful | N164: 2015-04-09
A165: 28 | B165: 2015-04-20 | D165: Kalpataru Power Transmission Ltd | E165: Accu | F165: =(227+237)/2 -> 232.00 | H165: 298 | I165: 298.00 | J165: Target Achieved | K165: 66.00 | L165: 28.45% | M165: Successful | N165: 2017-03-29
A166: 29 | B166: 2015-05-04 | D166: Mastek Ltd | E166: Buy | F166: 385.00 | H166: =212.5+331 -> 543.5 | I166: 510.00 | J166: Profit of Rs 158.50/- | K166: 158.50 | L166: 41.17% | M166: Successful | N166: 2015-08-19
A167: 30 | B167: 2015-05-04 | D167: Suprajit Eng | E167: Buy | F167: 115.50 | H167: 146 | I167: 142.00 | J167: Profit of Rs 30.50/- | K167: 30.50 | L167: 26.41% | M167: Successful | N167: 2015-07-17
A168: 31 | B168: 2015-05-27 | D168: TCI | E168: Buy | F168: 237.50 | H168: 279.5 | I168: 278.00 | J168: Target Achieved | K168: 42.00 | L168: 17.68% | M168: Successful | N168: 2015-08-06
A169: 32 | B169: 2015-06-19 | D169: HSIL | E169: Accu | F169: 340.00 | H169: 448 | I169: 448.00 | J169: Target Achieved | K169: 108.00 | L169: 31.76% | M169: Successful | N169: 2017-10-10
A170: 33 | B170: 2015-07-06 | D170: Capital First | E170: Accu | F170: 390.00 | H170: 460 | I170: 460.00 | J170: Target Achieved | K170: =H170-F170 -> 70.00 | L170: =K170/F170 -> 17.95% | M170: Successful | N170: 2016-04-18
A171: 34 | B171: 2015-07-10 | D171: Dolphin OffShore | E171: Accu | F171: 122.5 | H171: 61.00 | I171: 172.00 | J171: Loss of Rs.61.50/- | K171: -61.50 | L171: -50.20% | M171: Unsuccessful | N171: 2018-08-21
A172: 35 | B172: 2015-08-03 | D172: Allcargo logistics | E172: Accu | F172: 297.50 | H172: 350 | I172: 360.00 | J172: Profit of Rs 52.50/- | K172: 52.50 | L172: 17.65% | M172: Successful | N172: 2015-08-16
A173: 36 | B173: 2015-08-03 | D173: Camline Fine | E173: Accu | F173: 115.50 | H173: 149 | I173: 140.00 | J173: Profit of Rs 33.50/- | K173: 33.50 | L173: 29.00% | M173: Successful | N173: 2017-01-05
A174: 37 | B174: 2015-09-04 | D174: TCI | E174: Accu | F174: 226.00 | H174: 292 | I174: 292.00 | J174: Target Achieved | K174: 66.00 | L174: 29.20% | M174: Successful | N174: 2015-10-09
A175: 38 | B175: 2015-09-07 | D175: Kalpataru Power Transmission Ltd | E175: Accu | F175: 232.50 | H175: 312.5 | I175: 310.00 | J175: Target Achieved | K175: 80.00 | L175: 34.41% | M175: Successful | N175: 2017-03-29
A176: 39 | B176: 2015-09-21 | D176: LLOYD ELECTRIC & ENG LTD | E176: Accu | F176: 196.50 | H176: 238 | I176: 238.00 | J176: Target Achieved | K176: 41.50 | L176: 21.12% | M176: Successful | N176: 2015-10-14
A177: 40 | B177: 2015-09-24 | D177: L&T Finance Holding | E177: Accu | F177: 65.00 | H177: 82 | I177: 82.00 | J177: Target Achieved | K177: 17.00 | L177: 26.15% | M177: Successful | N177: 2016-07-27
A178: 41 | B178: 2015-10-14 | D178: KEC International ltd | E178: Accu | F178: 144.00 | H178: 182.5 | I178: 181.00 | J178: Target Achieved | K178: 38.50 | L178: 26.74% | M178: Successful | N178: 2017-03-23
A179: 42 | B179: 2015-10-14 | D179: Gruh Finance | E179: Accu | F179: 264.00 | H179: 311 | I179: 311.00 | J179: Target Achieved | K179: 47.00 | L179: 17.80% | M179: Successful | N179: 2016-08-22
A180: 43 | B180: 2015-11-10 | D180: Pidilitind | E180: Buy | F180: 549.50 | H180: 630 | I180: 630.00 | J180: Target Achieved | K180: 80.50 | L180: 14.65% | M180: Successful | N180: 2016-02-19
A181: 44 | B181: 2015-12-04 | D181: Zensar Technology | E181: Accu | F181: 1027.50 | H181: 1315 | I181: 1250.00 | J181: Target Achieved | K181: 287.50 | L181: 27.98% | M181: Successful | N181: 2018-05-24
A182: 45 | B182: 2015-12-29 | D182: Vinati Organics Ltd | E182: Accu | F182: 465.00 | H182: 540 | I182: 540.00 | J182: Target Achieved | K182: 75.00 | L182: 16.13% | M182: Successful | N182: 2016-06-09
A183: 46 | B183: 2016-01-11 | D183: GSFC | E183: Buy | F183: 81.00 | H183: 110 | I183: 110.00 | J183: Target Achieved | K183: 29.00 | L183: 35.80% | M183: Successful | N183: 2017-01-10
A184: 47 | B184: 2016-01-13 | D184: SSWL | E184: Buy | F184: 417.50 | H184: 547 | I184: 535.00 | J184: Target Achieved | K184: 129.50 | L184: 31.02% | M184: Successful | N184: 2016-07-27
A185: 48 | B185: 2016-02-08 | D185: Persistent System Ltd | E185: Accu | F185: 650.00 | H185: 800 | I185: 800.00 | J185: Target Achieved | K185: 150.00 | L185: 23.08% | M185: Successful | N185: 2018-02-23
A186: 49 | B186: 2016-03-04 | D186: UPL | E186: Accu | F186: 437.50 | H186: 504.5 | I186: 522.00 | J186: Profit of Rs.67/- | K186: 67.00 | L186: 15.31% | M186: Successful | N186: 2016-04-20
A187: 50 | B187: 2016-03-09 | D187: Ashoka Buildcon Ltd | E187: Accu | F187: 189.50 | H187: 218 | I187: 218.00 | J187: Target Achieved | K187: 28.50 | L187: 15.04% | M187: Successful | N187: 2017-10-26
A188: 51 | B188: 2016-04-11 | D188: PTC INDIA FIN SERV LTD | E188: Accu | F188: 36.5 | H188: 15.85 | I188: 60.00 | J188: Loss of Rs.20.65/- | K188: -20.65 | L188: -56.58% | M188: Unsuccessful | N188: 2019-06-11
A189: 52 | B189: 2016-04-12 | D189: CAMLINFINE $ | E189: Accu | F189: 93.00 | H189: 149 | I189: 140.00 | J189: Profit of Rs 56/- | K189: 56.00 | L189: 60.22% | M189: Successful | N189: 2017-01-05
A190: 53 | B190: 2016-04-12 | D190: Greaves Cotton Ltd. | E190: Accu | F190: 130.00 | H190: 150 | I190: 150-155 | J190: Target Achieved | K190: 20.00 | L190: 15.38% | M190: Successful | N190: 2016-07-13
A191: 54 | B191: 2016-04-13 | D191: DHFL | E191: Accu | F191: 196.00 | H191: 299 | I191: 299.00 | J191: Target Achieved | K191: 103.00 | L191: 52.55% | M191: Successful | N191: 2016-09-07
A192: 55 | B192: 2016-04-13 | D192: Magma | E192: Accu | F192: 88.00 | H192: 103 | I192: 103.00 | J192: Target Achieved | K192: 15.00 | L192: 17.05% | M192: Successful | N192: 2016-06-09
A193: 56 | B193: 2016-05-02 | D193: KEC International ltd $ | E193: Accu | F193: 127.50 | H193: 148 | I193: 148-150 | J193: Target Achieved | K193: =H193-F193 -> 20.50 | L193: =K193/F193 -> 16.08% | M193: Successful | N193: 2016-07-13
A194: 57 | B194: 2016-05-03 | D194: Mindtree | E194: Accu | F194: 675.00 | H194: 815 | I194: 790-800 | J194: Target Achieved | K194: =H194-F194 -> 140.00 | L194: =K194/F194 -> 20.74% | M194: Successful | N194: 2018-02-23
A195: 58 | B195: 2016-06-01 | D195: Atulauto | E195: Accu | F195: 500 | H195: 232.50 | I195: 565-570 | J195: Loss of Rs.267.50 /- | K195: =H195-F195 -> -267.50 | L195: =K195/F195 -> -53.50% | M195: Unsuccessful | N195: 2019-09-27
A196: 59 | B196: 2016-06-06 | D196: TRITURBINE | E196: Accu | F196: 110.00 | H196: 126.5 | I196: 125.00 | J196: Profit of Rs.16.50/- | K196: =H196-F196 -> 16.50 | L196: =K196/F196 -> 15.00% | M196: Successful | N196: 2016-07-01
A197: 60 | B197: 2016-06-17 | D197: Pennar Industries Ltd | E197: Accu | F197: 44.00 | H197: 69.5 | I197: 69.50 | J197: Profit of Rs.25.50/- | K197: =H197-F197 -> 25.50 | L197: =K197/F197 -> 57.95% | M197: Successful | N197: 2017-08-30
A198: 61 | B198: 2016-06-28 | D198: EVEREADY | E198: Accu | F198: 262.50 | H198: 340 | I198: 333.00 | J198: Profit of Rs.77.50/- | K198: 77.50 | L198: 29.52% | M198: Successful | N198: 2017-10-09
A199: 62 | B199: 2016-06-28 | D199: FIEMIND | E199: Accu | F199: 840.00 | H199: 1230 | I199: 1230.00 | J199: Target Achieved | K199: 390.00 | L199: 46.43% | M199: Successful | N199: 2016-10-06
A200: 63 | B200: 2016-07-05 | D200: Bajaj Corp Ltd | E200: Accu | F200: 395 | H200: =(468.5+342.5)/2 -> 405.50 | I200: 510.00 | J200: Profit of Rs.10.50/- | K200: =H200-F200 -> 10.50 | L200: =K200/F200 -> 3% | M200: Neutral | N200: 2019-05-21
A201: 64 | B201: 2016-08-02 | D201: GPPL $ | E201: Buy | F201: =169.5-12.8 -> 156.7 | H201: 77.00 | I201: 198-200 | J201: Loss of Rs.79.7/- | K201: -79.70 | L201: -50.86% | M201: Unsuccessful | N201: 2019-02-26
A202: 65 | B202: 2016-08-04 | D202: WONDERLA HOLIDAYS LTD | E202: Accu | F202: 400 | H202: 305.00 | I202: 475.00 | J202: Loss of Rs.95/- | K202: -95.00 | L202: -23.75% | M202: Unsuccessful | N202: 2019-05-21
A203: 66 | B203: 2016-08-11 | D203: CAMLINFINE | E203: Accu | F203: 86.50 | H203: 130 | I203: 130.00 | J203: Profit of Rs.43.50/- | K203: 43.50 | L203: 50.29% | M203: Successful | N203: 2017-12-22
A204: 67 | B204: 2016-08-18 | D204: GRANULES | E204: Accu | F204: 133.5 | H204: 126.50 | I204: 178.00 | J204: Exit | K204: -7.00 | L204: -5.24% | M204: Unsuccessful | N204: 2016-09-02
A205: 68 | B205: 2016-08-31 | D205: VA TECH WABAG | E205: Accu | F205: 560.00 | H205: 725 | I205: 725.00 | J205: Target Achieved | K205: 165.00 | L205: 29.46% | M205: Successful | N205: 2016-03-27
A206: 69 | B206: 2016-09-01 | D206: SKIPPER LIMITED | E206: Accu | F206: 160.50 | H206: 210 | I206: 210.00 | J206: Target Achieved | K206: 49.50 | L206: 30.84% | M206: Successful | N206: 2017-05-16
A207: 70 | B207: 2016-10-03 | D207: IFBIND | E207: Accu | F207: 430.00 | H207: 596 | I207: 575.00 | J207: Profit of Rs.166/- | K207: 166.00 | L207: 38.60% | M207: Successful | N207: 2017-02-03
A208: 71 | B208: 2016-10-14 | D208: ASIANTILES | E208: Accu | F208: 280.00 | H208: 345 | I208: 345.00 | J208: Target Achieved | K208: =H208-F208 -> 65.00 | L208: =K208/F208 -> 23.21% | M208: Successful | N208: 2017-03-20
A209: 72 | B209: 2016-10-14 | D209: DEEPIND | E209: Accu | F209: 245.00 | H209: 325.5 | I209: 330.00 | J209: Profit of Rs.80.5/- | K209: 80.50 | L209: =K209/F209 -> 32.86% | M209: Successful | N209: 2017-02-03
A210: 73 | B210: 2016-10-17 | D210: DCBBANK | E210: Accu | F210: 125.00 | H210: 160 | I210: 160.00 | J210: Target Achieved | K210: 35.00 | L210: 28.00% | M210: Successful | N210: 2017-03-09
A211: 74 | B211: 2016-10-17 | D211: ORIENTREF | E211: Accu | F211: 114.00 | H211: 145 | I211: 145.00 | J211: Target Achieved | K211: 31.00 | L211: =K211/F211 -> 27.19% | M211: Successful | N211: 2017-05-04
A212: 75 | B212: 2016-10-17 | D212: GANECOS | E212: Accu | F212: 212.00 | H212: 280 | I212: 276.00 | J212: Profit of Rs.68/- | K212: 68.00 | L212: =K212/F212 -> 32.08% | M212: Successful | N212: 2017-05-03
A213: 76 | B213: 2016-11-04 | D213: NBCC | E213: Accu | F213: 155.00 | H213: 210 | I213: 210.00 | J213: Profit of Rs.55/- | K213: 55.00 | L213: =K213/F213 -> 35.48% | M213: Successful | N213: 2017-07-28
A214: 77 | B214: 2016-12-06 | D214: PRECAM | E214: Accu | F214: 150.5 | H214: 72.50 | I214: 174.00 | J214: Loss of Rs.78/- | K214: -78.00 | L214: -51.83% | M214: Unsuccessful | N214: 2018-08-21
A215: 78 | B215: 2016-12-08 | D215: INFRATEL | E215: Accu | F215: 380.00 | H215: 478 | I215: 468.00 | J215: Target Achieved | K215: =H215-F215 -> 98.00 | L215: =K215/F215 -> 25.79% | M215: Successful | N215: 2017-10-17
A216: 79 | B216: 2016-12-30 | D216: GODREJPROP | E216: Accu | F216: 305.00 | H216: 375 | I216: 375.00 | J216: Target Achieved | K216: =H216-F216 -> 70.00 | L216: =K216/F216 -> 22.95% | M216: Successful | N216: 2017-02-02
A217: 80 | B217: 2017-01-04 | D217: DEEPAKNTR | E217: Accu | F217: 99.50 | H217: 158 | I217: 158.00 | J217: Target Achieved | K217: =H217-F217 -> 58.50 | L217: =K217/F217 -> 58.79% | M217: Successful | N217: 2017-06-12
A218: 81 | B218: 2017-01-04 | D218: DEEPAKNTR | E218: Accu | F218: 99.50 | H218: 158 | I218: 158.00 | J218: Target Achieved | K218: 58.50 | L218: 58.79% | M218: Successful | N218: 2017-06-12
A219: 82 | B219: 2017-02-20 | D219: RECLTD | E219: Accu | F219: 140.50 | H219: 220 | I219: 220.00 | J219: Target Achieved | K219: =H219-F219 -> 79.50 | L219: =K219/F219 -> 56.58% | M219: Successful | N219: 2017-05-09
A220: 83 | B220: 2017-02-20 | D220: SUBROS | E220: Accu | F220: 202.50 | H220: 234 | I220: 234.00 | J220: Target Achieved | K220: 31.50 | L220: 15.56% | M220: Successful | N220: 2017-04-11
A221: 84 | B221: 2017-03-24 | D221: VRLLOG | E221: Accu | F221: 300.50 | H221: 417.5 | I221: 420.00 | J221: Profit of Rs.117/- | K221: =H221-F221 -> 117.00 | L221: =K221/F221 -> 38.94% | M221: Successful | N221: 2017-12-01
A222: 85 | B222: 2017-03-24 | D222: FIEMIND | E222: Accu | F222: 850.00 | H222: 1042.5 | I222: 1023.00 | J222: Profit of Rs 192.50/- | K222: 192.50 | L222: 22.65% | M222: Successful | N222: 2017-04-05
A223: 86 | B223: 2017-04-05 | D223: RATNAMANI | E223: Accu | F223: 785.00 | H223: 930 | I223: 920.00 | J223: Profit of Rs.145/- | K223: =H223-F223 -> 145.00 | L223: =K223/F223 -> 18.47% | M223: Successful | N223: 2017-08-29
A224: 87 | B224: 2017-04-06 | D224: ZEEMEDIA | E224: Accu | F224: 40 | H224: 13.10 | I224: 60.00 | J224: Loss of Rs.26.9/- | K224: -26.90 | L224: -67.25% | M224: Unsuccessful | N224: 2018-02-07
A225: 88 | B225: 2017-04-12 | D225: DABUR | E225: Accu | F225: 289.50 | H225: 354 | I225: 360.00 | J225: Profit of Rs.64.5/- | K225: =H225-F225 -> 64.50 | L225: =K225/F225 -> 22.28% | M225: Successful | N225: 2017-11-01
A226: 89 | B226: 2017-04-20 | D226: KPRMILL | E226: Accu | F226: 700.00 | H226: 840 | I226: 840.00 | J226: Profit of Rs.140/- | K226: 140.00 | L226: 20.00% | M226: Successful | N226: 2017-06-07
A227: 90 | B227: 2017-06-01 | D227: ESSELPACK | E227: Accu | F227: 130.00 | H227: 144.25 | I227: 170.00 | J227: Profit of Rs.14.25/- | K227: 14.25 | L227: 10.96% | M227: Successful | N227: 2019-07-29
A228: 91 | B228: 2017-06-15 | D228: KEI | E228: Accu | F228: 214.50 | H228: 262 | I228: 262.00 | J228: Profit of Rs.47.5/- | K228: 47.50 | L228: 22.14% | M228: Successful | N228: 2017-08-30
A229: 92 | B229: 2017-07-17 | D229: MAYURUNIQ | E229: Accu | F229: 370.00 | H229: 447.5 | I229: 450.00 | J229: Target Achieved | K229: 77.50 | L229: 20.95% | M229: Successful | N229: 2017-10-27
A230: 93 | B230: 2017-07-27 | D230: RAMCOCEM | E230: Accu | F230: 657.50 | H230: 825 | I230: 820.00 | J230: Target Achieved | K230: 167.50 | L230: 25.48% | M230: Successful | N230: 2017-12-21
A231: 94 | B231: 2017-08-17 | D231: FINPIPE | E231: Accu | F231: 605.00 | H231: 750 | I231: 750.00 | J231: Profit of Rs.145/- | K231: 145.00 | L231: 23.97% | M231: Successful | N231: 2017-10-19
A232: 95 | B232: 2017-09-01 | D232: SHK | E232: Accu | F232: 255 | H232: 217.25 | I232: 320.00 | J232: Loss of Rs.37.75/- | K232: -37.75 | L232: -15% | M232: Unsuccessful | N232: 2019-07-15
A233: 96 | B233: 2017-09-19 | D233: SKIPPER | E233: Accu | F233: 215.00 | H233: 258 | I233: 258.00 | J233: Target Achieved | K233: 43.00 | L233: 20.00% | M233: Successful | N233: 2017-11-01
A234: 97 | B234: 2017-09-19 | D234: SKIPPER | E234: Accu | F234: 215.00 | H234: 258 | I234: 258.00 | J234: Target Achieved | K234: 43.00 | L234: 20.00% | M234: Successful | N234: 2017-11-01
A235: 98 | B235: 2017-09-20 | D235: CAMLINFINE$ | E235: Accu | F235: 75.00 | H235: 90 | I235: 90.00 | J235: Profit of Rs.15.00/- | K235: =H235-F235 -> 15.00 | L235: =K235/F235 -> 20.00% | M235: Successful | N235: 2017-10-11
A236: 99 | B236: 2017-10-03 | D236: GNA | E236: Accu | F236: 315.00 | H236: 392 | I236: 384.00 | J236: Profit of Rs.77/- | K236: 77.00 | L236: 24.44% | M236: Successful | N236: 2017-10-09
A237: 100 | B237: 2017-10-05 | D237: NOCIL | E237: Accu | F237: 145.00 | H237: 179 | I237: 180.00 | J237: Profit of Rs.34/- | K237: 34.00 | L237: 23.45% | M237: Successful | N237: 2017-10-17
A238: 101 | B238: 2017-10-06 | D238: CENTURYPLY | E238: Accu | F238: 256.00 | H238: 323 | I238: 320.00 | J238: Target Achieved | K238: 67.00 | L238: 26.17% | M238: Successful | N238: 2017-11-28
A239: 102 | B239: 2017-10-09 | D239: EIHOTEL | E239: Accu | F239: 137.50 | H239: 184 | I239: 183.00 | J239: Profit of Rs.46.5/- | K239: 46.50 | L239: 33.82% | M239: Successful | N239: 2018-01-08
A240: 103 | B240: 2017-10-10 | D240: NRBBEARING | E240: Accu | F240: 125.50 | H240: 158 | I240: 155.00 | J240: Profit of Rs.32.5/- | K240: 32.50 | L240: 25.90% | M240: Successful | N240: 2017-11-28
A241: 104 | B241: 2017-10-10 | D241: BOROSIL | E241: Accu | F241: 895.00 | H241: 1122.5 | I241: 1078.00 | J241: Profit of Rs.227.5/- | K241: 227.50 | L241: 25.42% | M241: Successful | N241: 2018-01-17
A242: 105 | B242: 2017-10-12 | D242: CYIENT | E242: Accu | F242: 525.00 | H242: 629 | I242: 629.00 | J242: Target Achieved | K242: 104.00 | L242: 19.81% | M242: Successful | N242: 2018-01-19
A243: 106 | B243: 2017-11-07 | D243: HATSUN | E243: Accu | F243: 740.00 | H243: 892.5 | I243: 900.00 | J243: Profit of Rs.152.5/- | K243: =H243-F243 -> 152.50 | L243: =K243/F243 -> 20.61% | M243: Successful | N243: 2017-11-13
A244: 107 | B244: 2017-12-04 | D244: SANGHIIND | E244: Accu | F244: 118.50 | H244: 143.5 | I244: 145.00 | J244: Profit of Rs.25/- | K244: =H244-F244 -> 25.00 | L244: =K244/F244 -> 21.10% | M244: Successful | N244: 2017-12-28
A245: 108 | B245: 2017-12-21 | D245: KAJARIACER | E245: Accu | F245: 715 | H245: 500.00 | I245: 872.00 | J245: Loss of Rs.215/- | K245: =H245-F245 -> -215.00 | L245: =K245/F245 -> -30.07% | M245: Unsuccessful | N245: 2019-07-24
A246: 109 | B246: 2017-12-29 | D246: GNA | E246: Accu | F246: 435.00 | H246: 542.5 | I246: 539.00 | J246: Target Achieved | K246: 107.50 | L246: 24.71% | M246: Successful | N246: 2018-04-16
A247: 110 | B247: 2017-12-29 | D247: ZENSARTECH | E247: Accu | F247: 885.00 | H247: 1090 | I247: 1084.00 | J247: Target Achieved | K247: 205.00 | L247: 23.16% | M247: Successful | N247: 2018-04-23
A248: 111 | B248: 2018-04-02 | D248: EVERESTIND | E248: Accu | F248: 478.50 | H248: 442 | I248: 613.00 | J248: Loss of Rs.36.50 /- | K248: =H248-F248 -> -36.50 | L248: =K248/F248 -> -7.63% | M248: Unsuccessful | N248: 2019-10-24
... 55 more rows
